{"text_format":"1","workbook":"xlsx","n_sheets":5,"sheets":["Pravidla","Výsledky","Knt","Seřazení Knt","Žebříček"],"not_rendered":{"charts":0,"images":0,"macros":1,"external_links":0,"defined_names":1,"comments":0,"pivot_tables":1},"unopened":[],"bounds":{"document_bytes":16777216,"sheet_cells":100000,"rows_first":2000,"rows_last":500,"rows_between":2000,"halvings":0,"cell_chars":16384,"cell_head_chars":4096},"cells_cut":0,"cells_raw":0,"read":"whole","date_system":"1900"}

{"sheet":"Pravidla","index":0,"n_rows":4,"n_cols":1,"rows_kept":4,"cut":false,"hidden":false,"merged":[]}
["O pořadí v žebříčku rozhoduje  :"]
["1. - počet bodů (1. m. = 3 b., 2. m. = 2 b., 3. m. = 1 b. + 2 b. za každý vyhraný zápas + 1 b. za každou remízu + 1 b. za účast)"]
["2. - rozdíl vyhraných a prohraných zápasů"]
["3. - podíl vyhraných a prohraných zápasů"]

{"sheet":"Výsledky","index":1,"n_rows":1000,"n_cols":13,"rows_kept":1000,"cut":false,"hidden":false,"merged":[]}
["datum","příjmení","jméno","rok nar.","hm. kateg.","umístění","výhry","remíza","prohry","pom. b. +","pom. b. -","příjmení a jméno","body"]
["2017-01-21","Adamus","Jan",2010,22,2,1,0,3,2,100,{"$f":"B2&\" \"&C2","v":"Adamus Jan"},{"$f":"IF(ISBLANK(F2),\"\",IF(F2<4,CHOOSE(F2,3,2,1),0)+G2*2+H2+1)","v":5}]
["2017-01-21","Adamus","Jiří",2008,29,4,0,0,0,0,0,{"$f":"B3&\" \"&C3","v":"Adamus Jiří"},{"$f":"IF(ISBLANK(F3),\"\",IF(F3<4,CHOOSE(F3,3,2,1),0)+G3*2+H3+1)","v":1}]
["2017-01-21","Boháč","Adam",2003,47,1,3,0,0,6,300,"Boháč Adam",10]
["2017-01-21","Caletka","Michal",2005,36,4,0,0,3,0,0,"Caletka Michal",1]
["2017-01-21","Caletka","Petr",2005,45,1,3,0,0,6,300,"Caletka Petr",10]
["2017-01-21","Ciora","Jakub",2009,24,2,2,0,1,4,200,"Ciora Jakub",7]
["2017-01-21","Dastych","Filip",2009,31,5,0,0,4,0,0,"Dastych Filip",1]
["2017-01-21","Dvořáčková","Apolena",2007,33,4,0,0,3,0,0,"Dvořáčková Apolena",1]
["2017-01-21","Fojtík","Jiří Václav",2008,25,3,1,0,2,2,100,"Fojtík Jiří Václav",4]
["2017-01-21","Franek","Daniel",2010,22,1,4,0,0,8,400,"Franek Daniel",12]
["2017-01-21","Fuljer","Patrik",2008,31,2,3,0,1,6,200.5,"Fuljer Patrik",9]
["2017-01-21","Gilová","Eliška",2008,30,4,0,0,0,0,0,"Gilová Eliška",1]
["2017-01-21","Graňák","Dominik",2008,26,2,2,0,1,4,110,"Graňák Dominik",7]
["2017-01-21","Grygárek","Jan",2007,29,3,1,0,2,2,100,"Grygárek Jan",4]
["2017-01-21","Havelka","Josef ",2006,30,2,2,0,1,4,101,"Havelka Josef ",7]
["2017-01-21","Havelka","Štěpán",2006,31,1,4,0,0,8,301,"Havelka Štěpán",12]
["2017-01-21","Hladík","Václav",2005,33,1,3,0,0,6,110.5,"Hladík Václav",10]
["2017-01-21","Hodák","Daniel",2007,61,2,3,0,0,6,300,"Hodák Daniel",9]
["2017-01-21","Jahodová","Petra",2007,39,4,0,0,0,0,0,"Jahodová Petra",1]
["2017-01-21","Kališik","Jakub",2008,45,3,1,0,2,2,1,"Kališik Jakub",4]
["2017-01-21","King","Samuel",2006,42,1,3,0,0,6,201,"King Samuel",10]
["2017-01-21","Kolář","Václav",2007,29,1,3,0,0,6,300,"Kolář Václav",10]
["2017-01-21","Kopcová","Eliška",2007,24,3,1,0,2,2,0.5,"Kopcová Eliška",4]
["2017-01-21","Kotouček","Marek",2010,22,4,2,0,2,4,1.5,"Kotouček Marek",5]
["2017-01-21","Krčmář","Michal",2011,22,5,1,0,3,2,1,"Krčmář Michal",3]
["2017-01-21","Krische","Fabien",2006,39,1,3,0,0,6,300,"Krische Fabien",10]
["2017-01-21","Krische","Simon",2009,31,4,1,0,3,2,100,"Krische Simon",3]
["2017-01-21","Kulhánek","Adam",2007,36,1,3,0,0,6,300,"Kulhánek Adam",10]
["2017-01-21","Kuluris","Manolis",2009,26,1,3,0,0,6,300,"Kuluris Manolis",10]
["2017-01-21","Kusyn","Oliver",2009,25,4,1,0,2,2,10,"Kusyn Oliver",3]
["2017-01-21","Lukas","Daniel",2007,30,3,1,0,2,2,100,"Lukas Daniel",4]
["2017-01-21","Maršálek","Harry",2007,45,4,0,0,3,0,0,"Maršálek Harry",1]
["2017-01-21","Martinásek","Šimon",2009,25,1,2,0,1,4,200,"Martinásek Šimon",8]
["2017-01-21","Mikenda","Ondřej",2007,33,3,1,0,2,2,100,"Mikenda Ondřej",4]
["2017-01-21","Morcinek","Lukáš",2007,45,2,2,0,1,4,200,"Morcinek Lukáš",7]
["2017-01-21","Nováková","Emma",2008,39,3,1,0,2,2,0.5,"Nováková Emma",4]
["2017-01-21","Nuhlíček","Jakub",2009,30,1,3,0,0,6,300,"Nuhlíček Jakub",10]
["2017-01-21","Nuhlíček","Michal",2007,24,1,3,0,0,6,201,"Nuhlíček Michal",10]
["2017-01-21","Pitrman","Daniel",2009,22,3,2,0,2,4,2,"Pitrman Daniel",6]
["2017-01-21","Poštulka","Petr",2005,39,2,2,0,0,4,110,"Poštulka Petr",7]
["2017-01-21","Schotli","Josef ",2007,33,2,2,0,1,4,100.5,"Schotli Josef ",7]
["2017-01-21","Skalková","Elen",2007,25,2,2,0,1,4,110,{"$f":"B43&\" \"&C43","v":"Skalková Elen"},7]
["2017-01-21","Slowik","Nikolas",2008,26,3,1,0,2,2,100,"Slowik Nikolas",4]
["2017-01-21","Smyček","Martin",2004,47,2,0,0,2,0,0,"Smyček Martin",3]
["2017-01-21","Stark","Vojtěch",2009,31,3,2,0,2,4,101,"Stark Vojtěch",6]
["2017-01-21","Starý","Patrik",2007,28,2,2,0,1,4,200,"Starý Patrik",7]
["2017-01-21","Stebnická","Lucie",2008,28,3,1,0,2,2,100,"Stebnická Lucie",4]
["2017-01-21","Suchan","Jan",2006,36,2,2,0,1,4,200,"Suchan Jan",7]
["2017-01-21","Sýkora","Tomáš",2004,42,2,2,0,1,4,101,"Sýkora Tomáš",7]
["2017-01-21","Šimkovič","Ondřej",2007,42,4,0,0,0,0,0,"Šimkovič Ondřej",1]
["2017-01-21","Šotola","Kryštof",2007,36,3,1,0,2,2,100,"Šotola Kryštof",4]
["2017-01-21","Urban","Filip",2009,28,4,0,0,0,3,0,"Urban Filip",1]
["2017-01-21","Vavreczka","Michal",2005,26,4,0,0,0,3,0,"Vavreczka Michal",1]
["2017-01-21","Vjaclovský","David",2007,28,1,3,0,0,6,300,"Vjaclovský David",10]
["2017-01-21","Vojkovský","Dalibor",2010,61,1,3,0,0,0,0,"Vojkovský Dalibor",10]
["2017-01-21","Vrbas","Alexandr",2007,29,2,2,0,1,4,200,"Vrbas Alexandr",7]
["2017-01-21","Wojtas","Ines",2009,24,4,0,0,3,0,0,"Wojtas Ines",1]
["2017-01-21","Závodný","Matyáš",2005,42,3,1,0,2,2,100,"Závodný Matyáš",4]
["2017-03-11","Beutel","David",2005,35,1,3,0,0,6,300,"Beutel David",10]
["2017-03-11","Boháč","Adam",2003,51,1,2,0,0,4,200,"Boháč Adam",8]
["2017-03-11","Brož","Ondřej",2005,46,3,2,0,2,4,200,"Brož Ondřej",6]
["2017-03-11","Břežný","Filip",2008,39,5,0,0,0,0,0,"Břežný Filip",1]
["2017-03-11","Buček","Dan",2007,45,3,0,0,2,0,0,"Buček Dan",2]
["2017-03-11","Caletka","Michal",2005,39,4,1,0,3,2,100,"Caletka Michal",3]
["2017-03-11","Caletka","Petr",2005,46,4,1,0,3,2,100,"Caletka Petr",3]
["2017-03-11","Ciora","Jakub",2009,24,1,3,1,0,7,210,"Ciora Jakub",{"$f":"IF(ISBLANK(F67),\"\",IF(F67<4,CHOOSE(F67,3,2,1),0)+G67*2+H67+1)","v":11}]
["2017-03-11","Čech","Jiří",2005,46,1,4,0,0,8,310,"Čech Jiří",12]
["2017-03-11","Dastych","Filip",2009,34,3,0,0,0,0,0,"Dastych Filip",2]
["2017-03-11","Dokoupilová","Anna",2006,35,4,0,0,3,0,0,"Dokoupilová Anna",1]
["2017-03-11","Dvořák","Josef",2005,46,5,0,0,0,0,0,"Dvořák Josef",1]
["2017-03-11","Fojtík","Jiří Václav",2008,26,3,1,0,2,2,100,"Fojtík Jiří Václav",4]
["2017-03-11","Grobelný","Vít",2007,29,3,2,0,2,4,200,"Grobelný Vít",6]
["2017-03-11","Grobelný","Václav",2005,51,2,0,1,1,1,0,"Grobelný Václav",4]
["2017-03-11","Jahodová","Petra",2007,44,3,0,0,0,0,0,"Jahodová Petra",2]
["2017-03-11","Káňová","Barbora",2009,24,3,2,1,1,5,110,"Káňová Barbora",7]
["2017-03-11","Kapias","Oliver",2008,26,2,2,0,1,4,200,"Kapias Oliver",7]
["2017-03-11","Klimek","Ondřej",2005,51,2,0,1,1,1,0,"Klimek Ondřej",4]
["2017-03-11","Kreutz","David",2008,26,4,0,0,0,0,0,"Kreutz David",1]
["2017-03-11","Kreutz","Martin",2008,28,4,0,0,0,0,0,"Kreutz Martin",1]
["2017-03-11","Kubala","Marek",2009,34,1,1,1,0,3,100,"Kubala Marek",7]
["2017-03-11","Kulhánek","Adam",2007,39,2,3,0,1,6,210,"Kulhánek Adam",9]
["2017-03-11","Kuluris","Manolis",2009,28,1,2,0,1,4,200,"Kuluris Manolis",8]
["2017-03-11","Kusyn","Oliver",2009,24,5,0,0,0,0,0,"Kusyn Oliver",1]
["2017-03-11","Maršálek","Harry",2007,45,2,1,0,1,2,10,"Maršálek Harry",5]
["2017-03-11","Mařec","Tomáš",2008,26,1,3,0,0,6,300,"Mařec Tomáš",10]
["2017-03-11","Morcinek","Lukáš",2007,45,1,2,0,0,4,200,"Morcinek Lukáš",8]
["2017-03-11","Neshoda","Vojtěch",2008,29,4,0,1,0,1,0,"Neshoda Vojtěch",2]
["2017-03-11","Nuhlíček","Michal",2009,24,4,1,2,1,4,10,"Nuhlíček Michal",5]
["2017-03-11","Nuhlíček","Jakub",2007,29,1,4,0,0,8,400,"Nuhlíček Jakub",12]
["2017-03-11","Pazdoň","Matyáš",2009,28,1,2,0,1,4,200,"Pazdoň Matyáš",8]
["2017-03-11","Poštulka","Petr",2005,39,3,2,0,2,4,200,"Poštulka Petr",6]
["2017-03-11","Přikryl","Tomáš",2008,44,1,2,0,0,4,110,"Přikryl Tomáš",8]
["2017-03-11","Ryška","Filip",2008,29,2,3,0,1,6,300,"Ryška Filip",9]
["2017-03-11","Salamonová","Karolína",2007,44,2,1,0,1,2,100,"Salamonová Karolína",5]
["2017-03-11","Sikora","Tomáš",2004,46,2,3,0,1,6,300,"Sikora Tomáš",9]
["2017-03-11","Starý","Patrik",2007,29,4,0,1,3,1,0,"Starý Patrik",2]
["2017-03-11","Suchan","Jan",2006,35,2,2,0,1,4,200,"Suchan Jan",7]
["2017-03-11","Šelong","Tadeáš",2009,24,2,2,0,2,4,200,"Šelong Tadeáš",7]
["2017-03-11","Valentík","Tomáš",2005,39,1,4,0,0,8,400,"Valentík Tomáš",12]
["2017-03-11","Vjaclovský","David",2008,28,3,2,0,1,4,110,"Vjaclovský David",6]
["2017-03-11","Zelinger","Karel",2006,35,3,1,0,2,2,100,"Zelinger Karel",4]
["2017-03-11","Zwilling","Šimon",2008,34,1,1,1,0,3,100,"Zwilling Šimon",7]
["2017-06-24","Malinovský","Jiří",2008,37,3,1,0,2,2,100,"Malinovský Jiří",4]
["2017-06-24","Břežný","Filip",2008,37,4,0,0,3,0,0,"Břežný Filip",1]
["2017-06-24","Bodurová","Kateřina",2008,37,2,2,0,1,4,200,"Bodurová Kateřina",7]
["2017-06-24","Kulhánek","Adam",2007,37,1,3,0,0,6,207,{"$f":"B107&\" \"&C107","v":"Kulhánek Adam"},10]
["2017-06-24","Fojtík","Jiří Václav",2008,26,3,2,0,2,2,100,"Fojtík Jiří Václav",6]
["2017-06-24","Martinásek","Šimon",2009,26,2,2,0,1,4,110,"Martinásek Šimon",7]
["2017-06-24","Slovák","Jiří",2010,26,4,0,0,3,0,0,"Slovák Jiří",1]
["2017-06-24","Mařec","Tomáš",2008,26,1,3,0,0,3,300,"Mařec Tomáš",10]
["2017-06-24","Havelka","Štěpán",2006,33,1,3,0,0,6,201,"Havelka Štěpán",10]
["2017-06-24","Stark","Vojtěch",2009,33,3,1,0,2,2,100,"Stark Vojtěch",4]
["2017-06-24","Sládek","Maxmilián",2008,33,2,2,0,1,4,101,"Sládek Maxmilián",7]
["2017-06-24","Dastych","Filip",2009,33,4,0,0,3,0,0,"Dastych Filip",1]
["2017-06-24","Lošáková","Lucie",2003,49,2,2,0,1,4,101,"Lošáková Lucie",7]
["2017-06-24","Brož","Ondřej",2005,49,1,3,0,0,6,201,"Brož Ondřej",10]
["2017-06-24","Dvořák","Josef",2005,49,4,0,0,3,0,0,"Dvořák Josef",1]
["2017-06-24","Morcinek","Lukáš",2007,49,3,1,0,2,2,100,"Morcinek Lukáš",4]
["2017-06-24","Bechný","Adam",2010,23,2,1,0,1,2,10,"Bechný Adam",5]
["2017-06-24","Přichystal","Leon",2009,23,3,0,0,2,0,0,"Přichystal Leon",2]
["2017-06-24","Nováček","Nikolas",2009,23,1,2,0,0,4,200,"Nováček Nikolas",8]
["2017-06-24","Ciora ","Jakub",2009,25,3,2,0,2,4,200,"Ciora  Jakub",6]
["2017-06-24","Kusyn","Oliver",2009,25,5,0,0,0,0,0,"Kusyn Oliver",1]
["2017-06-24","Vavrla","Alexandr",2010,25,2,3,0,1,6,210,"Vavrla Alexandr",9]
["2017-06-24","Šelong","Tadeáš",2009,25,4,1,0,3,2,1,"Šelong Tadeáš",3]
["2017-06-24","Stojčev","Matyáš",2010,25,1,4,0,0,8,400,"Stojčev Matyáš",12]
["2017-06-24","Vjaclovský","David",2008,30,4,0,0,0,0,0,"Vjaclovský David",1]
["2017-06-24","Lysický","Sebastián",2008,30,1,3,0,0,6,300,"Lysický Sebastián",10]
["2017-06-24","Grobelný","Vít",2007,30,2,2,0,1,4,200,"Grobelný Vít",7]
["2017-06-24","Stohlová","Karolína",2008,30,3,1,0,2,2,100,"Stohlová Karolína",{"$f":"IF(ISBLANK(F131),\"\",IF(F131<4,CHOOSE(F131,3,2,1),0)+G131*2+H131+1)","v":4}]
["2017-06-24","Blahová","Alexandra",2007,31,2,0,0,2,0,0,"Blahová Alexandra",3]
["2017-06-24","Ryška","Filip",2008,31,1,2,0,0,4,200,"Ryška Filip",8]
["2017-06-24","Buček","Dan",2007,42,4,0,0,0,0,0,"Buček Dan",1]
["2017-06-24","Šumský","Mirolav",2004,42,2,2,0,1,4,110,"Šumský Mirolav",7]
["2017-06-24","Románek","Jakub",2008,42,3,1,0,2,2,100,"Románek Jakub",4]
["2017-06-24","Vlk","František",2008,42,1,3,0,0,6,300,"Vlk František",10]
["2017-06-24","Šimkovič","Ondřej",2007,45.5,3,0,0,0,0,0,"Šimkovič Ondřej",2]
["2017-06-24","Závodný","Matyáš",2005,45.5,2,1,0,1,2,100,"Závodný Matyáš",5]
["2017-06-24","Nghiemová","Natálie",2004,45.5,1,2,0,0,4,110,"Nghiemová Natálie",8]
["2017-06-24","Grobelný","Václav",2005,54,1,2,0,0,2,200,"Grobelný Václav",8]
["2017-04-22","Vlček","Petr",null,24,5,0,0,4,null,null,"Vlček Petr",1]
["2017-04-22","Krčmář","Michal",null,24,4,1,0,3,null,null,"Krčmář Michal",3]
["2017-04-22","Nováček","Nikolas",null,24,3,2,0,2,null,null,"Nováček Nikolas",6]
["2017-04-22","Káňová","Barbora",null,24,1,4,0,0,null,null,"Káňová Barbora",12]
["2017-04-22","Přichystal","Leon",2009,24,2,3,0,1,null,null,"Přichystal Leon",9]
["2017-04-22","Adamčíková","Nela",null,27,4,1,0,3,null,null,"Adamčíková Nela",3]
["2017-04-22","Kapias","Oliver",null,27,1,4,0,0,null,null,"Kapias Oliver",12]
["2017-04-22","Martinásek","Šimon",null,27,2,3,0,1,null,null,"Martinásek Šimon",9]
["2017-04-22","Pizzato","Alessandro",null,27,5,0,0,4,null,null,"Pizzato Alessandro",1]
["2017-04-22","Kuluris","Manolis",2009,27,3,2,0,2,4,200,"Kuluris Manolis",6]
["2017-04-22","Kreutz","Martin",null,29,5,0,1,3,null,null,"Kreutz Martin",2]
["2017-04-22","Michálek","Jakub",null,29,4,2,0,2,null,null,"Michálek Jakub",5]
["2017-04-22","Lukas","Daniel",null,29,1,3,1,0,null,null,"Lukas Daniel",11]
["2017-04-22","Krčmář","Matěj",null,29,2,2,0,2,null,null,"Krčmář Matěj",7]
["2017-04-22","Stebnická","Lucie",null,29,2,2,0,2,null,null,"Stebnická Lucie",7]
["2017-04-22","Vrbas","Alexandr",null,32,2,2,0,1,null,null,"Vrbas Alexandr",7]
["2017-04-22","Blahová","Alexandra",2007,32,3,1,0,2,null,null,"Blahová Alexandra",4]
["2017-04-22","Gilová","Eliška",null,32,4,0,0,3,null,null,"Gilová Eliška",1]
["2017-04-22","Stark","Vojtěch",null,32,1,3,0,0,null,null,"Stark Vojtěch",10]
["2017-04-22","Poštulka","Petr",2005,40,1,2,0,0,null,null,"Poštulka Petr",8]
["2017-04-22","Břežný","Filip",2008,40,2,1,0,1,null,null,"Břežný Filip",5]
["2017-04-22","Horuta","Matyáš",null,40,3,0,0,2,null,null,"Horuta Matyáš",2]
["2017-04-22","Brož","Ondřej",null,50,1,3,0,0,null,null,"Brož Ondřej",10]
["2017-04-22","Morcinek","Lukáš",null,50,4,0,0,3,null,null,"Morcinek Lukáš",1]
["2017-04-22","Klimek","Ondřej",null,50,2,2,0,1,null,null,"Klimek Ondřej",7]
["2017-04-22","Záruba","Pavel",null,50,3,1,0,2,null,null,"Záruba Pavel",4]
["2017-04-22","Koch","Martin",null,25,5,0,0,4,null,null,"Koch Martin",1]
["2017-04-22","Nuhlíček","Michal",2009,25,2,3,0,1,null,null,"Nuhlíček Michal",9]
["2017-04-22","Fojtík","Jiří Václav",null,25,3,2,0,2,null,null,"Fojtík Jiří Václav",6]
["2017-04-22","Šelong","Tadeáš",null,25,4,1,0,3,null,null,{"$f":"B171&\" \"&C171","v":"Šelong Tadeáš"},3]
["2017-04-22","Mařec","Tomáš",2008,25,1,4,0,0,null,null,"Mařec Tomáš",12]
["2017-04-22","Graňák","Dominik",null,28,1,2,0,1,null,null,"Graňák Dominik",8]
["2017-04-22","Valošek","Jakub",2008,28,3,1,0,2,null,null,"Valošek Jakub",4]
["2017-04-22","Lanča","Eduard",null,28,2,2,0,1,null,null,"Lanča Eduard",7]
["2017-04-22","Nytra","Sebastián",null,28,3,1,0,2,null,null,"Nytra Sebastián",4]
["2017-04-22","Lysický","Sebastián",2008,30,3,2,0,2,null,null,"Lysický Sebastián",6]
["2017-04-22","Murin","Jan",null,30,3,2,0,2,null,null,"Murin Jan",6]
["2017-04-22","Nuhlíček","Jakub",2007,30,1,4,0,0,null,null,"Nuhlíček Jakub",12]
["2017-04-22","Starý","Patrik",null,30,5,0,0,4,null,null,"Starý Patrik",1]
["2017-04-22","Ryška","Filip",null,30,2,2,0,2,null,null,"Ryška Filip",7]
["2017-04-22","Zwilling","Šimon",null,36,1,3,0,0,null,null,"Zwilling Šimon",10]
["2017-04-22","Kubala","Marek",null,36,4,0,0,3,null,null,"Kubala Marek",1]
["2017-04-22","Dokoupilová","Anna",null,36,3,1,0,2,null,null,"Dokoupilová Anna",4]
["2017-04-22","Kožušník","Václav",null,36,2,2,0,1,null,null,"Kožušník Václav",7]
["2017-04-22","Blažek","Daniel",null,44,1,3,0,1,null,null,"Blažek Daniel",10]
["2017-04-22","Buček","Dan",null,44,5,0,0,4,null,null,"Buček Dan",1]
["2017-04-22","Šimkovič","Ondřej",null,44,2,3,0,1,null,null,"Šimkovič Ondřej",9]
["2017-04-22","Titze","Jakub",null,44,3,3,0,1,null,null,"Titze Jakub",8]
["2017-04-22","Maršálek","Harry",null,44,4,1,0,3,null,null,"Maršálek Harry",3]
["2017-04-22","Blaho","Dominik",null,45,2,2,0,2,null,null,"Blaho Dominik",7]
["2017-04-22","Sikora","Tomáš",2004,45,2,2,0,2,null,null,"Sikora Tomáš",7]
["2017-04-22","Závodný","Matyáš",null,45,4,2,0,2,null,null,"Závodný Matyáš",5]
["2017-04-22","Čech","Jiří",null,45,1,4,0,0,null,null,"Čech Jiří",12]
["2017-04-22","Benáčková","Denisa",null,45,5,0,0,4,null,null,"Benáčková Denisa",{"$f":"IF(ISBLANK(F195),\"\",IF(F195<4,CHOOSE(F195,3,2,1),0)+G195*2+H195+1)","v":1}]
["2017-05-24","Nováček","Nikolas",null,28,2,1,0,1,null,null,"Nováček Nikolas",5]
["2017-05-24","Šelong","Tadeáš",null,28,3,0,0,2,null,null,"Šelong Tadeáš",2]
["2017-05-24","Kuluris","Manolis",2009,28,1,2,0,0,4,200,"Kuluris Manolis",8]
["2017-05-24","Boček","Petr",null,24,5,0,0,4,null,null,"Boček Petr",1]
["2017-05-24","Krčmář","Michal",null,22,2,3,0,1,null,null,"Krčmář Michal",9]
["2017-05-24","Vlk","František",2008,42,1,2,0,0,null,null,"Vlk František",8]
["2017-05-24","Zwilling","Šimon",null,35,1,3,0,0,null,null,"Zwilling Šimon",10]
["2017-05-24","Malinovský","Jiří",2008,35,2,2,0,1,null,null,"Malinovský Jiří",7]
["2017-05-24","Blahová","Alexandra",2007,32,1,2,0,0,null,null,"Blahová Alexandra",8]
["2017-05-24","Krčmář","Matěj",null,31,3,0,0,2,null,null,"Krčmář Matěj",2]
["2017-05-24","Stark","Vojtěch",null,28,2,2,0,2,null,null,"Stark Vojtěch",7]
["2017-05-24","Mařec","Tomáš",2008,27,1,4,0,0,null,null,"Mařec Tomáš",12]
["2017-05-24","Valošek","Jakub",2008,27,3,1,0,3,null,null,"Valošek Jakub",4]
["2017-05-24","Blaho","Dominik",null,45,1,2,0,0,null,null,"Blaho Dominik",8]
["2017-05-24","Lošáková","Lucie",null,45,3,0,0,2,null,null,"Lošáková Lucie",2]
["2017-05-24","Hladík","Václav",null,35,1,2,0,0,null,null,"Hladík Václav",8]
["2017-09-24","Přichystal","Leon",2009,30,4,1,0,3,2,100,"Přichystal Leon",3]
["2017-09-24","Nuhlíček","Michal",2009,30,1,3,0,1,6,210,"Nuhlíček Michal",10]
["2017-09-24","Ciora ","Jakub",2009,30,1,3,0,1,6,210,"Ciora  Jakub",10]
["2017-09-24","Skořupa","Matěj",2010,30,5,0,0,4,0,0,"Skořupa Matěj",1]
["2017-09-24","Fojtík","Jiří Václav",2008,30,3,3,0,1,6,102,"Fojtík Jiří Václav",8]
["2017-09-24","Lukas","Daniel",2007,33,3,1,0,3,2,10,"Lukas Daniel",4]
["2017-09-24","Nuhlíček","Jakub",2007,33,2,3,0,1,6,120,"Nuhlíček Jakub",9]
["2017-09-24","Bartošic","Sebastián",2008,33,5,1,0,3,2,1,"Bartošic Sebastián",3]
["2017-09-24","Murin","Jan",2008,33,3,1,0,3,2,10,"Murin Jan",4]
["2017-09-24","Ryška","Filip",2008,33,1,4,0,0,8,220,"Ryška Filip",12]
["2017-09-24","Kuluris","Manolis",2009,29,1,4,0,0,8,310,"Kuluris Manolis",12]
["2017-09-24","Mařec","Tomáš",2008,29,2,3,0,1,6,300,"Mařec Tomáš",9]
["2017-09-24","Lysický","Sebastián",2008,29,3,2,0,2,4,200,"Lysický Sebastián",6]
["2017-09-24","Peter","Matyáš",2010,29,4,1,0,3,2,100,"Peter Matyáš",3]
["2017-09-24","Valošek","Jakub",2008,29,5,0,0,4,0,0,"Valošek Jakub",1]
["2017-09-24","To","Vojtěch",2009,23,1,2,0,0,4,110,"To Vojtěch",8]
["2017-09-24","Roztomilý","Ondřej",2010,23,3,0,0,2,0,0,"Roztomilý Ondřej",2]
["2017-09-24","Mazura","Vladislav",2010,23,2,1,0,1,2,1,"Mazura Vladislav",5]
["2017-09-24","Stark","Vojtěch",2009,37,2,2,0,1,4,200,"Stark Vojtěch",7]
["2017-09-24","Polášek","Vojtěch",2008,37,4,0,0,3,0,0,"Polášek Vojtěch",1]
["2017-09-24","Tichý","Ondřej",2007,37,3,1,0,2,2,100,"Tichý Ondřej",4]
["2017-09-24","Malinovský","Jiří",2008,37,1,3,0,0,6,300,"Malinovský Jiří",10]
["2017-09-24","Šumský","Miroslav",2004,42,1,3,0,0,6,300,"Šumský Miroslav",10]
["2017-09-24","Grauer","Lukáš",2005,42,2,2,0,1,4,200,{"$f":"B235&\" \"&C235","v":"Grauer Lukáš"},7]
["2017-09-24","Břežný","Filip",2008,42,4,0,0,3,0,0,"Břežný Filip",1]
["2017-09-24","Románek","Jakub",2008,42,3,1,0,2,2,100,"Románek Jakub",4]
["2017-09-24","Vlk","František",2008,46,1,2,0,0,4,200,"Vlk František",8]
["2017-09-24","Jahodová","Petra",2007,46,2,1,0,1,2,1,"Jahodová Petra",5]
["2017-09-24","Buček","Dan",2007,46,3,0,0,2,0,0,"Buček Dan",2]
["2017-09-24","Šimkovič","Ondřej",2007,50,3,0,0,2,0,0,"Šimkovič Ondřej",2]
["2017-09-24","Grauerová","Kateřina",2004,50,1,2,0,0,4,200,"Grauerová Kateřina",8]
["2017-09-24","Maršálek","Harry",2007,50,2,1,0,1,2,100,"Maršálek Harry",5]
["2017-09-24","Zakaryan","Erik",2006,61,null,null,null,null,null,null,"Zakaryan Erik",""]
["2017-10-21","Ryška","Filip",null,35,1,3,1,0,300,0,"Ryška Filip",11]
["2017-10-21","Tichý","Ondřej",null,35,1,3,1,0,300,0,"Tichý Ondřej",11]
["2017-10-21","Dvořáčková","Apolena",null,35,3,2,0,2,200,200,"Dvořáčková Apolena",6]
["2017-10-21","Polášek","Vojtěch",null,35,4,1,0,3,100,300,"Polášek Vojtěch",3]
["2017-10-21","Lasák","Robert",null,35,5,0,0,4,0,400,"Lasák Robert",1]
["2017-10-21","Malinovský","Jiří",null,37,1,2,0,1,200,100,"Malinovský Jiří",8]
["2017-10-21","Bukovjanová","Charlotte",null,37,3,1,0,2,100,200,"Bukovjanová Charlotte",4]
["2017-10-21","Dragon","Dominik",null,37,2,2,0,1,200,100,"Dragon Dominik",7]
["2017-10-21","Kubala","Martin",null,37,4,1,0,2,100,200,"Kubala Martin",3]
["2017-10-21","Kožušník","Václav",null,42,3,1,0,2,100,200,"Kožušník Václav",4]
["2017-10-21","Nováková","Emma",null,42,4,0,0,3,0,300,"Nováková Emma",1]
["2017-10-21","Horák","Richard",null,42,1,3,0,0,300,0,"Horák Richard",10]
["2017-10-21","Románek","Jakub",null,42,2,2,0,1,200,100,"Románek Jakub",7]
["2017-10-21","Valentík","Tomáš",null,45,1,3,0,0,300,100,"Valentík Tomáš",10]
["2017-10-21","Štverka","Matyáš",null,45,3,1,0,2,100,200,"Štverka Matyáš",{"$f":"IF(ISBLANK(F259),\"\",IF(F259<4,CHOOSE(F259,3,2,1),0)+G259*2+H259+1)","v":4}]
["2017-10-21","Buček","Dan",null,45,4,0,0,3,0,300,"Buček Dan",1]
["2017-10-21","Lošáková","Lucie",null,45,2,2,0,2,200,200,"Lošáková Lucie",7]
["2017-10-21","Šimkovič","Ondřej",null,50,3,1,0,2,100,200,"Šimkovič Ondřej",4]
["2017-10-21","Brož","Ondřej",null,50,1,3,0,0,300,0,"Brož Ondřej",10]
["2017-10-21","Grauerová","Kateřina",null,50,2,2,0,1,200,100,"Grauerová Kateřina",7]
["2017-10-21","Maršálek","Harry",null,50,4,0,0,3,0,300,"Maršálek Harry",1]
["2017-10-21","Pithrman","Daniel",null,23.6,3,0,0,2,0,200,"Pithrman Daniel",2]
["2017-10-21","Juřica","Radek",null,23.6,2,1,0,1,100,100,"Juřica Radek",5]
["2017-10-21","Přidal","Ladislav",null,23.6,1,2,0,0,200,0,"Přidal Ladislav",8]
["2017-10-21","Káňová","Barbora",null,26,3,1,0,2,100,200,"Káňová Barbora",4]
["2017-10-21","Nuhlíček","Michal",null,26,1,3,0,0,300,0,"Nuhlíček Michal",10]
["2017-10-21","Nováček","Nikolas",null,26,2,2,0,1,200,100,"Nováček Nikolas",7]
["2017-10-21","Bukovský","Ondřej",null,26,4,0,0,3,0,300,"Bukovský Ondřej",1]
["2017-10-21","Lanča","Eduard",null,28,1,3,0,0,300,0,"Lanča Eduard",10]
["2017-10-21","Vlach","Antonín",null,28,4,0,0,3,0,300,"Vlach Antonín",1]
["2017-10-21","Kret","Matyáš",null,28,3,1,0,2,100,200,"Kret Matyáš",4]
["2017-10-21","Doubek","Benjamin",null,28,2,2,0,2,200,200,"Doubek Benjamin",7]
["2017-10-21","Stebnická","Lucie",null,30,5,0,0,4,0,400,"Stebnická Lucie",1]
["2017-10-21","Nuhlíček","Jakub",null,30,1,4,0,0,400,0,"Nuhlíček Jakub",12]
["2017-10-21","Slováková","Tereza",null,30,4,1,0,3,100,300,"Slováková Tereza",3]
["2017-10-21","Lysický","Sebastián",null,30,2,3,0,1,300,100,"Lysický Sebastián",9]
["2017-10-21","Bartošic","Sebastián",null,30,3,2,0,2,200,200,"Bartošic Sebastián",6]
["2017-10-21","To","Vojtěch",null,21,1,2,0,0,200,0,"To Vojtěch",8]
["2017-10-21","Boček","Petr",null,21,3,0,0,3,0,300,"Boček Petr",2]
["2017-10-21","Tomica","Daniel",null,21,2,1,0,1,100,100,"Tomica Daniel",5]
["2017-10-21","Lukas","Daniel",null,32,4,0,0,3,0,300,"Lukas Daniel",1]
["2017-10-21","Bukovská","Barbora",null,32,3,0,0,2,0,200,"Bukovská Barbora",2]
["2017-10-21","Starý","Patrik",null,32,2,1,0,1,100,100,"Starý Patrik",5]
["2017-10-21","Vrbas","Alexander",null,32,1,3,0,0,200,0,"Vrbas Alexander",10]
["2017-11-11","To","Vojtěch",null,20,1,2,0,0,200,0,"To Vojtěch",8]
["2017-11-11","Boček","Petr",null,20,2,0,1,0,0,0,"Boček Petr",4]
["2017-11-11","Holek","Filip",null,20,2,0,1,0,0,0,"Holek Filip",4]
["2017-11-11","Ciora","Jakub",null,26,1,2,1,0,200,0,"Ciora Jakub",9]
["2017-11-11","Nuhlíček","Michal",null,26,1,2,1,0,200,0,"Nuhlíček Michal",9]
["2017-11-11","Šindel","Jakub",null,26,4,0,0,3,0,300,"Šindel Jakub",1]
["2017-11-11","Foldýnová","Sabina",null,26,3,1,0,2,100,200,"Foldýnová Sabina",4]
["2017-11-11","Doubek","Benjamin",null,30,1,2,1,0,200,0,"Doubek Benjamin",9]
["2017-11-11","Bartošic","Sebastián",null,30,1,2,1,0,200,0,"Bartošic Sebastián",9]
["2017-11-11","Staněk","Patrik",null,30,3,1,0,2,100,200,"Staněk Patrik",4]
["2017-11-11","Satora","David",null,30,4,0,0,3,0,300,{"$f":"B299&\" \"&C299","v":"Satora David"},1]
["2017-11-11","Havelka","Josef",null,42,1,2,1,0,200,0,"Havelka Josef",9]
["2017-11-11","Havelka","Štěpán",null,42,1,2,1,0,200,0,"Havelka Štěpán",9]
["2017-11-11","Kubik","Lukáš",null,42,3,1,0,2,100,200,"Kubik Lukáš",4]
["2017-11-11","Korytář","Dan",null,42,4,0,0,3,0,300,"Korytář Dan",1]
["2017-11-11","Malinovský","Jiří",null,38,1,4,0,0,400,0,"Malinovský Jiří",12]
["2017-11-11","Kubala","Marek",null,38,2,3,0,0,300,0,"Kubala Marek",9]
["2017-11-11","Polášek","Vojtěch",null,38,3,2,0,2,200,200,"Polášek Vojtěch",6]
["2017-11-11","Korytář","Adam",null,38,4,1,0,3,100,300,"Korytář Adam",3]
["2017-11-11","Coccia","Francesco",null,38,5,0,0,4,0,400,"Coccia Francesco",1]
["2017-11-11","Valentík","Lukáš",null,44,1,2,0,0,200,0,"Valentík Lukáš",8]
["2017-11-11","Kobiernicki","Marek",null,44,2,1,0,1,100,100,"Kobiernicki Marek",5]
["2017-11-11","Grauer","Lukáš",null,44,3,0,0,2,0,200,"Grauer Lukáš",2]
["2017-11-11","Skácel","Antonín",null,57,1,3,0,0,300,0,"Skácel Antonín",10]
["2017-11-11","Rechtík","Metoděj",null,57,2,2,0,1,200,100,"Rechtík Metoděj",7]
["2017-11-11","Kališík","Jakub",null,57,3,1,0,2,100,200,"Kališík Jakub",4]
["2017-11-11","Widziolek","Richard",null,57,4,0,0,3,0,300,"Widziolek Richard",1]
["2017-11-11","Přidal","Ladislav",null,23.5,1,3,0,0,300,0,"Přidal Ladislav",10]
["2017-11-11","Kotouček","Marek",null,23.5,2,1,1,1,200,100,"Kotouček Marek",6]
["2017-11-11","Pittrman","Daniel",null,23.5,2,1,1,1,200,100,"Pittrman Daniel",6]
["2017-11-11","Krčmář","Michal",null,23.5,4,0,0,3,0,300,"Krčmář Michal",1]
["2017-11-11","Nuhlíček","Jakub",null,30,1,4,0,0,400,0,"Nuhlíček Jakub",12]
["2017-11-11","Valošek","Jakub",null,30,2,3,0,1,300,100,"Valošek Jakub",9]
["2017-11-11","Vjaclovský","David",null,30,3,2,0,2,200,200,"Vjaclovský David",6]
["2017-11-11","Fojtík","Jiří",null,30,3,2,0,2,200,200,"Fojtík Jiří",{"$f":"IF(ISBLANK(F323),\"\",IF(F323<4,CHOOSE(F323,3,2,1),0)+G323*2+H323+1)","v":6}]
["2017-11-11","Kreutz","Martin",null,30,5,0,0,4,0,400,"Kreutz Martin",1]
["2017-11-11","Krčmář","Matěj",null,30,1,3,0,0,300,0,"Krčmář Matěj",10]
["2017-11-11","Macháček","Tomáš",null,30,2,2,0,1,200,100,"Macháček Tomáš",7]
["2017-11-11","Šelong","Tadeáš",null,30,3,1,0,2,100,200,"Šelong Tadeáš",4]
["2017-11-11","Figar","Jan",null,30,4,0,0,3,0,300,"Figar Jan",1]
["2017-11-11","Vrbas","Alexander",null,34,1,3,1,0,300,0,"Vrbas Alexander",{"$f":"IF(ISBLANK(F329),\"\",IF(F329<4,CHOOSE(F329,3,2,1),0)+G329*2+H329+1)","v":11}]
["2017-11-11","Sládek","Maxmilián",null,34,1,3,1,0,300,0,"Sládek Maxmilián",{"$f":"IF(ISBLANK(F330),\"\",IF(F330<4,CHOOSE(F330,3,2,1),0)+G330*2+H330+1)","v":11}]
["2017-11-11","Kanclíř","Šimon",null,34,3,2,0,2,200,200,"Kanclíř Šimon",6]
["2017-11-11","Pröschl","Jakub",null,34,4,1,0,3,100,300,"Pröschl Jakub",3]
["2017-11-11","Gilová","Eliška",null,34,5,0,0,4,0,400,"Gilová Eliška",1]
["2017-11-11","Šumský","Miroslav",null,40,1,3,0,0,300,0,"Šumský Miroslav",10]
["2017-11-11","Kristen","Nikolas",null,40,2,2,0,1,200,100,"Kristen Nikolas",7]
["2017-11-11","Horák","Richard",null,40,3,1,0,2,100,200,"Horák Richard",4]
["2017-11-11","Kožušník","Václav",null,40,4,0,0,3,0,300,"Kožušník Václav",1]
["2017-11-11","Štverka","Matyáš",null,47,1,1,1,0,100,0,"Štverka Matyáš",7]
["2017-11-11","Šimkovič","Ondřej",null,47,1,1,1,0,100,0,"Šimkovič Ondřej",7]
["2017-11-11","Buček","Dan",null,47,3,0,0,2,0,200,"Buček Dan",2]
[null,null,null,null,null,null,null,null,null,null,null," ",""]
[null,null,null,null,null,null,null,null,null,null,null," ",""]
[null,null,null,null,null,null,null,null,null,null,null," ",""]
[null,null,null,null,null,null,null,null,null,null,null," ",""]
[null,null,null,null,null,null,null,null,null,null,null," ",""]
[null,null,null,null,null,null,null,null,null,null,null," ",""]
[null,null,null,null,null,null,null,null,null,null,null," ",""]
[null,null,null,null,null,null,null,null,null,null,null," ",""]
[null,null,null,null,null,null,null,null,null,null,null," ",""]
[null,null,null,null,null,null,null,null,null,null,null," ",""]
[null,null,null,null,null,null,null,null,null,null,null," ",""]
[null,null,null,null,null,null,null,null,null,null,null," ",""]
[null,null,null,null,null,null,null,null,null,null,null," ",""]
[null,null,null,null,null,null,null,null,null,null,null," ",""]
[null,null,null,null,null,null,null,null,null,null,null," ",""]
[null,null,null,null,null,null,null,null,null,null,null," ",""]
[null,null,null,null,null,null,null,null,null,null,null," ",""]
[null,null,null,null,null,null,null,null,null,null,null," ",""]
[null,null,null,null,null,null,null,null,null,null,null," ",""]
[null,null,null,null,null,null,null,null,null,null,null," ",""]
[null,null,null,null,null,null,null,null,null,null,null," ",""]
[null,null,null,null,null,null,null,null,null,null,null," ",""]
[null,null,null,null,null,null,null,null,null,null,null,{"$f":"B363&\" \"&C363","v":" "},""]
[null,null,null,null,null,null,null,null,null,null,null," ",""]
[null,null,null,null,null,null,null,null,null,null,null," ",""]
[null,null,null,null,null,null,null,null,null,null,null," ",""]
[null,null,null,null,null,null,null,null,null,null,null," ",""]
[null,null,null,null,null,null,null,null,null,null,null," ",""]
[null,null,null,null,null,null,null,null,null,null,null," ",""]
[null,null,null,null,null,null,null,null,null,null,null," ",""]
[null,null,null,null,null,null,null,null,null,null,null," ",""]
[null,null,null,null,null,null,null,null,null,null,null," ",""]
[null,null,null,null,null,null,null,null,null,null,null," ",""]
[null,null,null,null,null,null,null,null,null,null,null," ",""]
[null,null,null,null,null,null,null,null,null,null,null," ",""]
[null,null,null,null,null,null,null,null,null,null,null," ",""]
[null,null,null,null,null,null,null,null,null,null,null," ",""]
[null,null,null,null,null,null,null,null,null,null,null," ",""]
[null,null,null,null,null,null,null,null,null,null,null," ",""]
[null,null,null,null,null,null,null,null,null,null,null," ",""]
[null,null,null,null,null,null,null,null,null,null,null," ",""]
[null,null,null,null,null,null,null,null,null,null,null," ",""]
[null,null,null,null,null,null,null,null,null,null,null," ",""]
[null,null,null,null,null,null,null,null,null,null,null," ",""]
[null,null,null,null,null,null,null,null,null,null,null," ",""]
[null,null,null,null,null,null,null,null,null,null,null," ",""]
[null,null,null,null,null,null,null,null,null,null,null," ",{"$f":"IF(ISBLANK(F387),\"\",IF(F387<4,CHOOSE(F387,3,2,1),0)+G387*2+H387+1)","v":""}]
[null,null,null,null,null,null,null,null,null,null,null," ",""]
[null,null,null,null,null,null,null,null,null,null,null," ",""]
[null,null,null,null,null,null,null,null,null,null,null," ",""]
[null,null,null,null,null,null,null,null,null,null,null," ",""]
[null,null,null,null,null,null,null,null,null,null,null," ",""]
[null,null,null,null,null,null,null,null,null,null,null," ",""]
[null,null,null,null,null,null,null,null,null,null,null," ",""]
[null,null,null,null,null,null,null,null,null,null,null," ",""]
[null,null,null,null,null,null,null,null,null,null,null," ",""]
[null,null,null,null,null,null,null,null,null,null,null," ",""]
[null,null,null,null,null,null,null,null,null,null,null," ",""]
[null,null,null,null,null,null,null,null,null,null,null," ",""]
[null,null,null,null,null,null,null,null,null,null,null," ",""]
[null,null,null,null,null,null,null,null,null,null,null," ",""]
[null,null,null,null,null,null,null,null,null,null,null," ",""]
[null,null,null,null,null,null,null,null,null,null,null," ",""]
[null,null,null,null,null,null,null,null,null,null,null," ",""]
[null,null,null,null,null,null,null,null,null,null,null," ",""]
[null,null,null,null,null,null,null,null,null,null,null," ",""]
[null,null,null,null,null,null,null,null,null,null,null," ",""]
[null,null,null,null,null,null,null,null,null,null,null," ",""]
[null,null,null,null,null,null,null,null,null,null,null," ",""]
[null,null,null,null,null,null,null,null,null,null,null," ",""]
[null,null,null,null,null,null,null,null,null,null,null," ",""]
[null,null,null,null,null,null,null,null,null,null,null," ",""]
[null,null,null,null,null,null,null,null,null,null,null," ",""]
[null,null,null,null,null,null,null,null,null,null,null," ",""]
[null,null,null,null,null,null,null,null,null,null,null," ",""]
[null,null,null,null,null,null,null,null,null,null,null," ",""]
[null,null,null,null,null,null,null,null,null,null,null," ",""]
[null,null,null,null,null,null,null,null,null,null,null," ",""]
[null,null,null,null,null,null,null,null,null,null,null," ",""]
[null,null,null,null,null,null,null,null,null,null,null," ",""]
[null,null,null,null,null,null,null,null,null,null,null," ",""]
[null,null,null,null,null,null,null,null,null,null,null," ",""]
[null,null,null,null,null,null,null,null,null,null,null," ",""]
[null,null,null,null,null,null,null,null,null,null,null," ",""]
[null,null,null,null,null,null,null,null,null,null,null," ",""]
[null,null,null,null,null,null,null,null,null,null,null," ",""]
[null,null,null,null,null,null,null,null,null,null,null,{"$f":"B427&\" \"&C427","v":" "},""]
[null,null,null,null,null,null,null,null,null,null,null," ",""]
[null,null,null,null,null,null,null,null,null,null,null," ",""]
[null,null,null,null,null,null,null,null,null,null,null," ",""]
[null,null,null,null,null,null,null,null,null,null,null," ",""]
[null,null,null,null,null,null,null,null,null,null,null," ",""]
[null,null,null,null,null,null,null,null,null,null,null," ",""]
[null,null,null,null,null,null,null,null,null,null,null," ",""]
[null,null,null,null,null,null,null,null,null,null,null," ",""]
[null,null,null,null,null,null,null,null,null,null,null," ",""]
[null,null,null,null,null,null,null,null,null,null,null," ",""]
[null,null,null,null,null,null,null,null,null,null,null," ",""]
[null,null,null,null,null,null,null,null,null,null,null," ",""]
[null,null,null,null,null,null,null,null,null,null,null," ",""]
[null,null,null,null,null,null,null,null,null,null,null," ",""]
[null,null,null,null,null,null,null,null,null,null,null," ",""]
[null,null,null,null,null,null,null,null,null,null,null," ",""]
[null,null,null,null,null,null,null,null,null,null,null," ",""]
[null,null,null,null,null,null,null,null,null,null,null," ",""]
[null,null,null,null,null,null,null,null,null,null,null," ",""]
[null,null,null,null,null,null,null,null,null,null,null," ",""]
[null,null,null,null,null,null,null,null,null,null,null," ",""]
[null,null,null,null,null,null,null,null,null,null,null," ",""]
[null,null,null,null,null,null,null,null,null,null,null," ",""]
[null,null,null,null,null,null,null,null,null,null,null," ",{"$f":"IF(ISBLANK(F451),\"\",IF(F451<4,CHOOSE(F451,3,2,1),0)+G451*2+H451+1)","v":""}]
[null,null,null,null,null,null,null,null,null,null,null," ",""]
[null,null,null,null,null,null,null,null,null,null,null," ",""]
[null,null,null,null,null,null,null,null,null,null,null," ",""]
[null,null,null,null,null,null,null,null,null,null,null," ",""]
[null,null,null,null,null,null,null,null,null,null,null," ",""]
[null,null,null,null,null,null,null,null,null,null,null," ",""]
[null,null,null,null,null,null,null,null,null,null,null," ",""]
[null,null,null,null,null,null,null,null,null,null,null," ",""]
[null,null,null,null,null,null,null,null,null,null,null," ",""]
[null,null,null,null,null,null,null,null,null,null,null," ",""]
[null,null,null,null,null,null,null,null,null,null,null," ",""]
[null,null,null,null,null,null,null,null,null,null,null," ",""]
[null,null,null,null,null,null,null,null,null,null,null," ",""]
[null,null,null,null,null,null,null,null,null,null,null," ",""]
[null,null,null,null,null,null,null,null,null,null,null," ",""]
[null,null,null,null,null,null,null,null,null,null,null," ",""]
[null,null,null,null,null,null,null,null,null,null,null," ",""]
[null,null,null,null,null,null,null,null,null,null,null," ",""]
[null,null,null,null,null,null,null,null,null,null,null," ",""]
[null,null,null,null,null,null,null,null,null,null,null," ",""]
[null,null,null,null,null,null,null,null,null,null,null," ",""]
[null,null,null,null,null,null,null,null,null,null,null," ",""]
[null,null,null,null,null,null,null,null,null,null,null," ",""]
[null,null,null,null,null,null,null,null,null,null,null," ",""]
[null,null,null,null,null,null,null,null,null,null,null," ",""]
[null,null,null,null,null,null,null,null,null,null,null," ",""]
[null,null,null,null,null,null,null,null,null,null,null," ",""]
[null,null,null,null,null,null,null,null,null,null,null," ",""]
[null,null,null,null,null,null,null,null,null,null,null," ",""]
[null,null,null,null,null,null,null,null,null,null,null," ",""]
[null,null,null,null,null,null,null,null,null,null,null," ",""]
[null,null,null,null,null,null,null,null,null,null,null," ",{"$f":"IF(ISBLANK(F483),\"\",IF(F483<4,CHOOSE(F483,3,2,1),0)+G483*2+H483+1)","v":""}]
[null,null,null,null,null,null,null,null,null,null,null," ",""]
[null,null,null,null,null,null,null,null,null,null,null," ",""]
[null,null,null,null,null,null,null,null,null,null,null," ",""]
[null,null,null,null,null,null,null,null,null,null,null," ",""]
[null,null,null,null,null,null,null,null,null,null,null," ",""]
[null,null,null,null,null,null,null,null,null,null,null," ",""]
[null,null,null,null,null,null,null,null,null,null,null," ",""]
[null,null,null,null,null,null,null,null,null,null,null,{"$f":"B491&\" \"&C491","v":" "},""]
[null,null,null,null,null,null,null,null,null,null,null," ",""]
[null,null,null,null,null,null,null,null,null,null,null," ",""]
[null,null,null,null,null,null,null,null,null,null,null," ",""]
[null,null,null,null,null,null,null,null,null,null,null," ",""]
[null,null,null,null,null,null,null,null,null,null,null," ",""]
[null,null,null,null,null,null,null,null,null,null,null," ",""]
[null,null,null,null,null,null,null,null,null,null,null," ",""]
[null,null,null,null,null,null,null,null,null,null,null," ",""]
[null,null,null,null,null,null,null,null,null,null,null,{"$f":"B500&\" \"&C500","v":" "},{"$f":"IF(ISBLANK(F500),\"\",IF(F500<4,CHOOSE(F500,3,2,1),0)+G500*2+H500+1)","v":""}]
[null,null,null,null,null,null,null,null,null,null,null," ",""]
[null,null,null,null,null,null,null,null,null,null,null," ",""]
[null,null,null,null,null,null,null,null,null,null,null," ",""]
[null,null,null,null,null,null,null,null,null,null,null," ",""]
[null,null,null,null,null,null,null,null,null,null,null," ",""]
[null,null,null,null,null,null,null,null,null,null,null," ",""]
[null,null,null,null,null,null,null,null,null,null,null," ",""]
[null,null,null,null,null,null,null,null,null,null,null," ",""]
[null,null,null,null,null,null,null,null,null,null,null," ",""]
[null,null,null,null,null,null,null,null,null,null,null," ",""]
[null,null,null,null,null,null,null,null,null,null,null," ",""]
[null,null,null,null,null,null,null,null,null,null,null," ",""]
[null,null,null,null,null,null,null,null,null,null,null," ",""]
[null,null,null,null,null,null,null,null,null,null,null," ",""]
[null,null,null,null,null,null,null,null,null,null,null," ",""]
[null,null,null,null,null,null,null,null,null,null,null," ",""]
[null,null,null,null,null,null,null,null,null,null,null," ",""]
[null,null,null,null,null,null,null,null,null,null,null," ",""]
[null,null,null,null,null,null,null,null,null,null,null," ",""]
[null,null,null,null,null,null,null,null,null,null,null," ",""]
[null,null,null,null,null,null,null,null,null,null,null," ",""]
[null,null,null,null,null,null,null,null,null,null,null," ",""]
[null,null,null,null,null,null,null,null,null,null,null," ",""]
[null,null,null,null,null,null,null,null,null,null,null," ",""]
[null,null,null,null,null,null,null,null,null,null,null," ",""]
[null,null,null,null,null,null,null,null,null,null,null," ",""]
[null,null,null,null,null,null,null,null,null,null,null," ",""]
[null,null,null,null,null,null,null,null,null,null,null," ",""]
[null,null,null,null,null,null,null,null,null,null,null," ",""]
[null,null,null,null,null,null,null,null,null,null,null," ",""]
[null,null,null,null,null,null,null,null,null,null,null," ",""]
[null,null,null,null,null,null,null,null,null,null,null," ",""]
[null,null,null,null,null,null,null,null,null,null,null," ",""]
[null,null,null,null,null,null,null,null,null,null,null," ",""]
[null,null,null,null,null,null,null,null,null,null,null," ",""]
[null,null,null,null,null,null,null,null,null,null,null," ",""]
[null,null,null,null,null,null,null,null,null,null,null," ",""]
[null,null,null,null,null,null,null,null,null,null,null," ",""]
[null,null,null,null,null,null,null,null,null,null,null," ",""]
[null,null,null,null,null,null,null,null,null,null,null," ",""]
[null,null,null,null,null,null,null,null,null,null,null," ",""]
[null,null,null,null,null,null,null,null,null,null,null," ",""]
[null,null,null,null,null,null,null,null,null,null,null," ",""]
[null,null,null,null,null,null,null,null,null,null,null," ",""]
[null,null,null,null,null,null,null,null,null,null,null," ",""]
[null,null,null,null,null,null,null,null,null,null,null," ",""]
[null,null,null,null,null,null,null,null,null,null,null," ",""]
[null,null,null,null,null,null,null,null,null,null,null," ",""]
[null,null,null,null,null,null,null,null,null,null,null," ",""]
[null,null,null,null,null,null,null,null,null,null,null," ",""]
[null,null,null,null,null,null,null,null,null,null,null," ",""]
[null,null,null,null,null,null,null,null,null,null,null," ",""]
[null,null,null,null,null,null,null,null,null,null,null," ",""]
[null,null,null,null,null,null,null,null,null,null,null," ",""]
[null,null,null,null,null,null,null,null,null,null,null," ",""]
[null,null,null,null,null,null,null,null,null,null,null," ",""]
[null,null,null,null,null,null,null,null,null,null,null," ",""]
[null,null,null,null,null,null,null,null,null,null,null," ",""]
[null,null,null,null,null,null,null,null,null,null,null," ",""]
[null,null,null,null,null,null,null,null,null,null,null," ",""]
[null,null,null,null,null,null,null,null,null,null,null," ",""]
[null,null,null,null,null,null,null,null,null,null,null," ",""]
[null,null,null,null,null,null,null,null,null,null,null," ",""]
[null,null,null,null,null,null,null,null,null,null,null,{"$f":"B564&\" \"&C564","v":" "},{"$f":"IF(ISBLANK(F564),\"\",IF(F564<4,CHOOSE(F564,3,2,1),0)+G564*2+H564+1)","v":""}]
[null,null,null,null,null,null,null,null,null,null,null," ",""]
[null,null,null,null,null,null,null,null,null,null,null," ",""]
[null,null,null,null,null,null,null,null,null,null,null," ",""]
[null,null,null,null,null,null,null,null,null,null,null," ",""]
[null,null,null,null,null,null,null,null,null,null,null," ",""]
[null,null,null,null,null,null,null,null,null,null,null," ",""]
[null,null,null,null,null,null,null,null,null,null,null," ",""]
[null,null,null,null,null,null,null,null,null,null,null," ",""]
[null,null,null,null,null,null,null,null,null,null,null," ",""]
[null,null,null,null,null,null,null,null,null,null,null," ",""]
[null,null,null,null,null,null,null,null,null,null,null," ",""]
[null,null,null,null,null,null,null,null,null,null,null," ",""]
[null,null,null,null,null,null,null,null,null,null,null," ",""]
[null,null,null,null,null,null,null,null,null,null,null," ",""]
[null,null,null,null,null,null,null,null,null,null,null," ",""]
[null,null,null,null,null,null,null,null,null,null,null," ",""]
[null,null,null,null,null,null,null,null,null,null,null," ",""]
[null,null,null,null,null,null,null,null,null,null,null," ",""]
[null,null,null,null,null,null,null,null,null,null,null," ",""]
[null,null,null,null,null,null,null,null,null,null,null," ",""]
[null,null,null,null,null,null,null,null,null,null,null," ",""]
[null,null,null,null,null,null,null,null,null,null,null," ",""]
[null,null,null,null,null,null,null,null,null,null,null," ",""]
[null,null,null,null,null,null,null,null,null,null,null," ",""]
[null,null,null,null,null,null,null,null,null,null,null," ",""]
[null,null,null,null,null,null,null,null,null,null,null," ",""]
[null,null,null,null,null,null,null,null,null,null,null," ",""]
[null,null,null,null,null,null,null,null,null,null,null," ",""]
[null,null,null,null,null,null,null,null,null,null,null," ",""]
[null,null,null,null,null,null,null,null,null,null,null," ",""]
[null,null,null,null,null,null,null,null,null,null,null," ",""]
[null,null,null,null,null,null,null,null,null,null,null," ",""]
[null,null,null,null,null,null,null,null,null,null,null," ",""]
[null,null,null,null,null,null,null,null,null,null,null," ",""]
[null,null,null,null,null,null,null,null,null,null,null," ",""]
[null,null,null,null,null,null,null,null,null,null,null," ",""]
[null,null,null,null,null,null,null,null,null,null,null," ",""]
[null,null,null,null,null,null,null,null,null,null,null," ",""]
[null,null,null,null,null,null,null,null,null,null,null," ",""]
[null,null,null,null,null,null,null,null,null,null,null," ",""]
[null,null,null,null,null,null,null,null,null,null,null," ",""]
[null,null,null,null,null,null,null,null,null,null,null," ",""]
[null,null,null,null,null,null,null,null,null,null,null," ",""]
[null,null,null,null,null,null,null,null,null,null,null," ",""]
[null,null,null,null,null,null,null,null,null,null,null," ",""]
[null,null,null,null,null,null,null,null,null,null,null," ",""]
[null,null,null,null,null,null,null,null,null,null,null," ",""]
[null,null,null,null,null,null,null,null,null,null,null," ",""]
[null,null,null,null,null,null,null,null,null,null,null," ",""]
[null,null,null,null,null,null,null,null,null,null,null," ",""]
[null,null,null,null,null,null,null,null,null,null,null," ",""]
[null,null,null,null,null,null,null,null,null,null,null," ",""]
[null,null,null,null,null,null,null,null,null,null,null," ",""]
[null,null,null,null,null,null,null,null,null,null,null," ",""]
[null,null,null,null,null,null,null,null,null,null,null," ",""]
[null,null,null,null,null,null,null,null,null,null,null," ",""]
[null,null,null,null,null,null,null,null,null,null,null," ",""]
[null,null,null,null,null,null,null,null,null,null,null," ",""]
[null,null,null,null,null,null,null,null,null,null,null," ",""]
[null,null,null,null,null,null,null,null,null,null,null," ",""]
[null,null,null,null,null,null,null,null,null,null,null," ",""]
[null,null,null,null,null,null,null,null,null,null,null," ",""]
[null,null,null,null,null,null,null,null,null,null,null," ",""]
[null,null,null,null,null,null,null,null,null,null,null,{"$f":"B628&\" \"&C628","v":" "},{"$f":"IF(ISBLANK(F628),\"\",IF(F628<4,CHOOSE(F628,3,2,1),0)+G628*2+H628+1)","v":""}]
[null,null,null,null,null,null,null,null,null,null,null," ",""]
[null,null,null,null,null,null,null,null,null,null,null," ",""]
[null,null,null,null,null,null,null,null,null,null,null," ",""]
[null,null,null,null,null,null,null,null,null,null,null," ",""]
[null,null,null,null,null,null,null,null,null,null,null," ",""]
[null,null,null,null,null,null,null,null,null,null,null," ",""]
[null,null,null,null,null,null,null,null,null,null,null," ",""]
[null,null,null,null,null,null,null,null,null,null,null," ",""]
[null,null,null,null,null,null,null,null,null,null,null," ",""]
[null,null,null,null,null,null,null,null,null,null,null," ",""]
[null,null,null,null,null,null,null,null,null,null,null," ",""]
[null,null,null,null,null,null,null,null,null,null,null," ",""]
[null,null,null,null,null,null,null,null,null,null,null," ",""]
[null,null,null,null,null,null,null,null,null,null,null," ",""]
[null,null,null,null,null,null,null,null,null,null,null," ",""]
[null,null,null,null,null,null,null,null,null,null,null," ",""]
[null,null,null,null,null,null,null,null,null,null,null," ",""]
[null,null,null,null,null,null,null,null,null,null,null," ",""]
[null,null,null,null,null,null,null,null,null,null,null," ",""]
[null,null,null,null,null,null,null,null,null,null,null," ",""]
[null,null,null,null,null,null,null,null,null,null,null," ",""]
[null,null,null,null,null,null,null,null,null,null,null," ",""]
[null,null,null,null,null,null,null,null,null,null,null," ",""]
[null,null,null,null,null,null,null,null,null,null,null," ",""]
[null,null,null,null,null,null,null,null,null,null,null," ",""]
[null,null,null,null,null,null,null,null,null,null,null," ",""]
[null,null,null,null,null,null,null,null,null,null,null," ",""]
[null,null,null,null,null,null,null,null,null,null,null," ",""]
[null,null,null,null,null,null,null,null,null,null,null," ",""]
[null,null,null,null,null,null,null,null,null,null,null," ",""]
[null,null,null,null,null,null,null,null,null,null,null," ",""]
[null,null,null,null,null,null,null,null,null,null,null," ",""]
[null,null,null,null,null,null,null,null,null,null,null," ",""]
[null,null,null,null,null,null,null,null,null,null,null," ",""]
[null,null,null,null,null,null,null,null,null,null,null," ",""]
[null,null,null,null,null,null,null,null,null,null,null," ",""]
[null,null,null,null,null,null,null,null,null,null,null," ",""]
[null,null,null,null,null,null,null,null,null,null,null," ",""]
[null,null,null,null,null,null,null,null,null,null,null," ",""]
[null,null,null,null,null,null,null,null,null,null,null," ",""]
[null,null,null,null,null,null,null,null,null,null,null," ",""]
[null,null,null,null,null,null,null,null,null,null,null," ",""]
[null,null,null,null,null,null,null,null,null,null,null," ",""]
[null,null,null,null,null,null,null,null,null,null,null," ",""]
[null,null,null,null,null,null,null,null,null,null,null," ",""]
[null,null,null,null,null,null,null,null,null,null,null," ",""]
[null,null,null,null,null,null,null,null,null,null,null," ",""]
[null,null,null,null,null,null,null,null,null,null,null," ",""]
[null,null,null,null,null,null,null,null,null,null,null," ",""]
[null,null,null,null,null,null,null,null,null,null,null," ",""]
[null,null,null,null,null,null,null,null,null,null,null," ",""]
[null,null,null,null,null,null,null,null,null,null,null," ",""]
[null,null,null,null,null,null,null,null,null,null,null," ",""]
[null,null,null,null,null,null,null,null,null,null,null," ",""]
[null,null,null,null,null,null,null,null,null,null,null," ",""]
[null,null,null,null,null,null,null,null,null,null,null," ",""]
[null,null,null,null,null,null,null,null,null,null,null," ",""]
[null,null,null,null,null,null,null,null,null,null,null," ",""]
[null,null,null,null,null,null,null,null,null,null,null," ",""]
[null,null,null,null,null,null,null,null,null,null,null," ",""]
[null,null,null,null,null,null,null,null,null,null,null," ",""]
[null,null,null,null,null,null,null,null,null,null,null," ",""]
[null,null,null,null,null,null,null,null,null,null,null," ",""]
[null,null,null,null,null,null,null,null,null,null,null,{"$f":"B692&\" \"&C692","v":" "},{"$f":"IF(ISBLANK(F692),\"\",IF(F692<4,CHOOSE(F692,3,2,1),0)+G692*2+H692+1)","v":""}]
[null,null,null,null,null,null,null,null,null,null,null," ",""]
[null,null,null,null,null,null,null,null,null,null,null," ",""]
[null,null,null,null,null,null,null,null,null,null,null," ",""]
[null,null,null,null,null,null,null,null,null,null,null," ",""]
[null,null,null,null,null,null,null,null,null,null,null," ",""]
[null,null,null,null,null,null,null,null,null,null,null," ",""]
[null,null,null,null,null,null,null,null,null,null,null," ",""]
[null,null,null,null,null,null,null,null,null,null,null," ",""]
[null,null,null,null,null,null,null,null,null,null,null," ",""]
[null,null,null,null,null,null,null,null,null,null,null," ",""]
[null,null,null,null,null,null,null,null,null,null,null," ",""]
[null,null,null,null,null,null,null,null,null,null,null," ",""]
[null,null,null,null,null,null,null,null,null,null,null," ",""]
[null,null,null,null,null,null,null,null,null,null,null," ",""]
[null,null,null,null,null,null,null,null,null,null,null," ",""]
[null,null,null,null,null,null,null,null,null,null,null," ",""]
[null,null,null,null,null,null,null,null,null,null,null," ",""]
[null,null,null,null,null,null,null,null,null,null,null," ",""]
[null,null,null,null,null,null,null,null,null,null,null," ",""]
[null,null,null,null,null,null,null,null,null,null,null," ",""]
[null,null,null,null,null,null,null,null,null,null,null," ",""]
[null,null,null,null,null,null,null,null,null,null,null," ",""]
[null,null,null,null,null,null,null,null,null,null,null," ",""]
[null,null,null,null,null,null,null,null,null,null,null," ",""]
[null,null,null,null,null,null,null,null,null,null,null," ",""]
[null,null,null,null,null,null,null,null,null,null,null," ",""]
[null,null,null,null,null,null,null,null,null,null,null," ",""]
[null,null,null,null,null,null,null,null,null,null,null," ",""]
[null,null,null,null,null,null,null,null,null,null,null," ",""]
[null,null,null,null,null,null,null,null,null,null,null," ",""]
[null,null,null,null,null,null,null,null,null,null,null," ",""]
[null,null,null,null,null,null,null,null,null,null,null," ",""]
[null,null,null,null,null,null,null,null,null,null,null," ",""]
[null,null,null,null,null,null,null,null,null,null,null," ",""]
[null,null,null,null,null,null,null,null,null,null,null," ",""]
[null,null,null,null,null,null,null,null,null,null,null," ",""]
[null,null,null,null,null,null,null,null,null,null,null," ",""]
[null,null,null,null,null,null,null,null,null,null,null," ",""]
[null,null,null,null,null,null,null,null,null,null,null," ",""]
[null,null,null,null,null,null,null,null,null,null,null," ",""]
[null,null,null,null,null,null,null,null,null,null,null," ",""]
[null,null,null,null,null,null,null,null,null,null,null," ",""]
[null,null,null,null,null,null,null,null,null,null,null," ",""]
[null,null,null,null,null,null,null,null,null,null,null," ",""]
[null,null,null,null,null,null,null,null,null,null,null," ",""]
[null,null,null,null,null,null,null,null,null,null,null," ",""]
[null,null,null,null,null,null,null,null,null,null,null," ",""]
[null,null,null,null,null,null,null,null,null,null,null," ",""]
[null,null,null,null,null,null,null,null,null,null,null," ",""]
[null,null,null,null,null,null,null,null,null,null,null," ",""]
[null,null,null,null,null,null,null,null,null,null,null," ",""]
[null,null,null,null,null,null,null,null,null,null,null," ",""]
[null,null,null,null,null,null,null,null,null,null,null," ",""]
[null,null,null,null,null,null,null,null,null,null,null," ",""]
[null,null,null,null,null,null,null,null,null,null,null," ",""]
[null,null,null,null,null,null,null,null,null,null,null," ",""]
[null,null,null,null,null,null,null,null,null,null,null," ",""]
[null,null,null,null,null,null,null,null,null,null,null," ",""]
[null,null,null,null,null,null,null,null,null,null,null," ",""]
[null,null,null,null,null,null,null,null,null,null,null," ",""]
[null,null,null,null,null,null,null,null,null,null,null," ",""]
[null,null,null,null,null,null,null,null,null,null,null," ",""]
[null,null,null,null,null,null,null,null,null,null,null," ",""]
[null,null,null,null,null,null,null,null,null,null,null,{"$f":"B756&\" \"&C756","v":" "},{"$f":"IF(ISBLANK(F756),\"\",IF(F756<4,CHOOSE(F756,3,2,1),0)+G756*2+H756+1)","v":""}]
[null,null,null,null,null,null,null,null,null,null,null," ",""]
[null,null,null,null,null,null,null,null,null,null,null," ",""]
[null,null,null,null,null,null,null,null,null,null,null," ",""]
[null,null,null,null,null,null,null,null,null,null,null," ",""]
[null,null,null,null,null,null,null,null,null,null,null," ",""]
[null,null,null,null,null,null,null,null,null,null,null," ",""]
[null,null,null,null,null,null,null,null,null,null,null," ",""]
[null,null,null,null,null,null,null,null,null,null,null," ",""]
[null,null,null,null,null,null,null,null,null,null,null," ",""]
[null,null,null,null,null,null,null,null,null,null,null," ",""]
[null,null,null,null,null,null,null,null,null,null,null," ",""]
[null,null,null,null,null,null,null,null,null,null,null," ",""]
[null,null,null,null,null,null,null,null,null,null,null," ",""]
[null,null,null,null,null,null,null,null,null,null,null," ",""]
[null,null,null,null,null,null,null,null,null,null,null," ",""]
[null,null,null,null,null,null,null,null,null,null,null," ",""]
[null,null,null,null,null,null,null,null,null,null,null," ",""]
[null,null,null,null,null,null,null,null,null,null,null," ",""]
[null,null,null,null,null,null,null,null,null,null,null," ",""]
[null,null,null,null,null,null,null,null,null,null,null," ",""]
[null,null,null,null,null,null,null,null,null,null,null," ",""]
[null,null,null,null,null,null,null,null,null,null,null," ",""]
[null,null,null,null,null,null,null,null,null,null,null," ",""]
[null,null,null,null,null,null,null,null,null,null,null," ",""]
[null,null,null,null,null,null,null,null,null,null,null," ",""]
[null,null,null,null,null,null,null,null,null,null,null," ",""]
[null,null,null,null,null,null,null,null,null,null,null," ",""]
[null,null,null,null,null,null,null,null,null,null,null," ",""]
[null,null,null,null,null,null,null,null,null,null,null," ",""]
[null,null,null,null,null,null,null,null,null,null,null," ",""]
[null,null,null,null,null,null,null,null,null,null,null," ",""]
[null,null,null,null,null,null,null,null,null,null,null," ",""]
[null,null,null,null,null,null,null,null,null,null,null," ",""]
[null,null,null,null,null,null,null,null,null,null,null," ",""]
[null,null,null,null,null,null,null,null,null,null,null," ",""]
[null,null,null,null,null,null,null,null,null,null,null," ",""]
[null,null,null,null,null,null,null,null,null,null,null," ",""]
[null,null,null,null,null,null,null,null,null,null,null," ",""]
[null,null,null,null,null,null,null,null,null,null,null," ",""]
[null,null,null,null,null,null,null,null,null,null,null," ",""]
[null,null,null,null,null,null,null,null,null,null,null," ",""]
[null,null,null,null,null,null,null,null,null,null,null," ",""]
[null,null,null,null,null,null,null,null,null,null,null," ",""]
[null,null,null,null,null,null,null,null,null,null,null," ",""]
[null,null,null,null,null,null,null,null,null,null,null," ",""]
[null,null,null,null,null,null,null,null,null,null,null," ",""]
[null,null,null,null,null,null,null,null,null,null,null," ",""]
[null,null,null,null,null,null,null,null,null,null,null," ",""]
[null,null,null,null,null,null,null,null,null,null,null," ",""]
[null,null,null,null,null,null,null,null,null,null,null," ",""]
[null,null,null,null,null,null,null,null,null,null,null," ",""]
[null,null,null,null,null,null,null,null,null,null,null," ",""]
[null,null,null,null,null,null,null,null,null,null,null," ",""]
[null,null,null,null,null,null,null,null,null,null,null," ",""]
[null,null,null,null,null,null,null,null,null,null,null," ",""]
[null,null,null,null,null,null,null,null,null,null,null," ",""]
[null,null,null,null,null,null,null,null,null,null,null," ",""]
[null,null,null,null,null,null,null,null,null,null,null," ",""]
[null,null,null,null,null,null,null,null,null,null,null," ",""]
[null,null,null,null,null,null,null,null,null,null,null," ",""]
[null,null,null,null,null,null,null,null,null,null,null," ",""]
[null,null,null,null,null,null,null,null,null,null,null," ",""]
[null,null,null,null,null,null,null,null,null,null,null," ",""]
[null,null,null,null,null,null,null,null,null,null,null,{"$f":"B820&\" \"&C820","v":" "},{"$f":"IF(ISBLANK(F820),\"\",IF(F820<4,CHOOSE(F820,3,2,1),0)+G820*2+H820+1)","v":""}]
[null,null,null,null,null,null,null,null,null,null,null," ",""]
[null,null,null,null,null,null,null,null,null,null,null," ",""]
[null,null,null,null,null,null,null,null,null,null,null," ",""]
[null,null,null,null,null,null,null,null,null,null,null," ",""]
[null,null,null,null,null,null,null,null,null,null,null," ",""]
[null,null,null,null,null,null,null,null,null,null,null," ",""]
[null,null,null,null,null,null,null,null,null,null,null," ",""]
[null,null,null,null,null,null,null,null,null,null,null," ",""]
[null,null,null,null,null,null,null,null,null,null,null," ",""]
[null,null,null,null,null,null,null,null,null,null,null," ",""]
[null,null,null,null,null,null,null,null,null,null,null," ",""]
[null,null,null,null,null,null,null,null,null,null,null," ",""]
[null,null,null,null,null,null,null,null,null,null,null," ",""]
[null,null,null,null,null,null,null,null,null,null,null," ",""]
[null,null,null,null,null,null,null,null,null,null,null," ",""]
[null,null,null,null,null,null,null,null,null,null,null," ",""]
[null,null,null,null,null,null,null,null,null,null,null," ",""]
[null,null,null,null,null,null,null,null,null,null,null," ",""]
[null,null,null,null,null,null,null,null,null,null,null," ",""]
[null,null,null,null,null,null,null,null,null,null,null," ",""]
[null,null,null,null,null,null,null,null,null,null,null," ",""]
[null,null,null,null,null,null,null,null,null,null,null," ",""]
[null,null,null,null,null,null,null,null,null,null,null," ",""]
[null,null,null,null,null,null,null,null,null,null,null," ",""]
[null,null,null,null,null,null,null,null,null,null,null," ",""]
[null,null,null,null,null,null,null,null,null,null,null," ",""]
[null,null,null,null,null,null,null,null,null,null,null," ",""]
[null,null,null,null,null,null,null,null,null,null,null," ",""]
[null,null,null,null,null,null,null,null,null,null,null," ",""]
[null,null,null,null,null,null,null,null,null,null,null," ",""]
[null,null,null,null,null,null,null,null,null,null,null," ",""]
[null,null,null,null,null,null,null,null,null,null,null," ",""]
[null,null,null,null,null,null,null,null,null,null,null," ",""]
[null,null,null,null,null,null,null,null,null,null,null," ",""]
[null,null,null,null,null,null,null,null,null,null,null," ",""]
[null,null,null,null,null,null,null,null,null,null,null," ",""]
[null,null,null,null,null,null,null,null,null,null,null," ",""]
[null,null,null,null,null,null,null,null,null,null,null," ",""]
[null,null,null,null,null,null,null,null,null,null,null," ",""]
[null,null,null,null,null,null,null,null,null,null,null," ",""]
[null,null,null,null,null,null,null,null,null,null,null," ",""]
[null,null,null,null,null,null,null,null,null,null,null," ",""]
[null,null,null,null,null,null,null,null,null,null,null," ",""]
[null,null,null,null,null,null,null,null,null,null,null," ",""]
[null,null,null,null,null,null,null,null,null,null,null," ",""]
[null,null,null,null,null,null,null,null,null,null,null," ",""]
[null,null,null,null,null,null,null,null,null,null,null," ",""]
[null,null,null,null,null,null,null,null,null,null,null," ",""]
[null,null,null,null,null,null,null,null,null,null,null," ",""]
[null,null,null,null,null,null,null,null,null,null,null," ",""]
[null,null,null,null,null,null,null,null,null,null,null," ",""]
[null,null,null,null,null,null,null,null,null,null,null," ",""]
[null,null,null,null,null,null,null,null,null,null,null," ",""]
[null,null,null,null,null,null,null,null,null,null,null," ",""]
[null,null,null,null,null,null,null,null,null,null,null," ",""]
[null,null,null,null,null,null,null,null,null,null,null," ",""]
[null,null,null,null,null,null,null,null,null,null,null," ",""]
[null,null,null,null,null,null,null,null,null,null,null," ",""]
[null,null,null,null,null,null,null,null,null,null,null," ",""]
[null,null,null,null,null,null,null,null,null,null,null," ",""]
[null,null,null,null,null,null,null,null,null,null,null," ",""]
[null,null,null,null,null,null,null,null,null,null,null," ",""]
[null,null,null,null,null,null,null,null,null,null,null," ",""]
[null,null,null,null,null,null,null,null,null,null,null,{"$f":"B884&\" \"&C884","v":" "},{"$f":"IF(ISBLANK(F884),\"\",IF(F884<4,CHOOSE(F884,3,2,1),0)+G884*2+H884+1)","v":""}]
[null,null,null,null,null,null,null,null,null,null,null," ",""]
[null,null,null,null,null,null,null,null,null,null,null," ",""]
[null,null,null,null,null,null,null,null,null,null,null," ",""]
[null,null,null,null,null,null,null,null,null,null,null," ",""]
[null,null,null,null,null,null,null,null,null,null,null," ",""]
[null,null,null,null,null,null,null,null,null,null,null," ",""]
[null,null,null,null,null,null,null,null,null,null,null," ",""]
[null,null,null,null,null,null,null,null,null,null,null," ",""]
[null,null,null,null,null,null,null,null,null,null,null," ",""]
[null,null,null,null,null,null,null,null,null,null,null," ",""]
[null,null,null,null,null,null,null,null,null,null,null," ",""]
[null,null,null,null,null,null,null,null,null,null,null," ",""]
[null,null,null,null,null,null,null,null,null,null,null," ",""]
[null,null,null,null,null,null,null,null,null,null,null," ",""]
[null,null,null,null,null,null,null,null,null,null,null," ",""]
[null,null,null,null,null,null,null,null,null,null,null," ",""]
[null,null,null,null,null,null,null,null,null,null,null," ",""]
[null,null,null,null,null,null,null,null,null,null,null," ",""]
[null,null,null,null,null,null,null,null,null,null,null," ",""]
[null,null,null,null,null,null,null,null,null,null,null," ",""]
[null,null,null,null,null,null,null,null,null,null,null," ",""]
[null,null,null,null,null,null,null,null,null,null,null," ",""]
[null,null,null,null,null,null,null,null,null,null,null," ",""]
[null,null,null,null,null,null,null,null,null,null,null," ",""]
[null,null,null,null,null,null,null,null,null,null,null," ",""]
[null,null,null,null,null,null,null,null,null,null,null," ",""]
[null,null,null,null,null,null,null,null,null,null,null," ",""]
[null,null,null,null,null,null,null,null,null,null,null," ",""]
[null,null,null,null,null,null,null,null,null,null,null," ",""]
[null,null,null,null,null,null,null,null,null,null,null," ",""]
[null,null,null,null,null,null,null,null,null,null,null," ",""]
[null,null,null,null,null,null,null,null,null,null,null," ",""]
[null,null,null,null,null,null,null,null,null,null,null," ",""]
[null,null,null,null,null,null,null,null,null,null,null," ",""]
[null,null,null,null,null,null,null,null,null,null,null," ",""]
[null,null,null,null,null,null,null,null,null,null,null," ",""]
[null,null,null,null,null,null,null,null,null,null,null," ",""]
[null,null,null,null,null,null,null,null,null,null,null," ",""]
[null,null,null,null,null,null,null,null,null,null,null," ",""]
[null,null,null,null,null,null,null,null,null,null,null," ",""]
[null,null,null,null,null,null,null,null,null,null,null," ",""]
[null,null,null,null,null,null,null,null,null,null,null," ",""]
[null,null,null,null,null,null,null,null,null,null,null," ",""]
[null,null,null,null,null,null,null,null,null,null,null," ",""]
[null,null,null,null,null,null,null,null,null,null,null," ",""]
[null,null,null,null,null,null,null,null,null,null,null," ",""]
[null,null,null,null,null,null,null,null,null,null,null," ",""]
[null,null,null,null,null,null,null,null,null,null,null," ",""]
[null,null,null,null,null,null,null,null,null,null,null," ",""]
[null,null,null,null,null,null,null,null,null,null,null," ",""]
[null,null,null,null,null,null,null,null,null,null,null," ",""]
[null,null,null,null,null,null,null,null,null,null,null," ",""]
[null,null,null,null,null,null,null,null,null,null,null," ",""]
[null,null,null,null,null,null,null,null,null,null,null," ",""]
[null,null,null,null,null,null,null,null,null,null,null," ",""]
[null,null,null,null,null,null,null,null,null,null,null," ",""]
[null,null,null,null,null,null,null,null,null,null,null," ",""]
[null,null,null,null,null,null,null,null,null,null,null," ",""]
[null,null,null,null,null,null,null,null,null,null,null," ",""]
[null,null,null,null,null,null,null,null,null,null,null," ",""]
[null,null,null,null,null,null,null,null,null,null,null," ",""]
[null,null,null,null,null,null,null,null,null,null,null," ",""]
[null,null,null,null,null,null,null,null,null,null,null," ",""]
[null,null,null,null,null,null,null,null,null,null,null,{"$f":"B948&\" \"&C948","v":" "},{"$f":"IF(ISBLANK(F948),\"\",IF(F948<4,CHOOSE(F948,3,2,1),0)+G948*2+H948+1)","v":""}]
[null,null,null,null,null,null,null,null,null,null,null," ",""]
[null,null,null,null,null,null,null,null,null,null,null," ",""]
[null,null,null,null,null,null,null,null,null,null,null," ",""]
[null,null,null,null,null,null,null,null,null,null,null," ",""]
[null,null,null,null,null,null,null,null,null,null,null," ",""]
[null,null,null,null,null,null,null,null,null,null,null," ",""]
[null,null,null,null,null,null,null,null,null,null,null," ",""]
[null,null,null,null,null,null,null,null,null,null,null," ",""]
[null,null,null,null,null,null,null,null,null,null,null," ",""]
[null,null,null,null,null,null,null,null,null,null,null," ",""]
[null,null,null,null,null,null,null,null,null,null,null," ",""]
[null,null,null,null,null,null,null,null,null,null,null," ",""]
[null,null,null,null,null,null,null,null,null,null,null," ",""]
[null,null,null,null,null,null,null,null,null,null,null," ",""]
[null,null,null,null,null,null,null,null,null,null,null," ",""]
[null,null,null,null,null,null,null,null,null,null,null," ",""]
[null,null,null,null,null,null,null,null,null,null,null," ",""]
[null,null,null,null,null,null,null,null,null,null,null," ",""]
[null,null,null,null,null,null,null,null,null,null,null," ",""]
[null,null,null,null,null,null,null,null,null,null,null," ",""]
[null,null,null,null,null,null,null,null,null,null,null," ",""]
[null,null,null,null,null,null,null,null,null,null,null," ",""]
[null,null,null,null,null,null,null,null,null,null,null," ",""]
[null,null,null,null,null,null,null,null,null,null,null," ",""]
[null,null,null,null,null,null,null,null,null,null,null," ",""]
[null,null,null,null,null,null,null,null,null,null,null," ",""]
[null,null,null,null,null,null,null,null,null,null,null," ",""]
[null,null,null,null,null,null,null,null,null,null,null," ",""]
[null,null,null,null,null,null,null,null,null,null,null," ",""]
[null,null,null,null,null,null,null,null,null,null,null," ",""]
[null,null,null,null,null,null,null,null,null,null,null," ",""]
[null,null,null,null,null,null,null,null,null,null,null," ",""]
[null,null,null,null,null,null,null,null,null,null,null," ",""]
[null,null,null,null,null,null,null,null,null,null,null," ",""]
[null,null,null,null,null,null,null,null,null,null,null," ",""]
[null,null,null,null,null,null,null,null,null,null,null," ",""]
[null,null,null,null,null,null,null,null,null,null,null," ",""]
[null,null,null,null,null,null,null,null,null,null,null," ",""]
[null,null,null,null,null,null,null,null,null,null,null," ",""]
[null,null,null,null,null,null,null,null,null,null,null," ",""]
[null,null,null,null,null,null,null,null,null,null,null," ",""]
[null,null,null,null,null,null,null,null,null,null,null," ",""]
[null,null,null,null,null,null,null,null,null,null,null," ",""]
[null,null,null,null,null,null,null,null,null,null,null," ",""]
[null,null,null,null,null,null,null,null,null,null,null," ",""]
[null,null,null,null,null,null,null,null,null,null,null," ",""]
[null,null,null,null,null,null,null,null,null,null,null," ",""]
[null,null,null,null,null,null,null,null,null,null,null," ",""]
[null,null,null,null,null,null,null,null,null,null,null," ",""]
[null,null,null,null,null,null,null,null,null,null,null," ",""]
[null,null,null,null,null,null,null,null,null,null,null," ",""]
[null,null,null,null,null,null,null,null,null,null,null,{"$f":"B1000&\" \"&C1000","v":" "},{"$f":"IF(ISBLANK(F1000),\"\",IF(F1000<4,CHOOSE(F1000,3,2,1),0)+G1000*2+H1000+1)","v":""}]

{"sheet":"Knt","index":2,"n_rows":178,"n_cols":31,"rows_kept":178,"cut":false,"hidden":true,"merged":[]}
["RZB - rozdíl vyhraných a prohraných"]
["PZB - poměr vyhraných a prohraných"]
[null,"Turnaj"]
[null,"2017-01-21",null,null,"(prázdné)",null,null,"2017-03-11",null,null,"2017-06-24",null,null,"2017-04-22",null,null,"2017-05-24",null,null,"2017-09-24",null,null,"2017-10-21",null,null,"2017-11-11",null,null,"Celkem Bodů","Celkem Součet z RZB","Celkem Součet z PZB"]
["Závodník","Bodů","Součet z RZB","Součet z PZB","Bodů","Součet z RZB","Součet z PZB","Bodů","Součet z RZB","Součet z PZB","Bodů","Součet z RZB","Součet z PZB","Bodů","Součet z RZB","Součet z PZB","Bodů","Součet z RZB","Součet z PZB","Bodů","Součet z RZB","Součet z PZB","Bodů","Součet z RZB","Součet z PZB","Bodů","Součet z RZB","Součet z PZB"]
["Nuhlíček Jakub",10,3,0,0,0,0,12,4,0,0,0,0,12,4,0,0,0,0,9,2,3,12,4,0,12,4,0,67,21,22]
["Nuhlíček Michal",10,3,0,0,0,0,5,0,1,0,0,0,9,2,3,0,0,0,10,2,3,10,3,0,9,2,0,53,12,5]
["Mařec Tomáš",0,0,0,0,0,0,10,3,0,10,3,0,12,4,0,12,4,0,9,2,3,0,0,0,0,0,0,53,16,17]
["Ryška Filip",0,0,0,0,0,0,9,2,3,8,2,0,7,0,1,0,0,0,12,4,0,11,3,0,0,0,0,47,11,4.666666666666667]
["Kuluris Manolis",10,3,0,0,0,0,8,1,2,0,0,0,6,0,1,8,2,0,12,4,0,0,0,0,0,0,0,44,10,4.333333333333333]
["Malinovský Jiří",0,0,0,0,0,0,0,0,0,4,-1,0.5,0,0,0,7,1,2,10,3,0,8,1,2,12,4,0,41,8,3]
["Brož Ondřej",0,0,0,0,0,0,6,0,1,10,3,0,10,3,0,0,0,0,0,0,0,10,3,0,0,0,0,36,9,5.5]
["Stark Vojtěch",6,0,1,0,0,0,0,0,0,4,-1,0.5,10,3,0,7,0,1,7,1,2,0,0,0,0,0,0,34,3,1.4285714285714286]
["Lysický Sebastián",0,0,0,0,0,0,0,0,0,10,3,0,6,0,1,0,0,0,6,0,1,9,2,3,0,0,0,31,5,2]
["Havelka Štěpán",12,4,0,0,0,0,0,0,0,10,3,0,0,0,0,0,0,0,0,0,0,0,0,0,9,2,0,31,9,0]
["Kulhánek Adam",10,3,0,0,0,0,9,2,3,10,3,0,0,0,0,0,0,0,0,0,0,0,0,0,0,0,0,29,8,9]
["Fojtík Jiří Václav",4,-1,0.5,0,0,0,4,-1,0.5,6,0,1,6,0,1,0,0,0,8,2,3,0,0,0,0,0,0,28,0,1]
["Zwilling Šimon",0,0,0,0,0,0,7,1,0,0,0,0,10,3,0,10,3,0,0,0,0,0,0,0,0,0,0,27,7,0]
["Ciora Jakub",7,1,2,0,0,0,11,3,0,0,0,0,0,0,0,0,0,0,0,0,0,0,0,0,9,2,0,27,6,7]
["Vlk František",0,0,0,0,0,0,0,0,0,10,3,0,0,0,0,8,2,0,8,2,0,0,0,0,0,0,0,26,7,0]
["Nováček Nikolas",0,0,0,0,0,0,0,0,0,8,2,0,6,0,1,5,0,1,0,0,0,7,1,2,0,0,0,26,3,1.75]
["Šimkovič Ondřej",1,0,0,0,0,0,0,0,0,2,0,0,9,2,3,0,0,0,2,-2,0,4,-1,0.5,7,1,0,25,0,1]
["To Vojtěch",0,0,0,0,0,0,0,0,0,0,0,0,0,0,0,0,0,0,8,2,0,8,2,0,8,2,0,24,6,0]
["Martinásek Šimon",8,1,2,0,0,0,0,0,0,7,1,2,9,2,3,0,0,0,0,0,0,0,0,0,0,0,0,24,4,2.3333333333333335]
["Čech Jiří",0,0,0,0,0,0,12,4,0,0,0,0,12,4,0,0,0,0,0,0,0,0,0,0,0,0,0,24,8,0]
["Vjaclovský David",10,3,0,0,0,0,6,1,2,1,0,0,0,0,0,0,0,0,0,0,0,0,0,0,6,0,1,23,4,2.3333333333333335]
["Káňová Barbora",0,0,0,0,0,0,7,1,2,0,0,0,12,4,0,0,0,0,0,0,0,4,-1,0.5,0,0,0,23,4,2.3333333333333335]
["Valentík Tomáš",0,0,0,0,0,0,12,4,0,0,0,0,0,0,0,0,0,0,0,0,0,10,3,0,0,0,0,22,7,0]
["Poštulka Petr",7,2,0,0,0,0,6,0,1,0,0,0,8,2,0,0,0,0,0,0,0,0,0,0,0,0,0,21,4,3]
["Vrbas Alexander",0,0,0,0,0,0,0,0,0,0,0,0,0,0,0,0,0,0,0,0,0,10,3,0,11,3,0,21,6,0]
["Lukas Daniel",4,-1,0.5,0,0,0,0,0,0,0,0,0,11,3,0,0,0,0,4,-2,0.33333333333333331,1,-3,0,0,0,0,20,-3,0.625]
["Šumský Miroslav",0,0,0,0,0,0,0,0,0,0,0,0,0,0,0,0,0,0,10,3,0,0,0,0,10,3,0,20,6,0]
["Morcinek Lukáš",7,1,2,0,0,0,8,2,0,4,-1,0.5,1,-3,0,0,0,0,0,0,0,0,0,0,0,0,0,20,-1,0.83333333333333337]
["Kapias Oliver",0,0,0,0,0,0,7,1,2,0,0,0,12,4,0,0,0,0,0,0,0,0,0,0,0,0,0,19,5,6]
["Krčmář Matěj",0,0,0,0,0,0,0,0,0,0,0,0,7,0,1,2,-2,0,0,0,0,0,0,0,10,3,0,19,1,1.25]
["Šelong Tadeáš",0,0,0,0,0,0,7,0,1,3,-2,0.33333333333333331,3,-2,0.33333333333333331,2,-2,0,0,0,0,0,0,0,4,-1,0.5,19,-7,0.41666666666666669]
["Boháč Adam",10,3,0,0,0,0,8,2,0,0,0,0,0,0,0,0,0,0,0,0,0,0,0,0,0,0,0,18,5,0]
["Bartošic Sebastián",0,0,0,0,0,0,0,0,0,0,0,0,0,0,0,0,0,0,3,-2,0.33333333333333331,6,0,1,9,2,0,18,0,1]
["Valošek Jakub",0,0,0,0,0,0,0,0,0,0,0,0,4,-1,0.5,4,-2,0.33333333333333331,1,-4,0,0,0,0,9,2,3,18,-5,0.5]
["Hladík Václav",10,3,0,0,0,0,0,0,0,0,0,0,0,0,0,8,2,0,0,0,0,0,0,0,0,0,0,18,5,0]
["Sládek Maxmilián",0,0,0,0,0,0,0,0,0,7,1,2,0,0,0,0,0,0,0,0,0,0,0,0,11,3,0,18,4,5]
["Přidal Ladislav",0,0,0,0,0,0,0,0,0,0,0,0,0,0,0,0,0,0,0,0,0,8,2,0,10,3,0,18,5,0]
["Lanča Eduard",0,0,0,0,0,0,0,0,0,0,0,0,7,1,2,0,0,0,0,0,0,10,3,0,0,0,0,17,4,5]
["Kubala Marek",0,0,0,0,0,0,7,1,0,0,0,0,1,-3,0,0,0,0,0,0,0,0,0,0,9,3,0,17,1,1.3333333333333333]
["Doubek Benjamin",0,0,0,0,0,0,0,0,0,0,0,0,0,0,0,0,0,0,0,0,0,7,0,1,9,2,0,16,2,2]
["Sikora Tomáš",0,0,0,0,0,0,9,2,3,0,0,0,7,0,1,0,0,0,0,0,0,0,0,0,0,0,0,16,2,1.6666666666666667]
["Ciora  Jakub",0,0,0,0,0,0,0,0,0,6,0,1,0,0,0,0,0,0,10,2,3,0,0,0,0,0,0,16,2,1.6666666666666667]
["Krčmář Michal",3,-2,0.33333333333333331,0,0,0,0,0,0,0,0,0,3,-2,0.33333333333333331,9,2,3,0,0,0,0,0,0,1,-3,0,16,-5,0.5]
["Lošáková Lucie",0,0,0,0,0,0,0,0,0,7,1,2,0,0,0,2,-2,0,0,0,0,7,0,1,0,0,0,16,-1,0.8]
["Románek Jakub",0,0,0,0,0,0,0,0,0,4,-1,0.5,0,0,0,0,0,0,4,-1,0.5,7,1,2,0,0,0,15,-1,0.8]
["Graňák Dominik",7,1,2,0,0,0,0,0,0,0,0,0,8,1,2,0,0,0,0,0,0,0,0,0,0,0,0,15,2,2]
["Tichý Ondřej",0,0,0,0,0,0,0,0,0,0,0,0,0,0,0,0,0,0,4,-1,0.5,11,3,0,0,0,0,15,2,2]
["Blaho Dominik",0,0,0,0,0,0,0,0,0,0,0,0,7,0,1,8,2,0,0,0,0,0,0,0,0,0,0,15,2,2]
["Grauerová Kateřina",0,0,0,0,0,0,0,0,0,0,0,0,0,0,0,0,0,0,8,2,0,7,1,2,0,0,0,15,3,4]
["Blahová Alexandra",0,0,0,0,0,0,0,0,0,3,-2,0,4,-1,0.5,8,2,0,0,0,0,0,0,0,0,0,0,15,-1,0.75]
["Starý Patrik",7,1,2,0,0,0,2,-3,0,0,0,0,1,-4,0,0,0,0,0,0,0,5,0,1,0,0,0,15,-6,0.33333333333333331]
["Maršálek Harry",1,-3,0,0,0,0,5,0,1,0,0,0,3,-2,0.33333333333333331,0,0,0,5,0,1,1,-3,0,0,0,0,15,-8,0.27272727272727271]
["Vrbas Alexandr",7,1,2,0,0,0,0,0,0,0,0,0,7,1,2,0,0,0,0,0,0,0,0,0,0,0,0,14,2,2]
["Přichystal Leon",0,0,0,0,0,0,0,0,0,2,-2,0,9,2,3,0,0,0,3,-2,0.33333333333333331,0,0,0,0,0,0,14,-2,0.66666666666666663]
["Suchan Jan",7,1,2,0,0,0,7,1,2,0,0,0,0,0,0,0,0,0,0,0,0,0,0,0,0,0,0,14,2,2]
["Závodný Matyáš",4,-1,0.5,0,0,0,0,0,0,5,0,1,5,0,1,0,0,0,0,0,0,0,0,0,0,0,0,14,-1,0.8]
["Horák Richard",0,0,0,0,0,0,0,0,0,0,0,0,0,0,0,0,0,0,0,0,0,10,3,0,4,-1,0.5,14,2,2]
["Grobelný Vít",0,0,0,0,0,0,6,0,1,7,1,2,0,0,0,0,0,0,0,0,0,0,0,0,0,0,0,13,1,1.3333333333333333]
["Caletka Petr",10,3,0,0,0,0,3,-2,0.33333333333333331,0,0,0,0,0,0,0,0,0,0,0,0,0,0,0,0,0,0,13,1,1.3333333333333333]
["Stojčev Matyáš",0,0,0,0,0,0,0,0,0,12,4,0,0,0,0,0,0,0,0,0,0,0,0,0,0,0,0,12,4,0]
["Stebnická Lucie",4,-1,0.5,0,0,0,0,0,0,0,0,0,7,0,1,0,0,0,0,0,0,1,-4,0,0,0,0,12,-5,0.375]
["Grobelný Václav",0,0,0,0,0,0,4,-1,0,8,2,0,0,0,0,0,0,0,0,0,0,0,0,0,0,0,0,12,1,2]
["Franek Daniel",12,4,0,0,0,0,0,0,0,0,0,0,0,0,0,0,0,0,0,0,0,0,0,0,0,0,0,12,4,0]
["Kožušník Václav",0,0,0,0,0,0,0,0,0,0,0,0,7,1,2,0,0,0,0,0,0,4,-1,0.5,1,-3,0,12,-3,0.5]
["Klimek Ondřej",0,0,0,0,0,0,4,-1,0,0,0,0,7,1,2,0,0,0,0,0,0,0,0,0,0,0,0,11,0,1]
["Štverka Matyáš",0,0,0,0,0,0,0,0,0,0,0,0,0,0,0,0,0,0,0,0,0,4,-1,0.5,7,1,0,11,0,1]
["Kotouček Marek",5,0,1,0,0,0,0,0,0,0,0,0,0,0,0,0,0,0,0,0,0,0,0,0,6,0,1,11,0,1]
["King Samuel",10,3,0,0,0,0,0,0,0,0,0,0,0,0,0,0,0,0,0,0,0,0,0,0,0,0,0,10,3,0]
["Polášek Vojtěch",0,0,0,0,0,0,0,0,0,0,0,0,0,0,0,0,0,0,1,-3,0,3,-2,0.33333333333333331,6,0,1,10,-5,0.375]
["Murin Jan",0,0,0,0,0,0,0,0,0,0,0,0,6,0,1,0,0,0,4,-2,0.33333333333333331,0,0,0,0,0,0,10,-2,0.6]
["Beutel David",0,0,0,0,0,0,10,3,0,0,0,0,0,0,0,0,0,0,0,0,0,0,0,0,0,0,0,10,3,0]
["Kolář Václav",10,3,0,0,0,0,0,0,0,0,0,0,0,0,0,0,0,0,0,0,0,0,0,0,0,0,0,10,3,0]
["Vojkovský Dalibor",10,3,0,0,0,0,0,0,0,0,0,0,0,0,0,0,0,0,0,0,0,0,0,0,0,0,0,10,3,0]
["Blažek Daniel",0,0,0,0,0,0,0,0,0,0,0,0,10,2,3,0,0,0,0,0,0,0,0,0,0,0,0,10,2,3]
["Krische Fabien",10,3,0,0,0,0,0,0,0,0,0,0,0,0,0,0,0,0,0,0,0,0,0,0,0,0,0,10,3,0]
["Skácel Antonín",0,0,0,0,0,0,0,0,0,0,0,0,0,0,0,0,0,0,0,0,0,0,0,0,10,3,0,10,3,0]
["Vavrla Alexandr",0,0,0,0,0,0,0,0,0,9,2,3,0,0,0,0,0,0,0,0,0,0,0,0,0,0,0,9,2,3]
["Grauer Lukáš",0,0,0,0,0,0,0,0,0,0,0,0,0,0,0,0,0,0,7,1,2,0,0,0,2,-2,0,9,-1,0.66666666666666663]
["Hodák Daniel",9,3,0,0,0,0,0,0,0,0,0,0,0,0,0,0,0,0,0,0,0,0,0,0,0,0,0,9,3,0]
["Fuljer Patrik",9,2,3,0,0,0,0,0,0,0,0,0,0,0,0,0,0,0,0,0,0,0,0,0,0,0,0,9,2,3]
["Havelka Josef",0,0,0,0,0,0,0,0,0,0,0,0,0,0,0,0,0,0,0,0,0,0,0,0,9,2,0,9,2,0]
["Buček Dan",0,0,0,0,0,0,2,-2,0,1,0,0,1,-4,0,0,0,0,2,-2,0,1,-3,0,2,-2,0,9,-13,0]
["Břežný Filip",0,0,0,0,0,0,1,0,0,1,-3,0,5,0,1,0,0,0,1,-3,0,0,0,0,0,0,0,8,-6,0.14285714285714285]
["Titze Jakub",0,0,0,0,0,0,0,0,0,0,0,0,8,2,3,0,0,0,0,0,0,0,0,0,0,0,0,8,2,3]
["Pazdoň Matyáš",0,0,0,0,0,0,8,1,2,0,0,0,0,0,0,0,0,0,0,0,0,0,0,0,0,0,0,8,1,2]
["Přikryl Tomáš",0,0,0,0,0,0,8,2,0,0,0,0,0,0,0,0,0,0,0,0,0,0,0,0,0,0,0,8,2,0]
["Valentík Lukáš",0,0,0,0,0,0,0,0,0,0,0,0,0,0,0,0,0,0,0,0,0,0,0,0,8,2,0,8,2,0]
["Jahodová Petra",1,0,0,0,0,0,2,0,0,0,0,0,0,0,0,0,0,0,5,0,1,0,0,0,0,0,0,8,0,1]
["Nghiemová Natálie",0,0,0,0,0,0,0,0,0,8,2,0,0,0,0,0,0,0,0,0,0,0,0,0,0,0,0,8,2,0]
["Dvořáčková Apolena",1,-3,0,0,0,0,0,0,0,0,0,0,0,0,0,0,0,0,0,0,0,6,0,1,0,0,0,7,-3,0.4]
["Rechtík Metoděj",0,0,0,0,0,0,0,0,0,0,0,0,0,0,0,0,0,0,0,0,0,0,0,0,7,1,2,7,1,2]
["Sýkora Tomáš",7,1,2,0,0,0,0,0,0,0,0,0,0,0,0,0,0,0,0,0,0,0,0,0,0,0,0,7,1,2]
["Kristen Nikolas",0,0,0,0,0,0,0,0,0,0,0,0,0,0,0,0,0,0,0,0,0,0,0,0,7,1,2,7,1,2]
["Havelka Josef ",7,1,2,0,0,0,0,0,0,0,0,0,0,0,0,0,0,0,0,0,0,0,0,0,0,0,0,7,1,2]
["Macháček Tomáš",0,0,0,0,0,0,0,0,0,0,0,0,0,0,0,0,0,0,0,0,0,0,0,0,7,1,2,7,1,2]
["Dragon Dominik",0,0,0,0,0,0,0,0,0,0,0,0,0,0,0,0,0,0,0,0,0,7,1,2,0,0,0,7,1,2]
["Bodurová Kateřina",0,0,0,0,0,0,0,0,0,7,1,2,0,0,0,0,0,0,0,0,0,0,0,0,0,0,0,7,1,2]
["Šumský Mirolav",0,0,0,0,0,0,0,0,0,7,1,2,0,0,0,0,0,0,0,0,0,0,0,0,0,0,0,7,1,2]
["Boček Petr",0,0,0,0,0,0,0,0,0,0,0,0,0,0,0,1,-4,0,0,0,0,2,-3,0,4,0,0,7,-7,0]
["Schotli Josef ",7,1,2,0,0,0,0,0,0,0,0,0,0,0,0,0,0,0,0,0,0,0,0,0,0,0,0,7,1,2]
["Skalková Elen",7,1,2,0,0,0,0,0,0,0,0,0,0,0,0,0,0,0,0,0,0,0,0,0,0,0,0,7,1,2]
["Pitrman Daniel",6,0,1,0,0,0,0,0,0,0,0,0,0,0,0,0,0,0,0,0,0,0,0,0,0,0,0,6,0,1]
["Pittrman Daniel",0,0,0,0,0,0,0,0,0,0,0,0,0,0,0,0,0,0,0,0,0,0,0,0,6,0,1,6,0,1]
["Fojtík Jiří",0,0,0,0,0,0,0,0,0,0,0,0,0,0,0,0,0,0,0,0,0,0,0,0,6,0,1,6,0,1]
["Kanclíř Šimon",0,0,0,0,0,0,0,0,0,0,0,0,0,0,0,0,0,0,0,0,0,0,0,0,6,0,1,6,0,1]
["Mazura Vladislav",0,0,0,0,0,0,0,0,0,0,0,0,0,0,0,0,0,0,5,0,1,0,0,0,0,0,0,5,0,1]
["Salamonová Karolína",0,0,0,0,0,0,5,0,1,0,0,0,0,0,0,0,0,0,0,0,0,0,0,0,0,0,0,5,0,1]
["Tomica Daniel",0,0,0,0,0,0,0,0,0,0,0,0,0,0,0,0,0,0,0,0,0,5,0,1,0,0,0,5,0,1]
["Bechný Adam",0,0,0,0,0,0,0,0,0,5,0,1,0,0,0,0,0,0,0,0,0,0,0,0,0,0,0,5,0,1]
["Adamus Jan",5,-2,0.33333333333333331,0,0,0,0,0,0,0,0,0,0,0,0,0,0,0,0,0,0,0,0,0,0,0,0,5,-2,0.33333333333333331]
["Juřica Radek",0,0,0,0,0,0,0,0,0,0,0,0,0,0,0,0,0,0,0,0,0,5,0,1,0,0,0,5,0,1]
["Dokoupilová Anna",0,0,0,0,0,0,1,-3,0,0,0,0,4,-1,0.5,0,0,0,0,0,0,0,0,0,0,0,0,5,-4,0.2]
["Kobiernicki Marek",0,0,0,0,0,0,0,0,0,0,0,0,0,0,0,0,0,0,0,0,0,0,0,0,5,0,1,5,0,1]
["Nováková Emma",4,-1,0.5,0,0,0,0,0,0,0,0,0,0,0,0,0,0,0,0,0,0,1,-3,0,0,0,0,5,-4,0.2]
["Kusyn Oliver",3,-1,0.5,0,0,0,1,0,0,1,0,0,0,0,0,0,0,0,0,0,0,0,0,0,0,0,0,5,-1,0.5]
["Michálek Jakub",0,0,0,0,0,0,0,0,0,0,0,0,5,0,1,0,0,0,0,0,0,0,0,0,0,0,0,5,0,1]
["Staněk Patrik",0,0,0,0,0,0,0,0,0,0,0,0,0,0,0,0,0,0,0,0,0,0,0,0,4,-1,0.5,4,-1,0.5]
["Šotola Kryštof",4,-1,0.5,0,0,0,0,0,0,0,0,0,0,0,0,0,0,0,0,0,0,0,0,0,0,0,0,4,-1,0.5]
["Kopcová Eliška",4,-1,0.5,0,0,0,0,0,0,0,0,0,0,0,0,0,0,0,0,0,0,0,0,0,0,0,0,4,-1,0.5]
["Záruba Pavel",0,0,0,0,0,0,0,0,0,0,0,0,4,-1,0.5,0,0,0,0,0,0,0,0,0,0,0,0,4,-1,0.5]
["Holek Filip",0,0,0,0,0,0,0,0,0,0,0,0,0,0,0,0,0,0,0,0,0,0,0,0,4,0,0,4,0,0]
["Grygárek Jan",4,-1,0.5,0,0,0,0,0,0,0,0,0,0,0,0,0,0,0,0,0,0,0,0,0,0,0,0,4,-1,0.5]
["Kališík Jakub",0,0,0,0,0,0,0,0,0,0,0,0,0,0,0,0,0,0,0,0,0,0,0,0,4,-1,0.5,4,-1,0.5]
["Mikenda Ondřej",4,-1,0.5,0,0,0,0,0,0,0,0,0,0,0,0,0,0,0,0,0,0,0,0,0,0,0,0,4,-1,0.5]
["Stohlová Karolína",0,0,0,0,0,0,0,0,0,4,-1,0.5,0,0,0,0,0,0,0,0,0,0,0,0,0,0,0,4,-1,0.5]
["Nytra Sebastián",0,0,0,0,0,0,0,0,0,0,0,0,4,-1,0.5,0,0,0,0,0,0,0,0,0,0,0,0,4,-1,0.5]
["Kret Matyáš",0,0,0,0,0,0,0,0,0,0,0,0,0,0,0,0,0,0,0,0,0,4,-1,0.5,0,0,0,4,-1,0.5]
["Kreutz Martin",0,0,0,0,0,0,1,0,0,0,0,0,2,-3,0,0,0,0,0,0,0,0,0,0,1,-4,0,4,-7,0]
["Foldýnová Sabina",0,0,0,0,0,0,0,0,0,0,0,0,0,0,0,0,0,0,0,0,0,0,0,0,4,-1,0.5,4,-1,0.5]
["Kališik Jakub",4,-1,0.5,0,0,0,0,0,0,0,0,0,0,0,0,0,0,0,0,0,0,0,0,0,0,0,0,4,-1,0.5]
["Kubik Lukáš",0,0,0,0,0,0,0,0,0,0,0,0,0,0,0,0,0,0,0,0,0,0,0,0,4,-1,0.5,4,-1,0.5]
["Slowik Nikolas",4,-1,0.5,0,0,0,0,0,0,0,0,0,0,0,0,0,0,0,0,0,0,0,0,0,0,0,0,4,-1,0.5]
["Caletka Michal",1,-3,0,0,0,0,3,-2,0.33333333333333331,0,0,0,0,0,0,0,0,0,0,0,0,0,0,0,0,0,0,4,-5,0.16666666666666666]
["Dastych Filip",1,-4,0,0,0,0,2,0,0,1,-3,0,0,0,0,0,0,0,0,0,0,0,0,0,0,0,0,4,-7,0]
["Bukovjanová Charlotte",0,0,0,0,0,0,0,0,0,0,0,0,0,0,0,0,0,0,0,0,0,4,-1,0.5,0,0,0,4,-1,0.5]
["Zelinger Karel",0,0,0,0,0,0,4,-1,0.5,0,0,0,0,0,0,0,0,0,0,0,0,0,0,0,0,0,0,4,-1,0.5]
["Pröschl Jakub",0,0,0,0,0,0,0,0,0,0,0,0,0,0,0,0,0,0,0,0,0,0,0,0,3,-2,0.33333333333333331,3,-2,0.33333333333333331]
["Krische Simon",3,-2,0.33333333333333331,0,0,0,0,0,0,0,0,0,0,0,0,0,0,0,0,0,0,0,0,0,0,0,0,3,-2,0.33333333333333331]
["Adamčíková Nela",0,0,0,0,0,0,0,0,0,0,0,0,3,-2,0.33333333333333331,0,0,0,0,0,0,0,0,0,0,0,0,3,-2,0.33333333333333331]
["Smyček Martin",3,-2,0,0,0,0,0,0,0,0,0,0,0,0,0,0,0,0,0,0,0,0,0,0,0,0,0,3,-2,0]
["Slováková Tereza",0,0,0,0,0,0,0,0,0,0,0,0,0,0,0,0,0,0,0,0,0,3,-2,0.33333333333333331,0,0,0,3,-2,0.33333333333333331]
["Peter Matyáš",0,0,0,0,0,0,0,0,0,0,0,0,0,0,0,0,0,0,3,-2,0.33333333333333331,0,0,0,0,0,0,3,-2,0.33333333333333331]
["Gilová Eliška",1,0,0,0,0,0,0,0,0,0,0,0,1,-3,0,0,0,0,0,0,0,0,0,0,1,-4,0,3,-7,0]
["Korytář Adam",0,0,0,0,0,0,0,0,0,0,0,0,0,0,0,0,0,0,0,0,0,0,0,0,3,-2,0.33333333333333331,3,-2,0.33333333333333331]
["Kubala Martin",0,0,0,0,0,0,0,0,0,0,0,0,0,0,0,0,0,0,0,0,0,3,-1,0.5,0,0,0,3,-1,0.5]
["Neshoda Vojtěch",0,0,0,0,0,0,2,0,0,0,0,0,0,0,0,0,0,0,0,0,0,0,0,0,0,0,0,2,0,0]
["Horuta Matyáš",0,0,0,0,0,0,0,0,0,0,0,0,2,-2,0,0,0,0,0,0,0,0,0,0,0,0,0,2,-2,0]
["Bukovská Barbora",0,0,0,0,0,0,0,0,0,0,0,0,0,0,0,0,0,0,0,0,0,2,-2,0,0,0,0,2,-2,0]
["Dvořák Josef",0,0,0,0,0,0,1,0,0,1,-3,0,0,0,0,0,0,0,0,0,0,0,0,0,0,0,0,2,-3,0]
["Roztomilý Ondřej",0,0,0,0,0,0,0,0,0,0,0,0,0,0,0,0,0,0,2,-2,0,0,0,0,0,0,0,2,-2,0]
["Pithrman Daniel",0,0,0,0,0,0,0,0,0,0,0,0,0,0,0,0,0,0,0,0,0,2,-2,0,0,0,0,2,-2,0]
["Vlach Antonín",0,0,0,0,0,0,0,0,0,0,0,0,0,0,0,0,0,0,0,0,0,1,-3,0,0,0,0,1,-3,0]
["Benáčková Denisa",0,0,0,0,0,0,0,0,0,0,0,0,1,-4,0,0,0,0,0,0,0,0,0,0,0,0,0,1,-4,0]
["Coccia Francesco",0,0,0,0,0,0,0,0,0,0,0,0,0,0,0,0,0,0,0,0,0,0,0,0,1,-4,0,1,-4,0]
["Adamus Jiří",1,0,0,0,0,0,0,0,0,0,0,0,0,0,0,0,0,0,0,0,0,0,0,0,0,0,0,1,0,0]
["Widziolek Richard",0,0,0,0,0,0,0,0,0,0,0,0,0,0,0,0,0,0,0,0,0,0,0,0,1,-3,0,1,-3,0]
["Šindel Jakub",0,0,0,0,0,0,0,0,0,0,0,0,0,0,0,0,0,0,0,0,0,0,0,0,1,-3,0,1,-3,0]
["Bukovský Ondřej",0,0,0,0,0,0,0,0,0,0,0,0,0,0,0,0,0,0,0,0,0,1,-3,0,0,0,0,1,-3,0]
["Wojtas Ines",1,-3,0,0,0,0,0,0,0,0,0,0,0,0,0,0,0,0,0,0,0,0,0,0,0,0,0,1,-3,0]
["Lasák Robert",0,0,0,0,0,0,0,0,0,0,0,0,0,0,0,0,0,0,0,0,0,1,-4,0,0,0,0,1,-4,0]
["Kreutz David",0,0,0,0,0,0,1,0,0,0,0,0,0,0,0,0,0,0,0,0,0,0,0,0,0,0,0,1,0,0]
["Skořupa Matěj",0,0,0,0,0,0,0,0,0,0,0,0,0,0,0,0,0,0,1,-4,0,0,0,0,0,0,0,1,-4,0]
["Vavreczka Michal",1,0,0,0,0,0,0,0,0,0,0,0,0,0,0,0,0,0,0,0,0,0,0,0,0,0,0,1,0,0]
["Urban Filip",1,0,0,0,0,0,0,0,0,0,0,0,0,0,0,0,0,0,0,0,0,0,0,0,0,0,0,1,0,0]
["Slovák Jiří",0,0,0,0,0,0,0,0,0,1,-3,0,0,0,0,0,0,0,0,0,0,0,0,0,0,0,0,1,-3,0]
["Figar Jan",0,0,0,0,0,0,0,0,0,0,0,0,0,0,0,0,0,0,0,0,0,0,0,0,1,-3,0,1,-3,0]
["Korytář Dan",0,0,0,0,0,0,0,0,0,0,0,0,0,0,0,0,0,0,0,0,0,0,0,0,1,-3,0,1,-3,0]
["Vlček Petr",0,0,0,0,0,0,0,0,0,0,0,0,1,-4,0,0,0,0,0,0,0,0,0,0,0,0,0,1,-4,0]
["Satora David",0,0,0,0,0,0,0,0,0,0,0,0,0,0,0,0,0,0,0,0,0,0,0,0,1,-3,0,1,-3,0]
["Pizzato Alessandro",0,0,0,0,0,0,0,0,0,0,0,0,1,-4,0,0,0,0,0,0,0,0,0,0,0,0,0,1,-4,0]
["Koch Martin",0,0,0,0,0,0,0,0,0,0,0,0,1,-4,0,0,0,0,0,0,0,0,0,0,0,0,0,1,-4,0]
[" ",0,0,0,0,0,0,0,0,0,0,0,0,0,0,0,0,0,0,0,0,0,0,0,0,0,0,0,0,0,0]
["Zakaryan Erik",0,0,0,0,0,0,0,0,0,0,0,0,0,0,0,0,0,0,0,0,0,0,0,0,0,0,0,0,0,0]

{"sheet":"Seřazení Knt","index":3,"n_rows":201,"n_cols":4,"rows_kept":201,"cut":false,"hidden":false,"merged":[]}
[{"$f":"Knt!A5","v":"Závodník"},"Celkem Bodů","Celkem Součet z RZB","Celkem Součet z PZB"]
[{"$f":"IF(Knt!A6=\" \",0,Knt!A6)","v":"Nuhlíček Jakub"},{"$f":"IF(ISERR(GETPIVOTDATA(\"Bodů\",Knt!$A$3,\"příjmení a jméno\",$A2)),-1,GETPIVOTDATA(\"Bodů\",Knt!$A$3,\"příjmení a jméno\",$A2))","v":67},{"$f":"IF(ISERR(GETPIVOTDATA(\"Součet z RZB\",Knt!$A$3,\"příjmení a jméno\",$A2)),0,GETPIVOTDATA(\"Součet z RZB\",Knt!$A$3,\"příjmení a jméno\",$A2))","v":21},{"$f":"IF(ISERR(GETPIVOTDATA(\"Součet z PZB\",Knt!$A$3,\"příjmení a jméno\",$A2)),0,GETPIVOTDATA(\"Součet z PZB\",Knt!$A$3,\"příjmení a jméno\",$A2))","v":22}]
[{"$f":"IF(Knt!A8=\" \",0,Knt!A8)","v":"Mařec Tomáš"},{"$f":"IF(ISERR(GETPIVOTDATA(\"Bodů\",Knt!$A$3,\"příjmení a jméno\",$A3)),-1,GETPIVOTDATA(\"Bodů\",Knt!$A$3,\"příjmení a jméno\",$A3))","v":53},{"$f":"IF(ISERR(GETPIVOTDATA(\"Součet z RZB\",Knt!$A$3,\"příjmení a jméno\",$A3)),0,GETPIVOTDATA(\"Součet z RZB\",Knt!$A$3,\"příjmení a jméno\",$A3))","v":16},{"$f":"IF(ISERR(GETPIVOTDATA(\"Součet z PZB\",Knt!$A$3,\"příjmení a jméno\",$A3)),0,GETPIVOTDATA(\"Součet z PZB\",Knt!$A$3,\"příjmení a jméno\",$A3))","v":17}]
[{"$f":"IF(Knt!A7=\" \",0,Knt!A7)","v":"Nuhlíček Michal"},{"$f":"IF(ISERR(GETPIVOTDATA(\"Bodů\",Knt!$A$3,\"příjmení a jméno\",$A4)),-1,GETPIVOTDATA(\"Bodů\",Knt!$A$3,\"příjmení a jméno\",$A4))","v":53},{"$f":"IF(ISERR(GETPIVOTDATA(\"Součet z RZB\",Knt!$A$3,\"příjmení a jméno\",$A4)),0,GETPIVOTDATA(\"Součet z RZB\",Knt!$A$3,\"příjmení a jméno\",$A4))","v":12},{"$f":"IF(ISERR(GETPIVOTDATA(\"Součet z PZB\",Knt!$A$3,\"příjmení a jméno\",$A4)),0,GETPIVOTDATA(\"Součet z PZB\",Knt!$A$3,\"příjmení a jméno\",$A4))","v":5}]
[{"$f":"IF(Knt!A9=\" \",0,Knt!A9)","v":"Ryška Filip"},{"$f":"IF(ISERR(GETPIVOTDATA(\"Bodů\",Knt!$A$3,\"příjmení a jméno\",$A5)),-1,GETPIVOTDATA(\"Bodů\",Knt!$A$3,\"příjmení a jméno\",$A5))","v":47},{"$f":"IF(ISERR(GETPIVOTDATA(\"Součet z RZB\",Knt!$A$3,\"příjmení a jméno\",$A5)),0,GETPIVOTDATA(\"Součet z RZB\",Knt!$A$3,\"příjmení a jméno\",$A5))","v":11},{"$f":"IF(ISERR(GETPIVOTDATA(\"Součet z PZB\",Knt!$A$3,\"příjmení a jméno\",$A5)),0,GETPIVOTDATA(\"Součet z PZB\",Knt!$A$3,\"příjmení a jméno\",$A5))","v":4.666666666666667}]
[{"$f":"IF(Knt!A10=\" \",0,Knt!A10)","v":"Kuluris Manolis"},{"$f":"IF(ISERR(GETPIVOTDATA(\"Bodů\",Knt!$A$3,\"příjmení a jméno\",$A6)),-1,GETPIVOTDATA(\"Bodů\",Knt!$A$3,\"příjmení a jméno\",$A6))","v":44},{"$f":"IF(ISERR(GETPIVOTDATA(\"Součet z RZB\",Knt!$A$3,\"příjmení a jméno\",$A6)),0,GETPIVOTDATA(\"Součet z RZB\",Knt!$A$3,\"příjmení a jméno\",$A6))","v":10},{"$f":"IF(ISERR(GETPIVOTDATA(\"Součet z PZB\",Knt!$A$3,\"příjmení a jméno\",$A6)),0,GETPIVOTDATA(\"Součet z PZB\",Knt!$A$3,\"příjmení a jméno\",$A6))","v":4.333333333333333}]
[{"$f":"IF(Knt!A11=\" \",0,Knt!A11)","v":"Malinovský Jiří"},{"$f":"IF(ISERR(GETPIVOTDATA(\"Bodů\",Knt!$A$3,\"příjmení a jméno\",$A7)),-1,GETPIVOTDATA(\"Bodů\",Knt!$A$3,\"příjmení a jméno\",$A7))","v":41},{"$f":"IF(ISERR(GETPIVOTDATA(\"Součet z RZB\",Knt!$A$3,\"příjmení a jméno\",$A7)),0,GETPIVOTDATA(\"Součet z RZB\",Knt!$A$3,\"příjmení a jméno\",$A7))","v":8},{"$f":"IF(ISERR(GETPIVOTDATA(\"Součet z PZB\",Knt!$A$3,\"příjmení a jméno\",$A7)),0,GETPIVOTDATA(\"Součet z PZB\",Knt!$A$3,\"příjmení a jméno\",$A7))","v":3}]
[{"$f":"IF(Knt!A12=\" \",0,Knt!A12)","v":"Brož Ondřej"},{"$f":"IF(ISERR(GETPIVOTDATA(\"Bodů\",Knt!$A$3,\"příjmení a jméno\",$A8)),-1,GETPIVOTDATA(\"Bodů\",Knt!$A$3,\"příjmení a jméno\",$A8))","v":36},{"$f":"IF(ISERR(GETPIVOTDATA(\"Součet z RZB\",Knt!$A$3,\"příjmení a jméno\",$A8)),0,GETPIVOTDATA(\"Součet z RZB\",Knt!$A$3,\"příjmení a jméno\",$A8))","v":9},{"$f":"IF(ISERR(GETPIVOTDATA(\"Součet z PZB\",Knt!$A$3,\"příjmení a jméno\",$A8)),0,GETPIVOTDATA(\"Součet z PZB\",Knt!$A$3,\"příjmení a jméno\",$A8))","v":5.5}]
[{"$f":"IF(Knt!A13=\" \",0,Knt!A13)","v":"Stark Vojtěch"},{"$f":"IF(ISERR(GETPIVOTDATA(\"Bodů\",Knt!$A$3,\"příjmení a jméno\",$A9)),-1,GETPIVOTDATA(\"Bodů\",Knt!$A$3,\"příjmení a jméno\",$A9))","v":34},{"$f":"IF(ISERR(GETPIVOTDATA(\"Součet z RZB\",Knt!$A$3,\"příjmení a jméno\",$A9)),0,GETPIVOTDATA(\"Součet z RZB\",Knt!$A$3,\"příjmení a jméno\",$A9))","v":3},{"$f":"IF(ISERR(GETPIVOTDATA(\"Součet z PZB\",Knt!$A$3,\"příjmení a jméno\",$A9)),0,GETPIVOTDATA(\"Součet z PZB\",Knt!$A$3,\"příjmení a jméno\",$A9))","v":1.4285714285714286}]
[{"$f":"IF(Knt!A15=\" \",0,Knt!A15)","v":"Havelka Štěpán"},{"$f":"IF(ISERR(GETPIVOTDATA(\"Bodů\",Knt!$A$3,\"příjmení a jméno\",$A10)),-1,GETPIVOTDATA(\"Bodů\",Knt!$A$3,\"příjmení a jméno\",$A10))","v":31},{"$f":"IF(ISERR(GETPIVOTDATA(\"Součet z RZB\",Knt!$A$3,\"příjmení a jméno\",$A10)),0,GETPIVOTDATA(\"Součet z RZB\",Knt!$A$3,\"příjmení a jméno\",$A10))","v":9},{"$f":"IF(ISERR(GETPIVOTDATA(\"Součet z PZB\",Knt!$A$3,\"příjmení a jméno\",$A10)),0,GETPIVOTDATA(\"Součet z PZB\",Knt!$A$3,\"příjmení a jméno\",$A10))","v":0}]
[{"$f":"IF(Knt!A14=\" \",0,Knt!A14)","v":"Lysický Sebastián"},{"$f":"IF(ISERR(GETPIVOTDATA(\"Bodů\",Knt!$A$3,\"příjmení a jméno\",$A11)),-1,GETPIVOTDATA(\"Bodů\",Knt!$A$3,\"příjmení a jméno\",$A11))","v":31},{"$f":"IF(ISERR(GETPIVOTDATA(\"Součet z RZB\",Knt!$A$3,\"příjmení a jméno\",$A11)),0,GETPIVOTDATA(\"Součet z RZB\",Knt!$A$3,\"příjmení a jméno\",$A11))","v":5},{"$f":"IF(ISERR(GETPIVOTDATA(\"Součet z PZB\",Knt!$A$3,\"příjmení a jméno\",$A11)),0,GETPIVOTDATA(\"Součet z PZB\",Knt!$A$3,\"příjmení a jméno\",$A11))","v":2}]
[{"$f":"IF(Knt!A16=\" \",0,Knt!A16)","v":"Kulhánek Adam"},{"$f":"IF(ISERR(GETPIVOTDATA(\"Bodů\",Knt!$A$3,\"příjmení a jméno\",$A12)),-1,GETPIVOTDATA(\"Bodů\",Knt!$A$3,\"příjmení a jméno\",$A12))","v":29},{"$f":"IF(ISERR(GETPIVOTDATA(\"Součet z RZB\",Knt!$A$3,\"příjmení a jméno\",$A12)),0,GETPIVOTDATA(\"Součet z RZB\",Knt!$A$3,\"příjmení a jméno\",$A12))","v":8},{"$f":"IF(ISERR(GETPIVOTDATA(\"Součet z PZB\",Knt!$A$3,\"příjmení a jméno\",$A12)),0,GETPIVOTDATA(\"Součet z PZB\",Knt!$A$3,\"příjmení a jméno\",$A12))","v":9}]
[{"$f":"IF(Knt!A17=\" \",0,Knt!A17)","v":"Fojtík Jiří Václav"},{"$f":"IF(ISERR(GETPIVOTDATA(\"Bodů\",Knt!$A$3,\"příjmení a jméno\",$A13)),-1,GETPIVOTDATA(\"Bodů\",Knt!$A$3,\"příjmení a jméno\",$A13))","v":28},{"$f":"IF(ISERR(GETPIVOTDATA(\"Součet z RZB\",Knt!$A$3,\"příjmení a jméno\",$A13)),0,GETPIVOTDATA(\"Součet z RZB\",Knt!$A$3,\"příjmení a jméno\",$A13))","v":0},{"$f":"IF(ISERR(GETPIVOTDATA(\"Součet z PZB\",Knt!$A$3,\"příjmení a jméno\",$A13)),0,GETPIVOTDATA(\"Součet z PZB\",Knt!$A$3,\"příjmení a jméno\",$A13))","v":1}]
[{"$f":"IF(Knt!A18=\" \",0,Knt!A18)","v":"Zwilling Šimon"},{"$f":"IF(ISERR(GETPIVOTDATA(\"Bodů\",Knt!$A$3,\"příjmení a jméno\",$A14)),-1,GETPIVOTDATA(\"Bodů\",Knt!$A$3,\"příjmení a jméno\",$A14))","v":27},{"$f":"IF(ISERR(GETPIVOTDATA(\"Součet z RZB\",Knt!$A$3,\"příjmení a jméno\",$A14)),0,GETPIVOTDATA(\"Součet z RZB\",Knt!$A$3,\"příjmení a jméno\",$A14))","v":7},{"$f":"IF(ISERR(GETPIVOTDATA(\"Součet z PZB\",Knt!$A$3,\"příjmení a jméno\",$A14)),0,GETPIVOTDATA(\"Součet z PZB\",Knt!$A$3,\"příjmení a jméno\",$A14))","v":0}]
[{"$f":"IF(Knt!A19=\" \",0,Knt!A19)","v":"Ciora Jakub"},{"$f":"IF(ISERR(GETPIVOTDATA(\"Bodů\",Knt!$A$3,\"příjmení a jméno\",$A15)),-1,GETPIVOTDATA(\"Bodů\",Knt!$A$3,\"příjmení a jméno\",$A15))","v":27},{"$f":"IF(ISERR(GETPIVOTDATA(\"Součet z RZB\",Knt!$A$3,\"příjmení a jméno\",$A15)),0,GETPIVOTDATA(\"Součet z RZB\",Knt!$A$3,\"příjmení a jméno\",$A15))","v":6},{"$f":"IF(ISERR(GETPIVOTDATA(\"Součet z PZB\",Knt!$A$3,\"příjmení a jméno\",$A15)),0,GETPIVOTDATA(\"Součet z PZB\",Knt!$A$3,\"příjmení a jméno\",$A15))","v":7}]
[{"$f":"IF(Knt!A20=\" \",0,Knt!A20)","v":"Vlk František"},{"$f":"IF(ISERR(GETPIVOTDATA(\"Bodů\",Knt!$A$3,\"příjmení a jméno\",$A16)),-1,GETPIVOTDATA(\"Bodů\",Knt!$A$3,\"příjmení a jméno\",$A16))","v":26},{"$f":"IF(ISERR(GETPIVOTDATA(\"Součet z RZB\",Knt!$A$3,\"příjmení a jméno\",$A16)),0,GETPIVOTDATA(\"Součet z RZB\",Knt!$A$3,\"příjmení a jméno\",$A16))","v":7},{"$f":"IF(ISERR(GETPIVOTDATA(\"Součet z PZB\",Knt!$A$3,\"příjmení a jméno\",$A16)),0,GETPIVOTDATA(\"Součet z PZB\",Knt!$A$3,\"příjmení a jméno\",$A16))","v":0}]
[{"$f":"IF(Knt!A21=\" \",0,Knt!A21)","v":"Nováček Nikolas"},{"$f":"IF(ISERR(GETPIVOTDATA(\"Bodů\",Knt!$A$3,\"příjmení a jméno\",$A17)),-1,GETPIVOTDATA(\"Bodů\",Knt!$A$3,\"příjmení a jméno\",$A17))","v":26},{"$f":"IF(ISERR(GETPIVOTDATA(\"Součet z RZB\",Knt!$A$3,\"příjmení a jméno\",$A17)),0,GETPIVOTDATA(\"Součet z RZB\",Knt!$A$3,\"příjmení a jméno\",$A17))","v":3},{"$f":"IF(ISERR(GETPIVOTDATA(\"Součet z PZB\",Knt!$A$3,\"příjmení a jméno\",$A17)),0,GETPIVOTDATA(\"Součet z PZB\",Knt!$A$3,\"příjmení a jméno\",$A17))","v":1.75}]
[{"$f":"IF(Knt!A22=\" \",0,Knt!A22)","v":"Šimkovič Ondřej"},{"$f":"IF(ISERR(GETPIVOTDATA(\"Bodů\",Knt!$A$3,\"příjmení a jméno\",$A18)),-1,GETPIVOTDATA(\"Bodů\",Knt!$A$3,\"příjmení a jméno\",$A18))","v":25},{"$f":"IF(ISERR(GETPIVOTDATA(\"Součet z RZB\",Knt!$A$3,\"příjmení a jméno\",$A18)),0,GETPIVOTDATA(\"Součet z RZB\",Knt!$A$3,\"příjmení a jméno\",$A18))","v":0},{"$f":"IF(ISERR(GETPIVOTDATA(\"Součet z PZB\",Knt!$A$3,\"příjmení a jméno\",$A18)),0,GETPIVOTDATA(\"Součet z PZB\",Knt!$A$3,\"příjmení a jméno\",$A18))","v":1}]
[{"$f":"IF(Knt!A25=\" \",0,Knt!A25)","v":"Čech Jiří"},{"$f":"IF(ISERR(GETPIVOTDATA(\"Bodů\",Knt!$A$3,\"příjmení a jméno\",$A19)),-1,GETPIVOTDATA(\"Bodů\",Knt!$A$3,\"příjmení a jméno\",$A19))","v":24},{"$f":"IF(ISERR(GETPIVOTDATA(\"Součet z RZB\",Knt!$A$3,\"příjmení a jméno\",$A19)),0,GETPIVOTDATA(\"Součet z RZB\",Knt!$A$3,\"příjmení a jméno\",$A19))","v":8},{"$f":"IF(ISERR(GETPIVOTDATA(\"Součet z PZB\",Knt!$A$3,\"příjmení a jméno\",$A19)),0,GETPIVOTDATA(\"Součet z PZB\",Knt!$A$3,\"příjmení a jméno\",$A19))","v":0}]
[{"$f":"IF(Knt!A23=\" \",0,Knt!A23)","v":"To Vojtěch"},{"$f":"IF(ISERR(GETPIVOTDATA(\"Bodů\",Knt!$A$3,\"příjmení a jméno\",$A20)),-1,GETPIVOTDATA(\"Bodů\",Knt!$A$3,\"příjmení a jméno\",$A20))","v":24},{"$f":"IF(ISERR(GETPIVOTDATA(\"Součet z RZB\",Knt!$A$3,\"příjmení a jméno\",$A20)),0,GETPIVOTDATA(\"Součet z RZB\",Knt!$A$3,\"příjmení a jméno\",$A20))","v":6},{"$f":"IF(ISERR(GETPIVOTDATA(\"Součet z PZB\",Knt!$A$3,\"příjmení a jméno\",$A20)),0,GETPIVOTDATA(\"Součet z PZB\",Knt!$A$3,\"příjmení a jméno\",$A20))","v":0}]
[{"$f":"IF(Knt!A24=\" \",0,Knt!A24)","v":"Martinásek Šimon"},{"$f":"IF(ISERR(GETPIVOTDATA(\"Bodů\",Knt!$A$3,\"příjmení a jméno\",$A21)),-1,GETPIVOTDATA(\"Bodů\",Knt!$A$3,\"příjmení a jméno\",$A21))","v":24},{"$f":"IF(ISERR(GETPIVOTDATA(\"Součet z RZB\",Knt!$A$3,\"příjmení a jméno\",$A21)),0,GETPIVOTDATA(\"Součet z RZB\",Knt!$A$3,\"příjmení a jméno\",$A21))","v":4},{"$f":"IF(ISERR(GETPIVOTDATA(\"Součet z PZB\",Knt!$A$3,\"příjmení a jméno\",$A21)),0,GETPIVOTDATA(\"Součet z PZB\",Knt!$A$3,\"příjmení a jméno\",$A21))","v":2.3333333333333335}]
[{"$f":"IF(Knt!A26=\" \",0,Knt!A26)","v":"Vjaclovský David"},{"$f":"IF(ISERR(GETPIVOTDATA(\"Bodů\",Knt!$A$3,\"příjmení a jméno\",$A22)),-1,GETPIVOTDATA(\"Bodů\",Knt!$A$3,\"příjmení a jméno\",$A22))","v":23},{"$f":"IF(ISERR(GETPIVOTDATA(\"Součet z RZB\",Knt!$A$3,\"příjmení a jméno\",$A22)),0,GETPIVOTDATA(\"Součet z RZB\",Knt!$A$3,\"příjmení a jméno\",$A22))","v":4},{"$f":"IF(ISERR(GETPIVOTDATA(\"Součet z PZB\",Knt!$A$3,\"příjmení a jméno\",$A22)),0,GETPIVOTDATA(\"Součet z PZB\",Knt!$A$3,\"příjmení a jméno\",$A22))","v":2.3333333333333335}]
[{"$f":"IF(Knt!A27=\" \",0,Knt!A27)","v":"Káňová Barbora"},{"$f":"IF(ISERR(GETPIVOTDATA(\"Bodů\",Knt!$A$3,\"příjmení a jméno\",$A23)),-1,GETPIVOTDATA(\"Bodů\",Knt!$A$3,\"příjmení a jméno\",$A23))","v":23},{"$f":"IF(ISERR(GETPIVOTDATA(\"Součet z RZB\",Knt!$A$3,\"příjmení a jméno\",$A23)),0,GETPIVOTDATA(\"Součet z RZB\",Knt!$A$3,\"příjmení a jméno\",$A23))","v":4},{"$f":"IF(ISERR(GETPIVOTDATA(\"Součet z PZB\",Knt!$A$3,\"příjmení a jméno\",$A23)),0,GETPIVOTDATA(\"Součet z PZB\",Knt!$A$3,\"příjmení a jméno\",$A23))","v":2.3333333333333335}]
[{"$f":"IF(Knt!A28=\" \",0,Knt!A28)","v":"Valentík Tomáš"},{"$f":"IF(ISERR(GETPIVOTDATA(\"Bodů\",Knt!$A$3,\"příjmení a jméno\",$A24)),-1,GETPIVOTDATA(\"Bodů\",Knt!$A$3,\"příjmení a jméno\",$A24))","v":22},{"$f":"IF(ISERR(GETPIVOTDATA(\"Součet z RZB\",Knt!$A$3,\"příjmení a jméno\",$A24)),0,GETPIVOTDATA(\"Součet z RZB\",Knt!$A$3,\"příjmení a jméno\",$A24))","v":7},{"$f":"IF(ISERR(GETPIVOTDATA(\"Součet z PZB\",Knt!$A$3,\"příjmení a jméno\",$A24)),0,GETPIVOTDATA(\"Součet z PZB\",Knt!$A$3,\"příjmení a jméno\",$A24))","v":0}]
[{"$f":"IF(Knt!A30=\" \",0,Knt!A30)","v":"Vrbas Alexander"},{"$f":"IF(ISERR(GETPIVOTDATA(\"Bodů\",Knt!$A$3,\"příjmení a jméno\",$A25)),-1,GETPIVOTDATA(\"Bodů\",Knt!$A$3,\"příjmení a jméno\",$A25))","v":21},{"$f":"IF(ISERR(GETPIVOTDATA(\"Součet z RZB\",Knt!$A$3,\"příjmení a jméno\",$A25)),0,GETPIVOTDATA(\"Součet z RZB\",Knt!$A$3,\"příjmení a jméno\",$A25))","v":6},{"$f":"IF(ISERR(GETPIVOTDATA(\"Součet z PZB\",Knt!$A$3,\"příjmení a jméno\",$A25)),0,GETPIVOTDATA(\"Součet z PZB\",Knt!$A$3,\"příjmení a jméno\",$A25))","v":0}]
[{"$f":"IF(Knt!A29=\" \",0,Knt!A29)","v":"Poštulka Petr"},{"$f":"IF(ISERR(GETPIVOTDATA(\"Bodů\",Knt!$A$3,\"příjmení a jméno\",$A26)),-1,GETPIVOTDATA(\"Bodů\",Knt!$A$3,\"příjmení a jméno\",$A26))","v":21},{"$f":"IF(ISERR(GETPIVOTDATA(\"Součet z RZB\",Knt!$A$3,\"příjmení a jméno\",$A26)),0,GETPIVOTDATA(\"Součet z RZB\",Knt!$A$3,\"příjmení a jméno\",$A26))","v":4},{"$f":"IF(ISERR(GETPIVOTDATA(\"Součet z PZB\",Knt!$A$3,\"příjmení a jméno\",$A26)),0,GETPIVOTDATA(\"Součet z PZB\",Knt!$A$3,\"příjmení a jméno\",$A26))","v":3}]
[{"$f":"IF(Knt!A32=\" \",0,Knt!A32)","v":"Šumský Miroslav"},{"$f":"IF(ISERR(GETPIVOTDATA(\"Bodů\",Knt!$A$3,\"příjmení a jméno\",$A27)),-1,GETPIVOTDATA(\"Bodů\",Knt!$A$3,\"příjmení a jméno\",$A27))","v":20},{"$f":"IF(ISERR(GETPIVOTDATA(\"Součet z RZB\",Knt!$A$3,\"příjmení a jméno\",$A27)),0,GETPIVOTDATA(\"Součet z RZB\",Knt!$A$3,\"příjmení a jméno\",$A27))","v":6},{"$f":"IF(ISERR(GETPIVOTDATA(\"Součet z PZB\",Knt!$A$3,\"příjmení a jméno\",$A27)),0,GETPIVOTDATA(\"Součet z PZB\",Knt!$A$3,\"příjmení a jméno\",$A27))","v":0}]
[{"$f":"IF(Knt!A33=\" \",0,Knt!A33)","v":"Morcinek Lukáš"},{"$f":"IF(ISERR(GETPIVOTDATA(\"Bodů\",Knt!$A$3,\"příjmení a jméno\",$A28)),-1,GETPIVOTDATA(\"Bodů\",Knt!$A$3,\"příjmení a jméno\",$A28))","v":20},{"$f":"IF(ISERR(GETPIVOTDATA(\"Součet z RZB\",Knt!$A$3,\"příjmení a jméno\",$A28)),0,GETPIVOTDATA(\"Součet z RZB\",Knt!$A$3,\"příjmení a jméno\",$A28))","v":-1},{"$f":"IF(ISERR(GETPIVOTDATA(\"Součet z PZB\",Knt!$A$3,\"příjmení a jméno\",$A28)),0,GETPIVOTDATA(\"Součet z PZB\",Knt!$A$3,\"příjmení a jméno\",$A28))","v":0.83333333333333337}]
[{"$f":"IF(Knt!A31=\" \",0,Knt!A31)","v":"Lukas Daniel"},{"$f":"IF(ISERR(GETPIVOTDATA(\"Bodů\",Knt!$A$3,\"příjmení a jméno\",$A29)),-1,GETPIVOTDATA(\"Bodů\",Knt!$A$3,\"příjmení a jméno\",$A29))","v":20},{"$f":"IF(ISERR(GETPIVOTDATA(\"Součet z RZB\",Knt!$A$3,\"příjmení a jméno\",$A29)),0,GETPIVOTDATA(\"Součet z RZB\",Knt!$A$3,\"příjmení a jméno\",$A29))","v":-3},{"$f":"IF(ISERR(GETPIVOTDATA(\"Součet z PZB\",Knt!$A$3,\"příjmení a jméno\",$A29)),0,GETPIVOTDATA(\"Součet z PZB\",Knt!$A$3,\"příjmení a jméno\",$A29))","v":0.625}]
[{"$f":"IF(Knt!A34=\" \",0,Knt!A34)","v":"Kapias Oliver"},{"$f":"IF(ISERR(GETPIVOTDATA(\"Bodů\",Knt!$A$3,\"příjmení a jméno\",$A30)),-1,GETPIVOTDATA(\"Bodů\",Knt!$A$3,\"příjmení a jméno\",$A30))","v":19},{"$f":"IF(ISERR(GETPIVOTDATA(\"Součet z RZB\",Knt!$A$3,\"příjmení a jméno\",$A30)),0,GETPIVOTDATA(\"Součet z RZB\",Knt!$A$3,\"příjmení a jméno\",$A30))","v":5},{"$f":"IF(ISERR(GETPIVOTDATA(\"Součet z PZB\",Knt!$A$3,\"příjmení a jméno\",$A30)),0,GETPIVOTDATA(\"Součet z PZB\",Knt!$A$3,\"příjmení a jméno\",$A30))","v":6}]
[{"$f":"IF(Knt!A35=\" \",0,Knt!A35)","v":"Krčmář Matěj"},{"$f":"IF(ISERR(GETPIVOTDATA(\"Bodů\",Knt!$A$3,\"příjmení a jméno\",$A31)),-1,GETPIVOTDATA(\"Bodů\",Knt!$A$3,\"příjmení a jméno\",$A31))","v":19},{"$f":"IF(ISERR(GETPIVOTDATA(\"Součet z RZB\",Knt!$A$3,\"příjmení a jméno\",$A31)),0,GETPIVOTDATA(\"Součet z RZB\",Knt!$A$3,\"příjmení a jméno\",$A31))","v":1},{"$f":"IF(ISERR(GETPIVOTDATA(\"Součet z PZB\",Knt!$A$3,\"příjmení a jméno\",$A31)),0,GETPIVOTDATA(\"Součet z PZB\",Knt!$A$3,\"příjmení a jméno\",$A31))","v":1.25}]
[{"$f":"IF(Knt!A36=\" \",0,Knt!A36)","v":"Šelong Tadeáš"},{"$f":"IF(ISERR(GETPIVOTDATA(\"Bodů\",Knt!$A$3,\"příjmení a jméno\",$A32)),-1,GETPIVOTDATA(\"Bodů\",Knt!$A$3,\"příjmení a jméno\",$A32))","v":19},{"$f":"IF(ISERR(GETPIVOTDATA(\"Součet z RZB\",Knt!$A$3,\"příjmení a jméno\",$A32)),0,GETPIVOTDATA(\"Součet z RZB\",Knt!$A$3,\"příjmení a jméno\",$A32))","v":-7},{"$f":"IF(ISERR(GETPIVOTDATA(\"Součet z PZB\",Knt!$A$3,\"příjmení a jméno\",$A32)),0,GETPIVOTDATA(\"Součet z PZB\",Knt!$A$3,\"příjmení a jméno\",$A32))","v":0.41666666666666669}]
[{"$f":"IF(Knt!A40=\" \",0,Knt!A40)","v":"Hladík Václav"},{"$f":"IF(ISERR(GETPIVOTDATA(\"Bodů\",Knt!$A$3,\"příjmení a jméno\",$A33)),-1,GETPIVOTDATA(\"Bodů\",Knt!$A$3,\"příjmení a jméno\",$A33))","v":18},{"$f":"IF(ISERR(GETPIVOTDATA(\"Součet z RZB\",Knt!$A$3,\"příjmení a jméno\",$A33)),0,GETPIVOTDATA(\"Součet z RZB\",Knt!$A$3,\"příjmení a jméno\",$A33))","v":5},{"$f":"IF(ISERR(GETPIVOTDATA(\"Součet z PZB\",Knt!$A$3,\"příjmení a jméno\",$A33)),0,GETPIVOTDATA(\"Součet z PZB\",Knt!$A$3,\"příjmení a jméno\",$A33))","v":0}]
[{"$f":"IF(Knt!A42=\" \",0,Knt!A42)","v":"Přidal Ladislav"},{"$f":"IF(ISERR(GETPIVOTDATA(\"Bodů\",Knt!$A$3,\"příjmení a jméno\",$A34)),-1,GETPIVOTDATA(\"Bodů\",Knt!$A$3,\"příjmení a jméno\",$A34))","v":18},{"$f":"IF(ISERR(GETPIVOTDATA(\"Součet z RZB\",Knt!$A$3,\"příjmení a jméno\",$A34)),0,GETPIVOTDATA(\"Součet z RZB\",Knt!$A$3,\"příjmení a jméno\",$A34))","v":5},{"$f":"IF(ISERR(GETPIVOTDATA(\"Součet z PZB\",Knt!$A$3,\"příjmení a jméno\",$A34)),0,GETPIVOTDATA(\"Součet z PZB\",Knt!$A$3,\"příjmení a jméno\",$A34))","v":0}]
[{"$f":"IF(Knt!A37=\" \",0,Knt!A37)","v":"Boháč Adam"},{"$f":"IF(ISERR(GETPIVOTDATA(\"Bodů\",Knt!$A$3,\"příjmení a jméno\",$A35)),-1,GETPIVOTDATA(\"Bodů\",Knt!$A$3,\"příjmení a jméno\",$A35))","v":18},{"$f":"IF(ISERR(GETPIVOTDATA(\"Součet z RZB\",Knt!$A$3,\"příjmení a jméno\",$A35)),0,GETPIVOTDATA(\"Součet z RZB\",Knt!$A$3,\"příjmení a jméno\",$A35))","v":5},{"$f":"IF(ISERR(GETPIVOTDATA(\"Součet z PZB\",Knt!$A$3,\"příjmení a jméno\",$A35)),0,GETPIVOTDATA(\"Součet z PZB\",Knt!$A$3,\"příjmení a jméno\",$A35))","v":0}]
[{"$f":"IF(Knt!A41=\" \",0,Knt!A41)","v":"Sládek Maxmilián"},{"$f":"IF(ISERR(GETPIVOTDATA(\"Bodů\",Knt!$A$3,\"příjmení a jméno\",$A36)),-1,GETPIVOTDATA(\"Bodů\",Knt!$A$3,\"příjmení a jméno\",$A36))","v":18},{"$f":"IF(ISERR(GETPIVOTDATA(\"Součet z RZB\",Knt!$A$3,\"příjmení a jméno\",$A36)),0,GETPIVOTDATA(\"Součet z RZB\",Knt!$A$3,\"příjmení a jméno\",$A36))","v":4},{"$f":"IF(ISERR(GETPIVOTDATA(\"Součet z PZB\",Knt!$A$3,\"příjmení a jméno\",$A36)),0,GETPIVOTDATA(\"Součet z PZB\",Knt!$A$3,\"příjmení a jméno\",$A36))","v":5}]
[{"$f":"IF(Knt!A38=\" \",0,Knt!A38)","v":"Bartošic Sebastián"},{"$f":"IF(ISERR(GETPIVOTDATA(\"Bodů\",Knt!$A$3,\"příjmení a jméno\",$A37)),-1,GETPIVOTDATA(\"Bodů\",Knt!$A$3,\"příjmení a jméno\",$A37))","v":18},{"$f":"IF(ISERR(GETPIVOTDATA(\"Součet z RZB\",Knt!$A$3,\"příjmení a jméno\",$A37)),0,GETPIVOTDATA(\"Součet z RZB\",Knt!$A$3,\"příjmení a jméno\",$A37))","v":0},{"$f":"IF(ISERR(GETPIVOTDATA(\"Součet z PZB\",Knt!$A$3,\"příjmení a jméno\",$A37)),0,GETPIVOTDATA(\"Součet z PZB\",Knt!$A$3,\"příjmení a jméno\",$A37))","v":1}]
[{"$f":"IF(Knt!A39=\" \",0,Knt!A39)","v":"Valošek Jakub"},{"$f":"IF(ISERR(GETPIVOTDATA(\"Bodů\",Knt!$A$3,\"příjmení a jméno\",$A38)),-1,GETPIVOTDATA(\"Bodů\",Knt!$A$3,\"příjmení a jméno\",$A38))","v":18},{"$f":"IF(ISERR(GETPIVOTDATA(\"Součet z RZB\",Knt!$A$3,\"příjmení a jméno\",$A38)),0,GETPIVOTDATA(\"Součet z RZB\",Knt!$A$3,\"příjmení a jméno\",$A38))","v":-5},{"$f":"IF(ISERR(GETPIVOTDATA(\"Součet z PZB\",Knt!$A$3,\"příjmení a jméno\",$A38)),0,GETPIVOTDATA(\"Součet z PZB\",Knt!$A$3,\"příjmení a jméno\",$A38))","v":0.5}]
[{"$f":"IF(Knt!A43=\" \",0,Knt!A43)","v":"Lanča Eduard"},{"$f":"IF(ISERR(GETPIVOTDATA(\"Bodů\",Knt!$A$3,\"příjmení a jméno\",$A39)),-1,GETPIVOTDATA(\"Bodů\",Knt!$A$3,\"příjmení a jméno\",$A39))","v":17},{"$f":"IF(ISERR(GETPIVOTDATA(\"Součet z RZB\",Knt!$A$3,\"příjmení a jméno\",$A39)),0,GETPIVOTDATA(\"Součet z RZB\",Knt!$A$3,\"příjmení a jméno\",$A39))","v":4},{"$f":"IF(ISERR(GETPIVOTDATA(\"Součet z PZB\",Knt!$A$3,\"příjmení a jméno\",$A39)),0,GETPIVOTDATA(\"Součet z PZB\",Knt!$A$3,\"příjmení a jméno\",$A39))","v":5}]
[{"$f":"IF(Knt!A44=\" \",0,Knt!A44)","v":"Kubala Marek"},{"$f":"IF(ISERR(GETPIVOTDATA(\"Bodů\",Knt!$A$3,\"příjmení a jméno\",$A40)),-1,GETPIVOTDATA(\"Bodů\",Knt!$A$3,\"příjmení a jméno\",$A40))","v":17},{"$f":"IF(ISERR(GETPIVOTDATA(\"Součet z RZB\",Knt!$A$3,\"příjmení a jméno\",$A40)),0,GETPIVOTDATA(\"Součet z RZB\",Knt!$A$3,\"příjmení a jméno\",$A40))","v":1},{"$f":"IF(ISERR(GETPIVOTDATA(\"Součet z PZB\",Knt!$A$3,\"příjmení a jméno\",$A40)),0,GETPIVOTDATA(\"Součet z PZB\",Knt!$A$3,\"příjmení a jméno\",$A40))","v":1.3333333333333333}]
[{"$f":"IF(Knt!A45=\" \",0,Knt!A45)","v":"Doubek Benjamin"},{"$f":"IF(ISERR(GETPIVOTDATA(\"Bodů\",Knt!$A$3,\"příjmení a jméno\",$A41)),-1,GETPIVOTDATA(\"Bodů\",Knt!$A$3,\"příjmení a jméno\",$A41))","v":16},{"$f":"IF(ISERR(GETPIVOTDATA(\"Součet z RZB\",Knt!$A$3,\"příjmení a jméno\",$A41)),0,GETPIVOTDATA(\"Součet z RZB\",Knt!$A$3,\"příjmení a jméno\",$A41))","v":2},{"$f":"IF(ISERR(GETPIVOTDATA(\"Součet z PZB\",Knt!$A$3,\"příjmení a jméno\",$A41)),0,GETPIVOTDATA(\"Součet z PZB\",Knt!$A$3,\"příjmení a jméno\",$A41))","v":2}]
[{"$f":"IF(Knt!A46=\" \",0,Knt!A46)","v":"Sikora Tomáš"},{"$f":"IF(ISERR(GETPIVOTDATA(\"Bodů\",Knt!$A$3,\"příjmení a jméno\",$A42)),-1,GETPIVOTDATA(\"Bodů\",Knt!$A$3,\"příjmení a jméno\",$A42))","v":16},{"$f":"IF(ISERR(GETPIVOTDATA(\"Součet z RZB\",Knt!$A$3,\"příjmení a jméno\",$A42)),0,GETPIVOTDATA(\"Součet z RZB\",Knt!$A$3,\"příjmení a jméno\",$A42))","v":2},{"$f":"IF(ISERR(GETPIVOTDATA(\"Součet z PZB\",Knt!$A$3,\"příjmení a jméno\",$A42)),0,GETPIVOTDATA(\"Součet z PZB\",Knt!$A$3,\"příjmení a jméno\",$A42))","v":1.6666666666666667}]
[{"$f":"IF(Knt!A47=\" \",0,Knt!A47)","v":"Ciora  Jakub"},{"$f":"IF(ISERR(GETPIVOTDATA(\"Bodů\",Knt!$A$3,\"příjmení a jméno\",$A43)),-1,GETPIVOTDATA(\"Bodů\",Knt!$A$3,\"příjmení a jméno\",$A43))","v":16},{"$f":"IF(ISERR(GETPIVOTDATA(\"Součet z RZB\",Knt!$A$3,\"příjmení a jméno\",$A43)),0,GETPIVOTDATA(\"Součet z RZB\",Knt!$A$3,\"příjmení a jméno\",$A43))","v":2},{"$f":"IF(ISERR(GETPIVOTDATA(\"Součet z PZB\",Knt!$A$3,\"příjmení a jméno\",$A43)),0,GETPIVOTDATA(\"Součet z PZB\",Knt!$A$3,\"příjmení a jméno\",$A43))","v":1.6666666666666667}]
[{"$f":"IF(Knt!A49=\" \",0,Knt!A49)","v":"Lošáková Lucie"},{"$f":"IF(ISERR(GETPIVOTDATA(\"Bodů\",Knt!$A$3,\"příjmení a jméno\",$A44)),-1,GETPIVOTDATA(\"Bodů\",Knt!$A$3,\"příjmení a jméno\",$A44))","v":16},{"$f":"IF(ISERR(GETPIVOTDATA(\"Součet z RZB\",Knt!$A$3,\"příjmení a jméno\",$A44)),0,GETPIVOTDATA(\"Součet z RZB\",Knt!$A$3,\"příjmení a jméno\",$A44))","v":-1},{"$f":"IF(ISERR(GETPIVOTDATA(\"Součet z PZB\",Knt!$A$3,\"příjmení a jméno\",$A44)),0,GETPIVOTDATA(\"Součet z PZB\",Knt!$A$3,\"příjmení a jméno\",$A44))","v":0.8}]
[{"$f":"IF(Knt!A48=\" \",0,Knt!A48)","v":"Krčmář Michal"},{"$f":"IF(ISERR(GETPIVOTDATA(\"Bodů\",Knt!$A$3,\"příjmení a jméno\",$A45)),-1,GETPIVOTDATA(\"Bodů\",Knt!$A$3,\"příjmení a jméno\",$A45))","v":16},{"$f":"IF(ISERR(GETPIVOTDATA(\"Součet z RZB\",Knt!$A$3,\"příjmení a jméno\",$A45)),0,GETPIVOTDATA(\"Součet z RZB\",Knt!$A$3,\"příjmení a jméno\",$A45))","v":-5},{"$f":"IF(ISERR(GETPIVOTDATA(\"Součet z PZB\",Knt!$A$3,\"příjmení a jméno\",$A45)),0,GETPIVOTDATA(\"Součet z PZB\",Knt!$A$3,\"příjmení a jméno\",$A45))","v":0.5}]
[{"$f":"IF(Knt!A54=\" \",0,Knt!A54)","v":"Grauerová Kateřina"},{"$f":"IF(ISERR(GETPIVOTDATA(\"Bodů\",Knt!$A$3,\"příjmení a jméno\",$A46)),-1,GETPIVOTDATA(\"Bodů\",Knt!$A$3,\"příjmení a jméno\",$A46))","v":15},{"$f":"IF(ISERR(GETPIVOTDATA(\"Součet z RZB\",Knt!$A$3,\"příjmení a jméno\",$A46)),0,GETPIVOTDATA(\"Součet z RZB\",Knt!$A$3,\"příjmení a jméno\",$A46))","v":3},{"$f":"IF(ISERR(GETPIVOTDATA(\"Součet z PZB\",Knt!$A$3,\"příjmení a jméno\",$A46)),0,GETPIVOTDATA(\"Součet z PZB\",Knt!$A$3,\"příjmení a jméno\",$A46))","v":4}]
[{"$f":"IF(Knt!A51=\" \",0,Knt!A51)","v":"Graňák Dominik"},{"$f":"IF(ISERR(GETPIVOTDATA(\"Bodů\",Knt!$A$3,\"příjmení a jméno\",$A47)),-1,GETPIVOTDATA(\"Bodů\",Knt!$A$3,\"příjmení a jméno\",$A47))","v":15},{"$f":"IF(ISERR(GETPIVOTDATA(\"Součet z RZB\",Knt!$A$3,\"příjmení a jméno\",$A47)),0,GETPIVOTDATA(\"Součet z RZB\",Knt!$A$3,\"příjmení a jméno\",$A47))","v":2},{"$f":"IF(ISERR(GETPIVOTDATA(\"Součet z PZB\",Knt!$A$3,\"příjmení a jméno\",$A47)),0,GETPIVOTDATA(\"Součet z PZB\",Knt!$A$3,\"příjmení a jméno\",$A47))","v":2}]
[{"$f":"IF(Knt!A52=\" \",0,Knt!A52)","v":"Tichý Ondřej"},{"$f":"IF(ISERR(GETPIVOTDATA(\"Bodů\",Knt!$A$3,\"příjmení a jméno\",$A48)),-1,GETPIVOTDATA(\"Bodů\",Knt!$A$3,\"příjmení a jméno\",$A48))","v":15},{"$f":"IF(ISERR(GETPIVOTDATA(\"Součet z RZB\",Knt!$A$3,\"příjmení a jméno\",$A48)),0,GETPIVOTDATA(\"Součet z RZB\",Knt!$A$3,\"příjmení a jméno\",$A48))","v":2},{"$f":"IF(ISERR(GETPIVOTDATA(\"Součet z PZB\",Knt!$A$3,\"příjmení a jméno\",$A48)),0,GETPIVOTDATA(\"Součet z PZB\",Knt!$A$3,\"příjmení a jméno\",$A48))","v":2}]
[{"$f":"IF(Knt!A53=\" \",0,Knt!A53)","v":"Blaho Dominik"},{"$f":"IF(ISERR(GETPIVOTDATA(\"Bodů\",Knt!$A$3,\"příjmení a jméno\",$A49)),-1,GETPIVOTDATA(\"Bodů\",Knt!$A$3,\"příjmení a jméno\",$A49))","v":15},{"$f":"IF(ISERR(GETPIVOTDATA(\"Součet z RZB\",Knt!$A$3,\"příjmení a jméno\",$A49)),0,GETPIVOTDATA(\"Součet z RZB\",Knt!$A$3,\"příjmení a jméno\",$A49))","v":2},{"$f":"IF(ISERR(GETPIVOTDATA(\"Součet z PZB\",Knt!$A$3,\"příjmení a jméno\",$A49)),0,GETPIVOTDATA(\"Součet z PZB\",Knt!$A$3,\"příjmení a jméno\",$A49))","v":2}]
[{"$f":"IF(Knt!A50=\" \",0,Knt!A50)","v":"Románek Jakub"},{"$f":"IF(ISERR(GETPIVOTDATA(\"Bodů\",Knt!$A$3,\"příjmení a jméno\",$A50)),-1,GETPIVOTDATA(\"Bodů\",Knt!$A$3,\"příjmení a jméno\",$A50))","v":15},{"$f":"IF(ISERR(GETPIVOTDATA(\"Součet z RZB\",Knt!$A$3,\"příjmení a jméno\",$A50)),0,GETPIVOTDATA(\"Součet z RZB\",Knt!$A$3,\"příjmení a jméno\",$A50))","v":-1},{"$f":"IF(ISERR(GETPIVOTDATA(\"Součet z PZB\",Knt!$A$3,\"příjmení a jméno\",$A50)),0,GETPIVOTDATA(\"Součet z PZB\",Knt!$A$3,\"příjmení a jméno\",$A50))","v":0.8}]
[{"$f":"IF(Knt!A55=\" \",0,Knt!A55)","v":"Blahová Alexandra"},{"$f":"IF(ISERR(GETPIVOTDATA(\"Bodů\",Knt!$A$3,\"příjmení a jméno\",$A51)),-1,GETPIVOTDATA(\"Bodů\",Knt!$A$3,\"příjmení a jméno\",$A51))","v":15},{"$f":"IF(ISERR(GETPIVOTDATA(\"Součet z RZB\",Knt!$A$3,\"příjmení a jméno\",$A51)),0,GETPIVOTDATA(\"Součet z RZB\",Knt!$A$3,\"příjmení a jméno\",$A51))","v":-1},{"$f":"IF(ISERR(GETPIVOTDATA(\"Součet z PZB\",Knt!$A$3,\"příjmení a jméno\",$A51)),0,GETPIVOTDATA(\"Součet z PZB\",Knt!$A$3,\"příjmení a jméno\",$A51))","v":0.75}]
[{"$f":"IF(Knt!A56=\" \",0,Knt!A56)","v":"Starý Patrik"},{"$f":"IF(ISERR(GETPIVOTDATA(\"Bodů\",Knt!$A$3,\"příjmení a jméno\",$A52)),-1,GETPIVOTDATA(\"Bodů\",Knt!$A$3,\"příjmení a jméno\",$A52))","v":15},{"$f":"IF(ISERR(GETPIVOTDATA(\"Součet z RZB\",Knt!$A$3,\"příjmení a jméno\",$A52)),0,GETPIVOTDATA(\"Součet z RZB\",Knt!$A$3,\"příjmení a jméno\",$A52))","v":-6},{"$f":"IF(ISERR(GETPIVOTDATA(\"Součet z PZB\",Knt!$A$3,\"příjmení a jméno\",$A52)),0,GETPIVOTDATA(\"Součet z PZB\",Knt!$A$3,\"příjmení a jméno\",$A52))","v":0.33333333333333331}]
[{"$f":"IF(Knt!A57=\" \",0,Knt!A57)","v":"Maršálek Harry"},{"$f":"IF(ISERR(GETPIVOTDATA(\"Bodů\",Knt!$A$3,\"příjmení a jméno\",$A53)),-1,GETPIVOTDATA(\"Bodů\",Knt!$A$3,\"příjmení a jméno\",$A53))","v":15},{"$f":"IF(ISERR(GETPIVOTDATA(\"Součet z RZB\",Knt!$A$3,\"příjmení a jméno\",$A53)),0,GETPIVOTDATA(\"Součet z RZB\",Knt!$A$3,\"příjmení a jméno\",$A53))","v":-8},{"$f":"IF(ISERR(GETPIVOTDATA(\"Součet z PZB\",Knt!$A$3,\"příjmení a jméno\",$A53)),0,GETPIVOTDATA(\"Součet z PZB\",Knt!$A$3,\"příjmení a jméno\",$A53))","v":0.27272727272727271}]
[{"$f":"IF(Knt!A60=\" \",0,Knt!A60)","v":"Suchan Jan"},{"$f":"IF(ISERR(GETPIVOTDATA(\"Bodů\",Knt!$A$3,\"příjmení a jméno\",$A54)),-1,GETPIVOTDATA(\"Bodů\",Knt!$A$3,\"příjmení a jméno\",$A54))","v":14},{"$f":"IF(ISERR(GETPIVOTDATA(\"Součet z RZB\",Knt!$A$3,\"příjmení a jméno\",$A54)),0,GETPIVOTDATA(\"Součet z RZB\",Knt!$A$3,\"příjmení a jméno\",$A54))","v":2},{"$f":"IF(ISERR(GETPIVOTDATA(\"Součet z PZB\",Knt!$A$3,\"příjmení a jméno\",$A54)),0,GETPIVOTDATA(\"Součet z PZB\",Knt!$A$3,\"příjmení a jméno\",$A54))","v":2}]
[{"$f":"IF(Knt!A58=\" \",0,Knt!A58)","v":"Vrbas Alexandr"},{"$f":"IF(ISERR(GETPIVOTDATA(\"Bodů\",Knt!$A$3,\"příjmení a jméno\",$A55)),-1,GETPIVOTDATA(\"Bodů\",Knt!$A$3,\"příjmení a jméno\",$A55))","v":14},{"$f":"IF(ISERR(GETPIVOTDATA(\"Součet z RZB\",Knt!$A$3,\"příjmení a jméno\",$A55)),0,GETPIVOTDATA(\"Součet z RZB\",Knt!$A$3,\"příjmení a jméno\",$A55))","v":2},{"$f":"IF(ISERR(GETPIVOTDATA(\"Součet z PZB\",Knt!$A$3,\"příjmení a jméno\",$A55)),0,GETPIVOTDATA(\"Součet z PZB\",Knt!$A$3,\"příjmení a jméno\",$A55))","v":2}]
[{"$f":"IF(Knt!A62=\" \",0,Knt!A62)","v":"Horák Richard"},{"$f":"IF(ISERR(GETPIVOTDATA(\"Bodů\",Knt!$A$3,\"příjmení a jméno\",$A56)),-1,GETPIVOTDATA(\"Bodů\",Knt!$A$3,\"příjmení a jméno\",$A56))","v":14},{"$f":"IF(ISERR(GETPIVOTDATA(\"Součet z RZB\",Knt!$A$3,\"příjmení a jméno\",$A56)),0,GETPIVOTDATA(\"Součet z RZB\",Knt!$A$3,\"příjmení a jméno\",$A56))","v":2},{"$f":"IF(ISERR(GETPIVOTDATA(\"Součet z PZB\",Knt!$A$3,\"příjmení a jméno\",$A56)),0,GETPIVOTDATA(\"Součet z PZB\",Knt!$A$3,\"příjmení a jméno\",$A56))","v":2}]
[{"$f":"IF(Knt!A61=\" \",0,Knt!A61)","v":"Závodný Matyáš"},{"$f":"IF(ISERR(GETPIVOTDATA(\"Bodů\",Knt!$A$3,\"příjmení a jméno\",$A57)),-1,GETPIVOTDATA(\"Bodů\",Knt!$A$3,\"příjmení a jméno\",$A57))","v":14},{"$f":"IF(ISERR(GETPIVOTDATA(\"Součet z RZB\",Knt!$A$3,\"příjmení a jméno\",$A57)),0,GETPIVOTDATA(\"Součet z RZB\",Knt!$A$3,\"příjmení a jméno\",$A57))","v":-1},{"$f":"IF(ISERR(GETPIVOTDATA(\"Součet z PZB\",Knt!$A$3,\"příjmení a jméno\",$A57)),0,GETPIVOTDATA(\"Součet z PZB\",Knt!$A$3,\"příjmení a jméno\",$A57))","v":0.8}]
[{"$f":"IF(Knt!A59=\" \",0,Knt!A59)","v":"Přichystal Leon"},{"$f":"IF(ISERR(GETPIVOTDATA(\"Bodů\",Knt!$A$3,\"příjmení a jméno\",$A58)),-1,GETPIVOTDATA(\"Bodů\",Knt!$A$3,\"příjmení a jméno\",$A58))","v":14},{"$f":"IF(ISERR(GETPIVOTDATA(\"Součet z RZB\",Knt!$A$3,\"příjmení a jméno\",$A58)),0,GETPIVOTDATA(\"Součet z RZB\",Knt!$A$3,\"příjmení a jméno\",$A58))","v":-2},{"$f":"IF(ISERR(GETPIVOTDATA(\"Součet z PZB\",Knt!$A$3,\"příjmení a jméno\",$A58)),0,GETPIVOTDATA(\"Součet z PZB\",Knt!$A$3,\"příjmení a jméno\",$A58))","v":0.66666666666666663}]
[{"$f":"IF(Knt!A63=\" \",0,Knt!A63)","v":"Grobelný Vít"},{"$f":"IF(ISERR(GETPIVOTDATA(\"Bodů\",Knt!$A$3,\"příjmení a jméno\",$A59)),-1,GETPIVOTDATA(\"Bodů\",Knt!$A$3,\"příjmení a jméno\",$A59))","v":13},{"$f":"IF(ISERR(GETPIVOTDATA(\"Součet z RZB\",Knt!$A$3,\"příjmení a jméno\",$A59)),0,GETPIVOTDATA(\"Součet z RZB\",Knt!$A$3,\"příjmení a jméno\",$A59))","v":1},{"$f":"IF(ISERR(GETPIVOTDATA(\"Součet z PZB\",Knt!$A$3,\"příjmení a jméno\",$A59)),0,GETPIVOTDATA(\"Součet z PZB\",Knt!$A$3,\"příjmení a jméno\",$A59))","v":1.3333333333333333}]
[{"$f":"IF(Knt!A64=\" \",0,Knt!A64)","v":"Caletka Petr"},{"$f":"IF(ISERR(GETPIVOTDATA(\"Bodů\",Knt!$A$3,\"příjmení a jméno\",$A60)),-1,GETPIVOTDATA(\"Bodů\",Knt!$A$3,\"příjmení a jméno\",$A60))","v":13},{"$f":"IF(ISERR(GETPIVOTDATA(\"Součet z RZB\",Knt!$A$3,\"příjmení a jméno\",$A60)),0,GETPIVOTDATA(\"Součet z RZB\",Knt!$A$3,\"příjmení a jméno\",$A60))","v":1},{"$f":"IF(ISERR(GETPIVOTDATA(\"Součet z PZB\",Knt!$A$3,\"příjmení a jméno\",$A60)),0,GETPIVOTDATA(\"Součet z PZB\",Knt!$A$3,\"příjmení a jméno\",$A60))","v":1.3333333333333333}]
[{"$f":"IF(Knt!A68=\" \",0,Knt!A68)","v":"Franek Daniel"},{"$f":"IF(ISERR(GETPIVOTDATA(\"Bodů\",Knt!$A$3,\"příjmení a jméno\",$A61)),-1,GETPIVOTDATA(\"Bodů\",Knt!$A$3,\"příjmení a jméno\",$A61))","v":12},{"$f":"IF(ISERR(GETPIVOTDATA(\"Součet z RZB\",Knt!$A$3,\"příjmení a jméno\",$A61)),0,GETPIVOTDATA(\"Součet z RZB\",Knt!$A$3,\"příjmení a jméno\",$A61))","v":4},{"$f":"IF(ISERR(GETPIVOTDATA(\"Součet z PZB\",Knt!$A$3,\"příjmení a jméno\",$A61)),0,GETPIVOTDATA(\"Součet z PZB\",Knt!$A$3,\"příjmení a jméno\",$A61))","v":0}]
[{"$f":"IF(Knt!A65=\" \",0,Knt!A65)","v":"Stojčev Matyáš"},{"$f":"IF(ISERR(GETPIVOTDATA(\"Bodů\",Knt!$A$3,\"příjmení a jméno\",$A62)),-1,GETPIVOTDATA(\"Bodů\",Knt!$A$3,\"příjmení a jméno\",$A62))","v":12},{"$f":"IF(ISERR(GETPIVOTDATA(\"Součet z RZB\",Knt!$A$3,\"příjmení a jméno\",$A62)),0,GETPIVOTDATA(\"Součet z RZB\",Knt!$A$3,\"příjmení a jméno\",$A62))","v":4},{"$f":"IF(ISERR(GETPIVOTDATA(\"Součet z PZB\",Knt!$A$3,\"příjmení a jméno\",$A62)),0,GETPIVOTDATA(\"Součet z PZB\",Knt!$A$3,\"příjmení a jméno\",$A62))","v":0}]
[{"$f":"IF(Knt!A67=\" \",0,Knt!A67)","v":"Grobelný Václav"},{"$f":"IF(ISERR(GETPIVOTDATA(\"Bodů\",Knt!$A$3,\"příjmení a jméno\",$A63)),-1,GETPIVOTDATA(\"Bodů\",Knt!$A$3,\"příjmení a jméno\",$A63))","v":12},{"$f":"IF(ISERR(GETPIVOTDATA(\"Součet z RZB\",Knt!$A$3,\"příjmení a jméno\",$A63)),0,GETPIVOTDATA(\"Součet z RZB\",Knt!$A$3,\"příjmení a jméno\",$A63))","v":1},{"$f":"IF(ISERR(GETPIVOTDATA(\"Součet z PZB\",Knt!$A$3,\"příjmení a jméno\",$A63)),0,GETPIVOTDATA(\"Součet z PZB\",Knt!$A$3,\"příjmení a jméno\",$A63))","v":2}]
[{"$f":"IF(Knt!A69=\" \",0,Knt!A69)","v":"Kožušník Václav"},{"$f":"IF(ISERR(GETPIVOTDATA(\"Bodů\",Knt!$A$3,\"příjmení a jméno\",$A64)),-1,GETPIVOTDATA(\"Bodů\",Knt!$A$3,\"příjmení a jméno\",$A64))","v":12},{"$f":"IF(ISERR(GETPIVOTDATA(\"Součet z RZB\",Knt!$A$3,\"příjmení a jméno\",$A64)),0,GETPIVOTDATA(\"Součet z RZB\",Knt!$A$3,\"příjmení a jméno\",$A64))","v":-3},{"$f":"IF(ISERR(GETPIVOTDATA(\"Součet z PZB\",Knt!$A$3,\"příjmení a jméno\",$A64)),0,GETPIVOTDATA(\"Součet z PZB\",Knt!$A$3,\"příjmení a jméno\",$A64))","v":0.5}]
[{"$f":"IF(Knt!A66=\" \",0,Knt!A66)","v":"Stebnická Lucie"},{"$f":"IF(ISERR(GETPIVOTDATA(\"Bodů\",Knt!$A$3,\"příjmení a jméno\",$A65)),-1,GETPIVOTDATA(\"Bodů\",Knt!$A$3,\"příjmení a jméno\",$A65))","v":12},{"$f":"IF(ISERR(GETPIVOTDATA(\"Součet z RZB\",Knt!$A$3,\"příjmení a jméno\",$A65)),0,GETPIVOTDATA(\"Součet z RZB\",Knt!$A$3,\"příjmení a jméno\",$A65))","v":-5},{"$f":"IF(ISERR(GETPIVOTDATA(\"Součet z PZB\",Knt!$A$3,\"příjmení a jméno\",$A65)),0,GETPIVOTDATA(\"Součet z PZB\",Knt!$A$3,\"příjmení a jméno\",$A65))","v":0.375}]
[{"$f":"IF(Knt!A70=\" \",0,Knt!A70)","v":"Klimek Ondřej"},{"$f":"IF(ISERR(GETPIVOTDATA(\"Bodů\",Knt!$A$3,\"příjmení a jméno\",$A66)),-1,GETPIVOTDATA(\"Bodů\",Knt!$A$3,\"příjmení a jméno\",$A66))","v":11},{"$f":"IF(ISERR(GETPIVOTDATA(\"Součet z RZB\",Knt!$A$3,\"příjmení a jméno\",$A66)),0,GETPIVOTDATA(\"Součet z RZB\",Knt!$A$3,\"příjmení a jméno\",$A66))","v":0},{"$f":"IF(ISERR(GETPIVOTDATA(\"Součet z PZB\",Knt!$A$3,\"příjmení a jméno\",$A66)),0,GETPIVOTDATA(\"Součet z PZB\",Knt!$A$3,\"příjmení a jméno\",$A66))","v":1}]
[{"$f":"IF(Knt!A71=\" \",0,Knt!A71)","v":"Štverka Matyáš"},{"$f":"IF(ISERR(GETPIVOTDATA(\"Bodů\",Knt!$A$3,\"příjmení a jméno\",$A67)),-1,GETPIVOTDATA(\"Bodů\",Knt!$A$3,\"příjmení a jméno\",$A67))","v":11},{"$f":"IF(ISERR(GETPIVOTDATA(\"Součet z RZB\",Knt!$A$3,\"příjmení a jméno\",$A67)),0,GETPIVOTDATA(\"Součet z RZB\",Knt!$A$3,\"příjmení a jméno\",$A67))","v":0},{"$f":"IF(ISERR(GETPIVOTDATA(\"Součet z PZB\",Knt!$A$3,\"příjmení a jméno\",$A67)),0,GETPIVOTDATA(\"Součet z PZB\",Knt!$A$3,\"příjmení a jméno\",$A67))","v":1}]
[{"$f":"IF(Knt!A72=\" \",0,Knt!A72)","v":"Kotouček Marek"},{"$f":"IF(ISERR(GETPIVOTDATA(\"Bodů\",Knt!$A$3,\"příjmení a jméno\",$A68)),-1,GETPIVOTDATA(\"Bodů\",Knt!$A$3,\"příjmení a jméno\",$A68))","v":11},{"$f":"IF(ISERR(GETPIVOTDATA(\"Součet z RZB\",Knt!$A$3,\"příjmení a jméno\",$A68)),0,GETPIVOTDATA(\"Součet z RZB\",Knt!$A$3,\"příjmení a jméno\",$A68))","v":0},{"$f":"IF(ISERR(GETPIVOTDATA(\"Součet z PZB\",Knt!$A$3,\"příjmení a jméno\",$A68)),0,GETPIVOTDATA(\"Součet z PZB\",Knt!$A$3,\"příjmení a jméno\",$A68))","v":1}]
[{"$f":"IF(Knt!A76=\" \",0,Knt!A76)","v":"Beutel David"},{"$f":"IF(ISERR(GETPIVOTDATA(\"Bodů\",Knt!$A$3,\"příjmení a jméno\",$A69)),-1,GETPIVOTDATA(\"Bodů\",Knt!$A$3,\"příjmení a jméno\",$A69))","v":10},{"$f":"IF(ISERR(GETPIVOTDATA(\"Součet z RZB\",Knt!$A$3,\"příjmení a jméno\",$A69)),0,GETPIVOTDATA(\"Součet z RZB\",Knt!$A$3,\"příjmení a jméno\",$A69))","v":3},{"$f":"IF(ISERR(GETPIVOTDATA(\"Součet z PZB\",Knt!$A$3,\"příjmení a jméno\",$A69)),0,GETPIVOTDATA(\"Součet z PZB\",Knt!$A$3,\"příjmení a jméno\",$A69))","v":0}]
[{"$f":"IF(Knt!A81=\" \",0,Knt!A81)","v":"Skácel Antonín"},{"$f":"IF(ISERR(GETPIVOTDATA(\"Bodů\",Knt!$A$3,\"příjmení a jméno\",$A70)),-1,GETPIVOTDATA(\"Bodů\",Knt!$A$3,\"příjmení a jméno\",$A70))","v":10},{"$f":"IF(ISERR(GETPIVOTDATA(\"Součet z RZB\",Knt!$A$3,\"příjmení a jméno\",$A70)),0,GETPIVOTDATA(\"Součet z RZB\",Knt!$A$3,\"příjmení a jméno\",$A70))","v":3},{"$f":"IF(ISERR(GETPIVOTDATA(\"Součet z PZB\",Knt!$A$3,\"příjmení a jméno\",$A70)),0,GETPIVOTDATA(\"Součet z PZB\",Knt!$A$3,\"příjmení a jméno\",$A70))","v":0}]
[{"$f":"IF(Knt!A80=\" \",0,Knt!A80)","v":"Krische Fabien"},{"$f":"IF(ISERR(GETPIVOTDATA(\"Bodů\",Knt!$A$3,\"příjmení a jméno\",$A71)),-1,GETPIVOTDATA(\"Bodů\",Knt!$A$3,\"příjmení a jméno\",$A71))","v":10},{"$f":"IF(ISERR(GETPIVOTDATA(\"Součet z RZB\",Knt!$A$3,\"příjmení a jméno\",$A71)),0,GETPIVOTDATA(\"Součet z RZB\",Knt!$A$3,\"příjmení a jméno\",$A71))","v":3},{"$f":"IF(ISERR(GETPIVOTDATA(\"Součet z PZB\",Knt!$A$3,\"příjmení a jméno\",$A71)),0,GETPIVOTDATA(\"Součet z PZB\",Knt!$A$3,\"příjmení a jméno\",$A71))","v":0}]
[{"$f":"IF(Knt!A78=\" \",0,Knt!A78)","v":"Vojkovský Dalibor"},{"$f":"IF(ISERR(GETPIVOTDATA(\"Bodů\",Knt!$A$3,\"příjmení a jméno\",$A72)),-1,GETPIVOTDATA(\"Bodů\",Knt!$A$3,\"příjmení a jméno\",$A72))","v":10},{"$f":"IF(ISERR(GETPIVOTDATA(\"Součet z RZB\",Knt!$A$3,\"příjmení a jméno\",$A72)),0,GETPIVOTDATA(\"Součet z RZB\",Knt!$A$3,\"příjmení a jméno\",$A72))","v":3},{"$f":"IF(ISERR(GETPIVOTDATA(\"Součet z PZB\",Knt!$A$3,\"příjmení a jméno\",$A72)),0,GETPIVOTDATA(\"Součet z PZB\",Knt!$A$3,\"příjmení a jméno\",$A72))","v":0}]
[{"$f":"IF(Knt!A77=\" \",0,Knt!A77)","v":"Kolář Václav"},{"$f":"IF(ISERR(GETPIVOTDATA(\"Bodů\",Knt!$A$3,\"příjmení a jméno\",$A73)),-1,GETPIVOTDATA(\"Bodů\",Knt!$A$3,\"příjmení a jméno\",$A73))","v":10},{"$f":"IF(ISERR(GETPIVOTDATA(\"Součet z RZB\",Knt!$A$3,\"příjmení a jméno\",$A73)),0,GETPIVOTDATA(\"Součet z RZB\",Knt!$A$3,\"příjmení a jméno\",$A73))","v":3},{"$f":"IF(ISERR(GETPIVOTDATA(\"Součet z PZB\",Knt!$A$3,\"příjmení a jméno\",$A73)),0,GETPIVOTDATA(\"Součet z PZB\",Knt!$A$3,\"příjmení a jméno\",$A73))","v":0}]
[{"$f":"IF(Knt!A73=\" \",0,Knt!A73)","v":"King Samuel"},{"$f":"IF(ISERR(GETPIVOTDATA(\"Bodů\",Knt!$A$3,\"příjmení a jméno\",$A74)),-1,GETPIVOTDATA(\"Bodů\",Knt!$A$3,\"příjmení a jméno\",$A74))","v":10},{"$f":"IF(ISERR(GETPIVOTDATA(\"Součet z RZB\",Knt!$A$3,\"příjmení a jméno\",$A74)),0,GETPIVOTDATA(\"Součet z RZB\",Knt!$A$3,\"příjmení a jméno\",$A74))","v":3},{"$f":"IF(ISERR(GETPIVOTDATA(\"Součet z PZB\",Knt!$A$3,\"příjmení a jméno\",$A74)),0,GETPIVOTDATA(\"Součet z PZB\",Knt!$A$3,\"příjmení a jméno\",$A74))","v":0}]
[{"$f":"IF(Knt!A79=\" \",0,Knt!A79)","v":"Blažek Daniel"},{"$f":"IF(ISERR(GETPIVOTDATA(\"Bodů\",Knt!$A$3,\"příjmení a jméno\",$A75)),-1,GETPIVOTDATA(\"Bodů\",Knt!$A$3,\"příjmení a jméno\",$A75))","v":10},{"$f":"IF(ISERR(GETPIVOTDATA(\"Součet z RZB\",Knt!$A$3,\"příjmení a jméno\",$A75)),0,GETPIVOTDATA(\"Součet z RZB\",Knt!$A$3,\"příjmení a jméno\",$A75))","v":2},{"$f":"IF(ISERR(GETPIVOTDATA(\"Součet z PZB\",Knt!$A$3,\"příjmení a jméno\",$A75)),0,GETPIVOTDATA(\"Součet z PZB\",Knt!$A$3,\"příjmení a jméno\",$A75))","v":3}]
[{"$f":"IF(Knt!A75=\" \",0,Knt!A75)","v":"Murin Jan"},{"$f":"IF(ISERR(GETPIVOTDATA(\"Bodů\",Knt!$A$3,\"příjmení a jméno\",$A76)),-1,GETPIVOTDATA(\"Bodů\",Knt!$A$3,\"příjmení a jméno\",$A76))","v":10},{"$f":"IF(ISERR(GETPIVOTDATA(\"Součet z RZB\",Knt!$A$3,\"příjmení a jméno\",$A76)),0,GETPIVOTDATA(\"Součet z RZB\",Knt!$A$3,\"příjmení a jméno\",$A76))","v":-2},{"$f":"IF(ISERR(GETPIVOTDATA(\"Součet z PZB\",Knt!$A$3,\"příjmení a jméno\",$A76)),0,GETPIVOTDATA(\"Součet z PZB\",Knt!$A$3,\"příjmení a jméno\",$A76))","v":0.6}]
[{"$f":"IF(Knt!A74=\" \",0,Knt!A74)","v":"Polášek Vojtěch"},{"$f":"IF(ISERR(GETPIVOTDATA(\"Bodů\",Knt!$A$3,\"příjmení a jméno\",$A77)),-1,GETPIVOTDATA(\"Bodů\",Knt!$A$3,\"příjmení a jméno\",$A77))","v":10},{"$f":"IF(ISERR(GETPIVOTDATA(\"Součet z RZB\",Knt!$A$3,\"příjmení a jméno\",$A77)),0,GETPIVOTDATA(\"Součet z RZB\",Knt!$A$3,\"příjmení a jméno\",$A77))","v":-5},{"$f":"IF(ISERR(GETPIVOTDATA(\"Součet z PZB\",Knt!$A$3,\"příjmení a jméno\",$A77)),0,GETPIVOTDATA(\"Součet z PZB\",Knt!$A$3,\"příjmení a jméno\",$A77))","v":0.375}]
[{"$f":"IF(Knt!A84=\" \",0,Knt!A84)","v":"Hodák Daniel"},{"$f":"IF(ISERR(GETPIVOTDATA(\"Bodů\",Knt!$A$3,\"příjmení a jméno\",$A78)),-1,GETPIVOTDATA(\"Bodů\",Knt!$A$3,\"příjmení a jméno\",$A78))","v":9},{"$f":"IF(ISERR(GETPIVOTDATA(\"Součet z RZB\",Knt!$A$3,\"příjmení a jméno\",$A78)),0,GETPIVOTDATA(\"Součet z RZB\",Knt!$A$3,\"příjmení a jméno\",$A78))","v":3},{"$f":"IF(ISERR(GETPIVOTDATA(\"Součet z PZB\",Knt!$A$3,\"příjmení a jméno\",$A78)),0,GETPIVOTDATA(\"Součet z PZB\",Knt!$A$3,\"příjmení a jméno\",$A78))","v":0}]
[{"$f":"IF(Knt!A82=\" \",0,Knt!A82)","v":"Vavrla Alexandr"},{"$f":"IF(ISERR(GETPIVOTDATA(\"Bodů\",Knt!$A$3,\"příjmení a jméno\",$A79)),-1,GETPIVOTDATA(\"Bodů\",Knt!$A$3,\"příjmení a jméno\",$A79))","v":9},{"$f":"IF(ISERR(GETPIVOTDATA(\"Součet z RZB\",Knt!$A$3,\"příjmení a jméno\",$A79)),0,GETPIVOTDATA(\"Součet z RZB\",Knt!$A$3,\"příjmení a jméno\",$A79))","v":2},{"$f":"IF(ISERR(GETPIVOTDATA(\"Součet z PZB\",Knt!$A$3,\"příjmení a jméno\",$A79)),0,GETPIVOTDATA(\"Součet z PZB\",Knt!$A$3,\"příjmení a jméno\",$A79))","v":3}]
[{"$f":"IF(Knt!A85=\" \",0,Knt!A85)","v":"Fuljer Patrik"},{"$f":"IF(ISERR(GETPIVOTDATA(\"Bodů\",Knt!$A$3,\"příjmení a jméno\",$A80)),-1,GETPIVOTDATA(\"Bodů\",Knt!$A$3,\"příjmení a jméno\",$A80))","v":9},{"$f":"IF(ISERR(GETPIVOTDATA(\"Součet z RZB\",Knt!$A$3,\"příjmení a jméno\",$A80)),0,GETPIVOTDATA(\"Součet z RZB\",Knt!$A$3,\"příjmení a jméno\",$A80))","v":2},{"$f":"IF(ISERR(GETPIVOTDATA(\"Součet z PZB\",Knt!$A$3,\"příjmení a jméno\",$A80)),0,GETPIVOTDATA(\"Součet z PZB\",Knt!$A$3,\"příjmení a jméno\",$A80))","v":3}]
[{"$f":"IF(Knt!A86=\" \",0,Knt!A86)","v":"Havelka Josef"},{"$f":"IF(ISERR(GETPIVOTDATA(\"Bodů\",Knt!$A$3,\"příjmení a jméno\",$A81)),-1,GETPIVOTDATA(\"Bodů\",Knt!$A$3,\"příjmení a jméno\",$A81))","v":9},{"$f":"IF(ISERR(GETPIVOTDATA(\"Součet z RZB\",Knt!$A$3,\"příjmení a jméno\",$A81)),0,GETPIVOTDATA(\"Součet z RZB\",Knt!$A$3,\"příjmení a jméno\",$A81))","v":2},{"$f":"IF(ISERR(GETPIVOTDATA(\"Součet z PZB\",Knt!$A$3,\"příjmení a jméno\",$A81)),0,GETPIVOTDATA(\"Součet z PZB\",Knt!$A$3,\"příjmení a jméno\",$A81))","v":0}]
[{"$f":"IF(Knt!A83=\" \",0,Knt!A83)","v":"Grauer Lukáš"},{"$f":"IF(ISERR(GETPIVOTDATA(\"Bodů\",Knt!$A$3,\"příjmení a jméno\",$A82)),-1,GETPIVOTDATA(\"Bodů\",Knt!$A$3,\"příjmení a jméno\",$A82))","v":9},{"$f":"IF(ISERR(GETPIVOTDATA(\"Součet z RZB\",Knt!$A$3,\"příjmení a jméno\",$A82)),0,GETPIVOTDATA(\"Součet z RZB\",Knt!$A$3,\"příjmení a jméno\",$A82))","v":-1},{"$f":"IF(ISERR(GETPIVOTDATA(\"Součet z PZB\",Knt!$A$3,\"příjmení a jméno\",$A82)),0,GETPIVOTDATA(\"Součet z PZB\",Knt!$A$3,\"příjmení a jméno\",$A82))","v":0.66666666666666663}]
[{"$f":"IF(Knt!A87=\" \",0,Knt!A87)","v":"Buček Dan"},{"$f":"IF(ISERR(GETPIVOTDATA(\"Bodů\",Knt!$A$3,\"příjmení a jméno\",$A83)),-1,GETPIVOTDATA(\"Bodů\",Knt!$A$3,\"příjmení a jméno\",$A83))","v":9},{"$f":"IF(ISERR(GETPIVOTDATA(\"Součet z RZB\",Knt!$A$3,\"příjmení a jméno\",$A83)),0,GETPIVOTDATA(\"Součet z RZB\",Knt!$A$3,\"příjmení a jméno\",$A83))","v":-13},{"$f":"IF(ISERR(GETPIVOTDATA(\"Součet z PZB\",Knt!$A$3,\"příjmení a jméno\",$A83)),0,GETPIVOTDATA(\"Součet z PZB\",Knt!$A$3,\"příjmení a jméno\",$A83))","v":0}]
[{"$f":"IF(Knt!A89=\" \",0,Knt!A89)","v":"Titze Jakub"},{"$f":"IF(ISERR(GETPIVOTDATA(\"Bodů\",Knt!$A$3,\"příjmení a jméno\",$A84)),-1,GETPIVOTDATA(\"Bodů\",Knt!$A$3,\"příjmení a jméno\",$A84))","v":8},{"$f":"IF(ISERR(GETPIVOTDATA(\"Součet z RZB\",Knt!$A$3,\"příjmení a jméno\",$A84)),0,GETPIVOTDATA(\"Součet z RZB\",Knt!$A$3,\"příjmení a jméno\",$A84))","v":2},{"$f":"IF(ISERR(GETPIVOTDATA(\"Součet z PZB\",Knt!$A$3,\"příjmení a jméno\",$A84)),0,GETPIVOTDATA(\"Součet z PZB\",Knt!$A$3,\"příjmení a jméno\",$A84))","v":3}]
[{"$f":"IF(Knt!A91=\" \",0,Knt!A91)","v":"Přikryl Tomáš"},{"$f":"IF(ISERR(GETPIVOTDATA(\"Bodů\",Knt!$A$3,\"příjmení a jméno\",$A85)),-1,GETPIVOTDATA(\"Bodů\",Knt!$A$3,\"příjmení a jméno\",$A85))","v":8},{"$f":"IF(ISERR(GETPIVOTDATA(\"Součet z RZB\",Knt!$A$3,\"příjmení a jméno\",$A85)),0,GETPIVOTDATA(\"Součet z RZB\",Knt!$A$3,\"příjmení a jméno\",$A85))","v":2},{"$f":"IF(ISERR(GETPIVOTDATA(\"Součet z PZB\",Knt!$A$3,\"příjmení a jméno\",$A85)),0,GETPIVOTDATA(\"Součet z PZB\",Knt!$A$3,\"příjmení a jméno\",$A85))","v":0}]
[{"$f":"IF(Knt!A94=\" \",0,Knt!A94)","v":"Nghiemová Natálie"},{"$f":"IF(ISERR(GETPIVOTDATA(\"Bodů\",Knt!$A$3,\"příjmení a jméno\",$A86)),-1,GETPIVOTDATA(\"Bodů\",Knt!$A$3,\"příjmení a jméno\",$A86))","v":8},{"$f":"IF(ISERR(GETPIVOTDATA(\"Součet z RZB\",Knt!$A$3,\"příjmení a jméno\",$A86)),0,GETPIVOTDATA(\"Součet z RZB\",Knt!$A$3,\"příjmení a jméno\",$A86))","v":2},{"$f":"IF(ISERR(GETPIVOTDATA(\"Součet z PZB\",Knt!$A$3,\"příjmení a jméno\",$A86)),0,GETPIVOTDATA(\"Součet z PZB\",Knt!$A$3,\"příjmení a jméno\",$A86))","v":0}]
[{"$f":"IF(Knt!A92=\" \",0,Knt!A92)","v":"Valentík Lukáš"},{"$f":"IF(ISERR(GETPIVOTDATA(\"Bodů\",Knt!$A$3,\"příjmení a jméno\",$A87)),-1,GETPIVOTDATA(\"Bodů\",Knt!$A$3,\"příjmení a jméno\",$A87))","v":8},{"$f":"IF(ISERR(GETPIVOTDATA(\"Součet z RZB\",Knt!$A$3,\"příjmení a jméno\",$A87)),0,GETPIVOTDATA(\"Součet z RZB\",Knt!$A$3,\"příjmení a jméno\",$A87))","v":2},{"$f":"IF(ISERR(GETPIVOTDATA(\"Součet z PZB\",Knt!$A$3,\"příjmení a jméno\",$A87)),0,GETPIVOTDATA(\"Součet z PZB\",Knt!$A$3,\"příjmení a jméno\",$A87))","v":0}]
[{"$f":"IF(Knt!A90=\" \",0,Knt!A90)","v":"Pazdoň Matyáš"},{"$f":"IF(ISERR(GETPIVOTDATA(\"Bodů\",Knt!$A$3,\"příjmení a jméno\",$A88)),-1,GETPIVOTDATA(\"Bodů\",Knt!$A$3,\"příjmení a jméno\",$A88))","v":8},{"$f":"IF(ISERR(GETPIVOTDATA(\"Součet z RZB\",Knt!$A$3,\"příjmení a jméno\",$A88)),0,GETPIVOTDATA(\"Součet z RZB\",Knt!$A$3,\"příjmení a jméno\",$A88))","v":1},{"$f":"IF(ISERR(GETPIVOTDATA(\"Součet z PZB\",Knt!$A$3,\"příjmení a jméno\",$A88)),0,GETPIVOTDATA(\"Součet z PZB\",Knt!$A$3,\"příjmení a jméno\",$A88))","v":2}]
[{"$f":"IF(Knt!A93=\" \",0,Knt!A93)","v":"Jahodová Petra"},{"$f":"IF(ISERR(GETPIVOTDATA(\"Bodů\",Knt!$A$3,\"příjmení a jméno\",$A89)),-1,GETPIVOTDATA(\"Bodů\",Knt!$A$3,\"příjmení a jméno\",$A89))","v":8},{"$f":"IF(ISERR(GETPIVOTDATA(\"Součet z RZB\",Knt!$A$3,\"příjmení a jméno\",$A89)),0,GETPIVOTDATA(\"Součet z RZB\",Knt!$A$3,\"příjmení a jméno\",$A89))","v":0},{"$f":"IF(ISERR(GETPIVOTDATA(\"Součet z PZB\",Knt!$A$3,\"příjmení a jméno\",$A89)),0,GETPIVOTDATA(\"Součet z PZB\",Knt!$A$3,\"příjmení a jméno\",$A89))","v":1}]
[{"$f":"IF(Knt!A88=\" \",0,Knt!A88)","v":"Břežný Filip"},{"$f":"IF(ISERR(GETPIVOTDATA(\"Bodů\",Knt!$A$3,\"příjmení a jméno\",$A90)),-1,GETPIVOTDATA(\"Bodů\",Knt!$A$3,\"příjmení a jméno\",$A90))","v":8},{"$f":"IF(ISERR(GETPIVOTDATA(\"Součet z RZB\",Knt!$A$3,\"příjmení a jméno\",$A90)),0,GETPIVOTDATA(\"Součet z RZB\",Knt!$A$3,\"příjmení a jméno\",$A90))","v":-6},{"$f":"IF(ISERR(GETPIVOTDATA(\"Součet z PZB\",Knt!$A$3,\"příjmení a jméno\",$A90)),0,GETPIVOTDATA(\"Součet z PZB\",Knt!$A$3,\"příjmení a jméno\",$A90))","v":0.14285714285714285}]
[{"$f":"IF(Knt!A96=\" \",0,Knt!A96)","v":"Rechtík Metoděj"},{"$f":"IF(ISERR(GETPIVOTDATA(\"Bodů\",Knt!$A$3,\"příjmení a jméno\",$A91)),-1,GETPIVOTDATA(\"Bodů\",Knt!$A$3,\"příjmení a jméno\",$A91))","v":7},{"$f":"IF(ISERR(GETPIVOTDATA(\"Součet z RZB\",Knt!$A$3,\"příjmení a jméno\",$A91)),0,GETPIVOTDATA(\"Součet z RZB\",Knt!$A$3,\"příjmení a jméno\",$A91))","v":1},{"$f":"IF(ISERR(GETPIVOTDATA(\"Součet z PZB\",Knt!$A$3,\"příjmení a jméno\",$A91)),0,GETPIVOTDATA(\"Součet z PZB\",Knt!$A$3,\"příjmení a jméno\",$A91))","v":2}]
[{"$f":"IF(Knt!A97=\" \",0,Knt!A97)","v":"Sýkora Tomáš"},{"$f":"IF(ISERR(GETPIVOTDATA(\"Bodů\",Knt!$A$3,\"příjmení a jméno\",$A92)),-1,GETPIVOTDATA(\"Bodů\",Knt!$A$3,\"příjmení a jméno\",$A92))","v":7},{"$f":"IF(ISERR(GETPIVOTDATA(\"Součet z RZB\",Knt!$A$3,\"příjmení a jméno\",$A92)),0,GETPIVOTDATA(\"Součet z RZB\",Knt!$A$3,\"příjmení a jméno\",$A92))","v":1},{"$f":"IF(ISERR(GETPIVOTDATA(\"Součet z PZB\",Knt!$A$3,\"příjmení a jméno\",$A92)),0,GETPIVOTDATA(\"Součet z PZB\",Knt!$A$3,\"příjmení a jméno\",$A92))","v":2}]
[{"$f":"IF(Knt!A102=\" \",0,Knt!A102)","v":"Bodurová Kateřina"},{"$f":"IF(ISERR(GETPIVOTDATA(\"Bodů\",Knt!$A$3,\"příjmení a jméno\",$A93)),-1,GETPIVOTDATA(\"Bodů\",Knt!$A$3,\"příjmení a jméno\",$A93))","v":7},{"$f":"IF(ISERR(GETPIVOTDATA(\"Součet z RZB\",Knt!$A$3,\"příjmení a jméno\",$A93)),0,GETPIVOTDATA(\"Součet z RZB\",Knt!$A$3,\"příjmení a jméno\",$A93))","v":1},{"$f":"IF(ISERR(GETPIVOTDATA(\"Součet z PZB\",Knt!$A$3,\"příjmení a jméno\",$A93)),0,GETPIVOTDATA(\"Součet z PZB\",Knt!$A$3,\"příjmení a jméno\",$A93))","v":2}]
[{"$f":"IF(Knt!A101=\" \",0,Knt!A101)","v":"Dragon Dominik"},{"$f":"IF(ISERR(GETPIVOTDATA(\"Bodů\",Knt!$A$3,\"příjmení a jméno\",$A94)),-1,GETPIVOTDATA(\"Bodů\",Knt!$A$3,\"příjmení a jméno\",$A94))","v":7},{"$f":"IF(ISERR(GETPIVOTDATA(\"Součet z RZB\",Knt!$A$3,\"příjmení a jméno\",$A94)),0,GETPIVOTDATA(\"Součet z RZB\",Knt!$A$3,\"příjmení a jméno\",$A94))","v":1},{"$f":"IF(ISERR(GETPIVOTDATA(\"Součet z PZB\",Knt!$A$3,\"příjmení a jméno\",$A94)),0,GETPIVOTDATA(\"Součet z PZB\",Knt!$A$3,\"příjmení a jméno\",$A94))","v":2}]
[{"$f":"IF(Knt!A99=\" \",0,Knt!A99)","v":"Havelka Josef "},{"$f":"IF(ISERR(GETPIVOTDATA(\"Bodů\",Knt!$A$3,\"příjmení a jméno\",$A95)),-1,GETPIVOTDATA(\"Bodů\",Knt!$A$3,\"příjmení a jméno\",$A95))","v":7},{"$f":"IF(ISERR(GETPIVOTDATA(\"Součet z RZB\",Knt!$A$3,\"příjmení a jméno\",$A95)),0,GETPIVOTDATA(\"Součet z RZB\",Knt!$A$3,\"příjmení a jméno\",$A95))","v":1},{"$f":"IF(ISERR(GETPIVOTDATA(\"Součet z PZB\",Knt!$A$3,\"příjmení a jméno\",$A95)),0,GETPIVOTDATA(\"Součet z PZB\",Knt!$A$3,\"příjmení a jméno\",$A95))","v":2}]
[{"$f":"IF(Knt!A105=\" \",0,Knt!A105)","v":"Schotli Josef "},{"$f":"IF(ISERR(GETPIVOTDATA(\"Bodů\",Knt!$A$3,\"příjmení a jméno\",$A96)),-1,GETPIVOTDATA(\"Bodů\",Knt!$A$3,\"příjmení a jméno\",$A96))","v":7},{"$f":"IF(ISERR(GETPIVOTDATA(\"Součet z RZB\",Knt!$A$3,\"příjmení a jméno\",$A96)),0,GETPIVOTDATA(\"Součet z RZB\",Knt!$A$3,\"příjmení a jméno\",$A96))","v":1},{"$f":"IF(ISERR(GETPIVOTDATA(\"Součet z PZB\",Knt!$A$3,\"příjmení a jméno\",$A96)),0,GETPIVOTDATA(\"Součet z PZB\",Knt!$A$3,\"příjmení a jméno\",$A96))","v":2}]
[{"$f":"IF(Knt!A103=\" \",0,Knt!A103)","v":"Šumský Mirolav"},{"$f":"IF(ISERR(GETPIVOTDATA(\"Bodů\",Knt!$A$3,\"příjmení a jméno\",$A97)),-1,GETPIVOTDATA(\"Bodů\",Knt!$A$3,\"příjmení a jméno\",$A97))","v":7},{"$f":"IF(ISERR(GETPIVOTDATA(\"Součet z RZB\",Knt!$A$3,\"příjmení a jméno\",$A97)),0,GETPIVOTDATA(\"Součet z RZB\",Knt!$A$3,\"příjmení a jméno\",$A97))","v":1},{"$f":"IF(ISERR(GETPIVOTDATA(\"Součet z PZB\",Knt!$A$3,\"příjmení a jméno\",$A97)),0,GETPIVOTDATA(\"Součet z PZB\",Knt!$A$3,\"příjmení a jméno\",$A97))","v":2}]
[{"$f":"IF(Knt!A106=\" \",0,Knt!A106)","v":"Skalková Elen"},{"$f":"IF(ISERR(GETPIVOTDATA(\"Bodů\",Knt!$A$3,\"příjmení a jméno\",$A98)),-1,GETPIVOTDATA(\"Bodů\",Knt!$A$3,\"příjmení a jméno\",$A98))","v":7},{"$f":"IF(ISERR(GETPIVOTDATA(\"Součet z RZB\",Knt!$A$3,\"příjmení a jméno\",$A98)),0,GETPIVOTDATA(\"Součet z RZB\",Knt!$A$3,\"příjmení a jméno\",$A98))","v":1},{"$f":"IF(ISERR(GETPIVOTDATA(\"Součet z PZB\",Knt!$A$3,\"příjmení a jméno\",$A98)),0,GETPIVOTDATA(\"Součet z PZB\",Knt!$A$3,\"příjmení a jméno\",$A98))","v":2}]
[{"$f":"IF(Knt!A98=\" \",0,Knt!A98)","v":"Kristen Nikolas"},{"$f":"IF(ISERR(GETPIVOTDATA(\"Bodů\",Knt!$A$3,\"příjmení a jméno\",$A99)),-1,GETPIVOTDATA(\"Bodů\",Knt!$A$3,\"příjmení a jméno\",$A99))","v":7},{"$f":"IF(ISERR(GETPIVOTDATA(\"Součet z RZB\",Knt!$A$3,\"příjmení a jméno\",$A99)),0,GETPIVOTDATA(\"Součet z RZB\",Knt!$A$3,\"příjmení a jméno\",$A99))","v":1},{"$f":"IF(ISERR(GETPIVOTDATA(\"Součet z PZB\",Knt!$A$3,\"příjmení a jméno\",$A99)),0,GETPIVOTDATA(\"Součet z PZB\",Knt!$A$3,\"příjmení a jméno\",$A99))","v":2}]
[{"$f":"IF(Knt!A100=\" \",0,Knt!A100)","v":"Macháček Tomáš"},{"$f":"IF(ISERR(GETPIVOTDATA(\"Bodů\",Knt!$A$3,\"příjmení a jméno\",$A100)),-1,GETPIVOTDATA(\"Bodů\",Knt!$A$3,\"příjmení a jméno\",$A100))","v":7},{"$f":"IF(ISERR(GETPIVOTDATA(\"Součet z RZB\",Knt!$A$3,\"příjmení a jméno\",$A100)),0,GETPIVOTDATA(\"Součet z RZB\",Knt!$A$3,\"příjmení a jméno\",$A100))","v":1},{"$f":"IF(ISERR(GETPIVOTDATA(\"Součet z PZB\",Knt!$A$3,\"příjmení a jméno\",$A100)),0,GETPIVOTDATA(\"Součet z PZB\",Knt!$A$3,\"příjmení a jméno\",$A100))","v":2}]
[{"$f":"IF(Knt!A95=\" \",0,Knt!A95)","v":"Dvořáčková Apolena"},{"$f":"IF(ISERR(GETPIVOTDATA(\"Bodů\",Knt!$A$3,\"příjmení a jméno\",$A101)),-1,GETPIVOTDATA(\"Bodů\",Knt!$A$3,\"příjmení a jméno\",$A101))","v":7},{"$f":"IF(ISERR(GETPIVOTDATA(\"Součet z RZB\",Knt!$A$3,\"příjmení a jméno\",$A101)),0,GETPIVOTDATA(\"Součet z RZB\",Knt!$A$3,\"příjmení a jméno\",$A101))","v":-3},{"$f":"IF(ISERR(GETPIVOTDATA(\"Součet z PZB\",Knt!$A$3,\"příjmení a jméno\",$A101)),0,GETPIVOTDATA(\"Součet z PZB\",Knt!$A$3,\"příjmení a jméno\",$A101))","v":0.4}]
[{"$f":"IF(Knt!A104=\" \",0,Knt!A104)","v":"Boček Petr"},{"$f":"IF(ISERR(GETPIVOTDATA(\"Bodů\",Knt!$A$3,\"příjmení a jméno\",$A102)),-1,GETPIVOTDATA(\"Bodů\",Knt!$A$3,\"příjmení a jméno\",$A102))","v":7},{"$f":"IF(ISERR(GETPIVOTDATA(\"Součet z RZB\",Knt!$A$3,\"příjmení a jméno\",$A102)),0,GETPIVOTDATA(\"Součet z RZB\",Knt!$A$3,\"příjmení a jméno\",$A102))","v":-7},{"$f":"IF(ISERR(GETPIVOTDATA(\"Součet z PZB\",Knt!$A$3,\"příjmení a jméno\",$A102)),0,GETPIVOTDATA(\"Součet z PZB\",Knt!$A$3,\"příjmení a jméno\",$A102))","v":0}]
[{"$f":"IF(Knt!A108=\" \",0,Knt!A108)","v":"Pittrman Daniel"},{"$f":"IF(ISERR(GETPIVOTDATA(\"Bodů\",Knt!$A$3,\"příjmení a jméno\",$A103)),-1,GETPIVOTDATA(\"Bodů\",Knt!$A$3,\"příjmení a jméno\",$A103))","v":6},{"$f":"IF(ISERR(GETPIVOTDATA(\"Součet z RZB\",Knt!$A$3,\"příjmení a jméno\",$A103)),0,GETPIVOTDATA(\"Součet z RZB\",Knt!$A$3,\"příjmení a jméno\",$A103))","v":0},{"$f":"IF(ISERR(GETPIVOTDATA(\"Součet z PZB\",Knt!$A$3,\"příjmení a jméno\",$A103)),0,GETPIVOTDATA(\"Součet z PZB\",Knt!$A$3,\"příjmení a jméno\",$A103))","v":1}]
[{"$f":"IF(Knt!A107=\" \",0,Knt!A107)","v":"Pitrman Daniel"},{"$f":"IF(ISERR(GETPIVOTDATA(\"Bodů\",Knt!$A$3,\"příjmení a jméno\",$A104)),-1,GETPIVOTDATA(\"Bodů\",Knt!$A$3,\"příjmení a jméno\",$A104))","v":6},{"$f":"IF(ISERR(GETPIVOTDATA(\"Součet z RZB\",Knt!$A$3,\"příjmení a jméno\",$A104)),0,GETPIVOTDATA(\"Součet z RZB\",Knt!$A$3,\"příjmení a jméno\",$A104))","v":0},{"$f":"IF(ISERR(GETPIVOTDATA(\"Součet z PZB\",Knt!$A$3,\"příjmení a jméno\",$A104)),0,GETPIVOTDATA(\"Součet z PZB\",Knt!$A$3,\"příjmení a jméno\",$A104))","v":1}]
[{"$f":"IF(Knt!A109=\" \",0,Knt!A109)","v":"Fojtík Jiří"},{"$f":"IF(ISERR(GETPIVOTDATA(\"Bodů\",Knt!$A$3,\"příjmení a jméno\",$A105)),-1,GETPIVOTDATA(\"Bodů\",Knt!$A$3,\"příjmení a jméno\",$A105))","v":6},{"$f":"IF(ISERR(GETPIVOTDATA(\"Součet z RZB\",Knt!$A$3,\"příjmení a jméno\",$A105)),0,GETPIVOTDATA(\"Součet z RZB\",Knt!$A$3,\"příjmení a jméno\",$A105))","v":0},{"$f":"IF(ISERR(GETPIVOTDATA(\"Součet z PZB\",Knt!$A$3,\"příjmení a jméno\",$A105)),0,GETPIVOTDATA(\"Součet z PZB\",Knt!$A$3,\"příjmení a jméno\",$A105))","v":1}]
[{"$f":"IF(Knt!A110=\" \",0,Knt!A110)","v":"Kanclíř Šimon"},{"$f":"IF(ISERR(GETPIVOTDATA(\"Bodů\",Knt!$A$3,\"příjmení a jméno\",$A106)),-1,GETPIVOTDATA(\"Bodů\",Knt!$A$3,\"příjmení a jméno\",$A106))","v":6},{"$f":"IF(ISERR(GETPIVOTDATA(\"Součet z RZB\",Knt!$A$3,\"příjmení a jméno\",$A106)),0,GETPIVOTDATA(\"Součet z RZB\",Knt!$A$3,\"příjmení a jméno\",$A106))","v":0},{"$f":"IF(ISERR(GETPIVOTDATA(\"Součet z PZB\",Knt!$A$3,\"příjmení a jméno\",$A106)),0,GETPIVOTDATA(\"Součet z PZB\",Knt!$A$3,\"příjmení a jméno\",$A106))","v":1}]
[{"$f":"IF(Knt!A112=\" \",0,Knt!A112)","v":"Salamonová Karolína"},{"$f":"IF(ISERR(GETPIVOTDATA(\"Bodů\",Knt!$A$3,\"příjmení a jméno\",$A107)),-1,GETPIVOTDATA(\"Bodů\",Knt!$A$3,\"příjmení a jméno\",$A107))","v":5},{"$f":"IF(ISERR(GETPIVOTDATA(\"Součet z RZB\",Knt!$A$3,\"příjmení a jméno\",$A107)),0,GETPIVOTDATA(\"Součet z RZB\",Knt!$A$3,\"příjmení a jméno\",$A107))","v":0},{"$f":"IF(ISERR(GETPIVOTDATA(\"Součet z PZB\",Knt!$A$3,\"příjmení a jméno\",$A107)),0,GETPIVOTDATA(\"Součet z PZB\",Knt!$A$3,\"příjmení a jméno\",$A107))","v":1}]
[{"$f":"IF(Knt!A111=\" \",0,Knt!A111)","v":"Mazura Vladislav"},{"$f":"IF(ISERR(GETPIVOTDATA(\"Bodů\",Knt!$A$3,\"příjmení a jméno\",$A108)),-1,GETPIVOTDATA(\"Bodů\",Knt!$A$3,\"příjmení a jméno\",$A108))","v":5},{"$f":"IF(ISERR(GETPIVOTDATA(\"Součet z RZB\",Knt!$A$3,\"příjmení a jméno\",$A108)),0,GETPIVOTDATA(\"Součet z RZB\",Knt!$A$3,\"příjmení a jméno\",$A108))","v":0},{"$f":"IF(ISERR(GETPIVOTDATA(\"Součet z PZB\",Knt!$A$3,\"příjmení a jméno\",$A108)),0,GETPIVOTDATA(\"Součet z PZB\",Knt!$A$3,\"příjmení a jméno\",$A108))","v":1}]
[{"$f":"IF(Knt!A113=\" \",0,Knt!A113)","v":"Tomica Daniel"},{"$f":"IF(ISERR(GETPIVOTDATA(\"Bodů\",Knt!$A$3,\"příjmení a jméno\",$A109)),-1,GETPIVOTDATA(\"Bodů\",Knt!$A$3,\"příjmení a jméno\",$A109))","v":5},{"$f":"IF(ISERR(GETPIVOTDATA(\"Součet z RZB\",Knt!$A$3,\"příjmení a jméno\",$A109)),0,GETPIVOTDATA(\"Součet z RZB\",Knt!$A$3,\"příjmení a jméno\",$A109))","v":0},{"$f":"IF(ISERR(GETPIVOTDATA(\"Součet z PZB\",Knt!$A$3,\"příjmení a jméno\",$A109)),0,GETPIVOTDATA(\"Součet z PZB\",Knt!$A$3,\"příjmení a jméno\",$A109))","v":1}]
[{"$f":"IF(Knt!A116=\" \",0,Knt!A116)","v":"Juřica Radek"},{"$f":"IF(ISERR(GETPIVOTDATA(\"Bodů\",Knt!$A$3,\"příjmení a jméno\",$A110)),-1,GETPIVOTDATA(\"Bodů\",Knt!$A$3,\"příjmení a jméno\",$A110))","v":5},{"$f":"IF(ISERR(GETPIVOTDATA(\"Součet z RZB\",Knt!$A$3,\"příjmení a jméno\",$A110)),0,GETPIVOTDATA(\"Součet z RZB\",Knt!$A$3,\"příjmení a jméno\",$A110))","v":0},{"$f":"IF(ISERR(GETPIVOTDATA(\"Součet z PZB\",Knt!$A$3,\"příjmení a jméno\",$A110)),0,GETPIVOTDATA(\"Součet z PZB\",Knt!$A$3,\"příjmení a jméno\",$A110))","v":1}]
[{"$f":"IF(Knt!A114=\" \",0,Knt!A114)","v":"Bechný Adam"},{"$f":"IF(ISERR(GETPIVOTDATA(\"Bodů\",Knt!$A$3,\"příjmení a jméno\",$A111)),-1,GETPIVOTDATA(\"Bodů\",Knt!$A$3,\"příjmení a jméno\",$A111))","v":5},{"$f":"IF(ISERR(GETPIVOTDATA(\"Součet z RZB\",Knt!$A$3,\"příjmení a jméno\",$A111)),0,GETPIVOTDATA(\"Součet z RZB\",Knt!$A$3,\"příjmení a jméno\",$A111))","v":0},{"$f":"IF(ISERR(GETPIVOTDATA(\"Součet z PZB\",Knt!$A$3,\"příjmení a jméno\",$A111)),0,GETPIVOTDATA(\"Součet z PZB\",Knt!$A$3,\"příjmení a jméno\",$A111))","v":1}]
[{"$f":"IF(Knt!A118=\" \",0,Knt!A118)","v":"Kobiernicki Marek"},{"$f":"IF(ISERR(GETPIVOTDATA(\"Bodů\",Knt!$A$3,\"příjmení a jméno\",$A112)),-1,GETPIVOTDATA(\"Bodů\",Knt!$A$3,\"příjmení a jméno\",$A112))","v":5},{"$f":"IF(ISERR(GETPIVOTDATA(\"Součet z RZB\",Knt!$A$3,\"příjmení a jméno\",$A112)),0,GETPIVOTDATA(\"Součet z RZB\",Knt!$A$3,\"příjmení a jméno\",$A112))","v":0},{"$f":"IF(ISERR(GETPIVOTDATA(\"Součet z PZB\",Knt!$A$3,\"příjmení a jméno\",$A112)),0,GETPIVOTDATA(\"Součet z PZB\",Knt!$A$3,\"příjmení a jméno\",$A112))","v":1}]
[{"$f":"IF(Knt!A121=\" \",0,Knt!A121)","v":"Michálek Jakub"},{"$f":"IF(ISERR(GETPIVOTDATA(\"Bodů\",Knt!$A$3,\"příjmení a jméno\",$A113)),-1,GETPIVOTDATA(\"Bodů\",Knt!$A$3,\"příjmení a jméno\",$A113))","v":5},{"$f":"IF(ISERR(GETPIVOTDATA(\"Součet z RZB\",Knt!$A$3,\"příjmení a jméno\",$A113)),0,GETPIVOTDATA(\"Součet z RZB\",Knt!$A$3,\"příjmení a jméno\",$A113))","v":0},{"$f":"IF(ISERR(GETPIVOTDATA(\"Součet z PZB\",Knt!$A$3,\"příjmení a jméno\",$A113)),0,GETPIVOTDATA(\"Součet z PZB\",Knt!$A$3,\"příjmení a jméno\",$A113))","v":1}]
[{"$f":"IF(Knt!A120=\" \",0,Knt!A120)","v":"Kusyn Oliver"},{"$f":"IF(ISERR(GETPIVOTDATA(\"Bodů\",Knt!$A$3,\"příjmení a jméno\",$A114)),-1,GETPIVOTDATA(\"Bodů\",Knt!$A$3,\"příjmení a jméno\",$A114))","v":5},{"$f":"IF(ISERR(GETPIVOTDATA(\"Součet z RZB\",Knt!$A$3,\"příjmení a jméno\",$A114)),0,GETPIVOTDATA(\"Součet z RZB\",Knt!$A$3,\"příjmení a jméno\",$A114))","v":-1},{"$f":"IF(ISERR(GETPIVOTDATA(\"Součet z PZB\",Knt!$A$3,\"příjmení a jméno\",$A114)),0,GETPIVOTDATA(\"Součet z PZB\",Knt!$A$3,\"příjmení a jméno\",$A114))","v":0.5}]
[{"$f":"IF(Knt!A115=\" \",0,Knt!A115)","v":"Adamus Jan"},{"$f":"IF(ISERR(GETPIVOTDATA(\"Bodů\",Knt!$A$3,\"příjmení a jméno\",$A115)),-1,GETPIVOTDATA(\"Bodů\",Knt!$A$3,\"příjmení a jméno\",$A115))","v":5},{"$f":"IF(ISERR(GETPIVOTDATA(\"Součet z RZB\",Knt!$A$3,\"příjmení a jméno\",$A115)),0,GETPIVOTDATA(\"Součet z RZB\",Knt!$A$3,\"příjmení a jméno\",$A115))","v":-2},{"$f":"IF(ISERR(GETPIVOTDATA(\"Součet z PZB\",Knt!$A$3,\"příjmení a jméno\",$A115)),0,GETPIVOTDATA(\"Součet z PZB\",Knt!$A$3,\"příjmení a jméno\",$A115))","v":0.33333333333333331}]
[{"$f":"IF(Knt!A117=\" \",0,Knt!A117)","v":"Dokoupilová Anna"},{"$f":"IF(ISERR(GETPIVOTDATA(\"Bodů\",Knt!$A$3,\"příjmení a jméno\",$A116)),-1,GETPIVOTDATA(\"Bodů\",Knt!$A$3,\"příjmení a jméno\",$A116))","v":5},{"$f":"IF(ISERR(GETPIVOTDATA(\"Součet z RZB\",Knt!$A$3,\"příjmení a jméno\",$A116)),0,GETPIVOTDATA(\"Součet z RZB\",Knt!$A$3,\"příjmení a jméno\",$A116))","v":-4},{"$f":"IF(ISERR(GETPIVOTDATA(\"Součet z PZB\",Knt!$A$3,\"příjmení a jméno\",$A116)),0,GETPIVOTDATA(\"Součet z PZB\",Knt!$A$3,\"příjmení a jméno\",$A116))","v":0.2}]
[{"$f":"IF(Knt!A119=\" \",0,Knt!A119)","v":"Nováková Emma"},{"$f":"IF(ISERR(GETPIVOTDATA(\"Bodů\",Knt!$A$3,\"příjmení a jméno\",$A117)),-1,GETPIVOTDATA(\"Bodů\",Knt!$A$3,\"příjmení a jméno\",$A117))","v":5},{"$f":"IF(ISERR(GETPIVOTDATA(\"Součet z RZB\",Knt!$A$3,\"příjmení a jméno\",$A117)),0,GETPIVOTDATA(\"Součet z RZB\",Knt!$A$3,\"příjmení a jméno\",$A117))","v":-4},{"$f":"IF(ISERR(GETPIVOTDATA(\"Součet z PZB\",Knt!$A$3,\"příjmení a jméno\",$A117)),0,GETPIVOTDATA(\"Součet z PZB\",Knt!$A$3,\"příjmení a jméno\",$A117))","v":0.2}]
[{"$f":"IF(Knt!A126=\" \",0,Knt!A126)","v":"Holek Filip"},{"$f":"IF(ISERR(GETPIVOTDATA(\"Bodů\",Knt!$A$3,\"příjmení a jméno\",$A118)),-1,GETPIVOTDATA(\"Bodů\",Knt!$A$3,\"příjmení a jméno\",$A118))","v":4},{"$f":"IF(ISERR(GETPIVOTDATA(\"Součet z RZB\",Knt!$A$3,\"příjmení a jméno\",$A118)),0,GETPIVOTDATA(\"Součet z RZB\",Knt!$A$3,\"příjmení a jméno\",$A118))","v":0},{"$f":"IF(ISERR(GETPIVOTDATA(\"Součet z PZB\",Knt!$A$3,\"příjmení a jméno\",$A118)),0,GETPIVOTDATA(\"Součet z PZB\",Knt!$A$3,\"příjmení a jméno\",$A118))","v":0}]
[{"$f":"IF(Knt!A129=\" \",0,Knt!A129)","v":"Mikenda Ondřej"},{"$f":"IF(ISERR(GETPIVOTDATA(\"Bodů\",Knt!$A$3,\"příjmení a jméno\",$A119)),-1,GETPIVOTDATA(\"Bodů\",Knt!$A$3,\"příjmení a jméno\",$A119))","v":4},{"$f":"IF(ISERR(GETPIVOTDATA(\"Součet z RZB\",Knt!$A$3,\"příjmení a jméno\",$A119)),0,GETPIVOTDATA(\"Součet z RZB\",Knt!$A$3,\"příjmení a jméno\",$A119))","v":-1},{"$f":"IF(ISERR(GETPIVOTDATA(\"Součet z PZB\",Knt!$A$3,\"příjmení a jméno\",$A119)),0,GETPIVOTDATA(\"Součet z PZB\",Knt!$A$3,\"příjmení a jméno\",$A119))","v":0.5}]
[{"$f":"IF(Knt!A125=\" \",0,Knt!A125)","v":"Záruba Pavel"},{"$f":"IF(ISERR(GETPIVOTDATA(\"Bodů\",Knt!$A$3,\"příjmení a jméno\",$A120)),-1,GETPIVOTDATA(\"Bodů\",Knt!$A$3,\"příjmení a jméno\",$A120))","v":4},{"$f":"IF(ISERR(GETPIVOTDATA(\"Součet z RZB\",Knt!$A$3,\"příjmení a jméno\",$A120)),0,GETPIVOTDATA(\"Součet z RZB\",Knt!$A$3,\"příjmení a jméno\",$A120))","v":-1},{"$f":"IF(ISERR(GETPIVOTDATA(\"Součet z PZB\",Knt!$A$3,\"příjmení a jméno\",$A120)),0,GETPIVOTDATA(\"Součet z PZB\",Knt!$A$3,\"příjmení a jméno\",$A120))","v":0.5}]
[{"$f":"IF(Knt!A125=\" \",0,Knt!A125)","v":"Záruba Pavel"},{"$f":"IF(ISERR(GETPIVOTDATA(\"Bodů\",Knt!$A$3,\"příjmení a jméno\",$A121)),-1,GETPIVOTDATA(\"Bodů\",Knt!$A$3,\"příjmení a jméno\",$A121))","v":4},{"$f":"IF(ISERR(GETPIVOTDATA(\"Součet z RZB\",Knt!$A$3,\"příjmení a jméno\",$A121)),0,GETPIVOTDATA(\"Součet z RZB\",Knt!$A$3,\"příjmení a jméno\",$A121))","v":-1},{"$f":"IF(ISERR(GETPIVOTDATA(\"Součet z PZB\",Knt!$A$3,\"příjmení a jméno\",$A121)),0,GETPIVOTDATA(\"Součet z PZB\",Knt!$A$3,\"příjmení a jméno\",$A121))","v":0.5}]
[{"$f":"IF(Knt!A131=\" \",0,Knt!A131)","v":"Nytra Sebastián"},{"$f":"IF(ISERR(GETPIVOTDATA(\"Bodů\",Knt!$A$3,\"příjmení a jméno\",$A122)),-1,GETPIVOTDATA(\"Bodů\",Knt!$A$3,\"příjmení a jméno\",$A122))","v":4},{"$f":"IF(ISERR(GETPIVOTDATA(\"Součet z RZB\",Knt!$A$3,\"příjmení a jméno\",$A122)),0,GETPIVOTDATA(\"Součet z RZB\",Knt!$A$3,\"příjmení a jméno\",$A122))","v":-1},{"$f":"IF(ISERR(GETPIVOTDATA(\"Součet z PZB\",Knt!$A$3,\"příjmení a jméno\",$A122)),0,GETPIVOTDATA(\"Součet z PZB\",Knt!$A$3,\"příjmení a jméno\",$A122))","v":0.5}]
[{"$f":"IF(Knt!A132=\" \",0,Knt!A132)","v":"Kret Matyáš"},{"$f":"IF(ISERR(GETPIVOTDATA(\"Bodů\",Knt!$A$3,\"příjmení a jméno\",$A123)),-1,GETPIVOTDATA(\"Bodů\",Knt!$A$3,\"příjmení a jméno\",$A123))","v":4},{"$f":"IF(ISERR(GETPIVOTDATA(\"Součet z RZB\",Knt!$A$3,\"příjmení a jméno\",$A123)),0,GETPIVOTDATA(\"Součet z RZB\",Knt!$A$3,\"příjmení a jméno\",$A123))","v":-1},{"$f":"IF(ISERR(GETPIVOTDATA(\"Součet z PZB\",Knt!$A$3,\"příjmení a jméno\",$A123)),0,GETPIVOTDATA(\"Součet z PZB\",Knt!$A$3,\"příjmení a jméno\",$A123))","v":0.5}]
[{"$f":"IF(Knt!A135=\" \",0,Knt!A135)","v":"Kališik Jakub"},{"$f":"IF(ISERR(GETPIVOTDATA(\"Bodů\",Knt!$A$3,\"příjmení a jméno\",$A124)),-1,GETPIVOTDATA(\"Bodů\",Knt!$A$3,\"příjmení a jméno\",$A124))","v":4},{"$f":"IF(ISERR(GETPIVOTDATA(\"Součet z RZB\",Knt!$A$3,\"příjmení a jméno\",$A124)),0,GETPIVOTDATA(\"Součet z RZB\",Knt!$A$3,\"příjmení a jméno\",$A124))","v":-1},{"$f":"IF(ISERR(GETPIVOTDATA(\"Součet z PZB\",Knt!$A$3,\"příjmení a jméno\",$A124)),0,GETPIVOTDATA(\"Součet z PZB\",Knt!$A$3,\"příjmení a jméno\",$A124))","v":0.5}]
[{"$f":"IF(Knt!A137=\" \",0,Knt!A137)","v":"Slowik Nikolas"},{"$f":"IF(ISERR(GETPIVOTDATA(\"Bodů\",Knt!$A$3,\"příjmení a jméno\",$A125)),-1,GETPIVOTDATA(\"Bodů\",Knt!$A$3,\"příjmení a jméno\",$A125))","v":4},{"$f":"IF(ISERR(GETPIVOTDATA(\"Součet z RZB\",Knt!$A$3,\"příjmení a jméno\",$A125)),0,GETPIVOTDATA(\"Součet z RZB\",Knt!$A$3,\"příjmení a jméno\",$A125))","v":-1},{"$f":"IF(ISERR(GETPIVOTDATA(\"Součet z PZB\",Knt!$A$3,\"příjmení a jméno\",$A125)),0,GETPIVOTDATA(\"Součet z PZB\",Knt!$A$3,\"příjmení a jméno\",$A125))","v":0.5}]
[{"$f":"IF(Knt!A134=\" \",0,Knt!A134)","v":"Foldýnová Sabina"},{"$f":"IF(ISERR(GETPIVOTDATA(\"Bodů\",Knt!$A$3,\"příjmení a jméno\",$A126)),-1,GETPIVOTDATA(\"Bodů\",Knt!$A$3,\"příjmení a jméno\",$A126))","v":4},{"$f":"IF(ISERR(GETPIVOTDATA(\"Součet z RZB\",Knt!$A$3,\"příjmení a jméno\",$A126)),0,GETPIVOTDATA(\"Součet z RZB\",Knt!$A$3,\"příjmení a jméno\",$A126))","v":-1},{"$f":"IF(ISERR(GETPIVOTDATA(\"Součet z PZB\",Knt!$A$3,\"příjmení a jméno\",$A126)),0,GETPIVOTDATA(\"Součet z PZB\",Knt!$A$3,\"příjmení a jméno\",$A126))","v":0.5}]
[{"$f":"IF(Knt!A141=\" \",0,Knt!A141)","v":"Zelinger Karel"},{"$f":"IF(ISERR(GETPIVOTDATA(\"Bodů\",Knt!$A$3,\"příjmení a jméno\",$A127)),-1,GETPIVOTDATA(\"Bodů\",Knt!$A$3,\"příjmení a jméno\",$A127))","v":4},{"$f":"IF(ISERR(GETPIVOTDATA(\"Součet z RZB\",Knt!$A$3,\"příjmení a jméno\",$A127)),0,GETPIVOTDATA(\"Součet z RZB\",Knt!$A$3,\"příjmení a jméno\",$A127))","v":-1},{"$f":"IF(ISERR(GETPIVOTDATA(\"Součet z PZB\",Knt!$A$3,\"příjmení a jméno\",$A127)),0,GETPIVOTDATA(\"Součet z PZB\",Knt!$A$3,\"příjmení a jméno\",$A127))","v":0.5}]
[{"$f":"IF(Knt!A123=\" \",0,Knt!A123)","v":"Šotola Kryštof"},{"$f":"IF(ISERR(GETPIVOTDATA(\"Bodů\",Knt!$A$3,\"příjmení a jméno\",$A128)),-1,GETPIVOTDATA(\"Bodů\",Knt!$A$3,\"příjmení a jméno\",$A128))","v":4},{"$f":"IF(ISERR(GETPIVOTDATA(\"Součet z RZB\",Knt!$A$3,\"příjmení a jméno\",$A128)),0,GETPIVOTDATA(\"Součet z RZB\",Knt!$A$3,\"příjmení a jméno\",$A128))","v":-1},{"$f":"IF(ISERR(GETPIVOTDATA(\"Součet z PZB\",Knt!$A$3,\"příjmení a jméno\",$A128)),0,GETPIVOTDATA(\"Součet z PZB\",Knt!$A$3,\"příjmení a jméno\",$A128))","v":0.5}]
[{"$f":"IF(Knt!A123=\" \",0,Knt!A123)","v":"Šotola Kryštof"},{"$f":"IF(ISERR(GETPIVOTDATA(\"Bodů\",Knt!$A$3,\"příjmení a jméno\",$A129)),-1,GETPIVOTDATA(\"Bodů\",Knt!$A$3,\"příjmení a jméno\",$A129))","v":4},{"$f":"IF(ISERR(GETPIVOTDATA(\"Součet z RZB\",Knt!$A$3,\"příjmení a jméno\",$A129)),0,GETPIVOTDATA(\"Součet z RZB\",Knt!$A$3,\"příjmení a jméno\",$A129))","v":-1},{"$f":"IF(ISERR(GETPIVOTDATA(\"Součet z PZB\",Knt!$A$3,\"příjmení a jméno\",$A129)),0,GETPIVOTDATA(\"Součet z PZB\",Knt!$A$3,\"příjmení a jméno\",$A129))","v":0.5}]
[{"$f":"IF(Knt!A140=\" \",0,Knt!A140)","v":"Bukovjanová Charlotte"},{"$f":"IF(ISERR(GETPIVOTDATA(\"Bodů\",Knt!$A$3,\"příjmení a jméno\",$A130)),-1,GETPIVOTDATA(\"Bodů\",Knt!$A$3,\"příjmení a jméno\",$A130))","v":4},{"$f":"IF(ISERR(GETPIVOTDATA(\"Součet z RZB\",Knt!$A$3,\"příjmení a jméno\",$A130)),0,GETPIVOTDATA(\"Součet z RZB\",Knt!$A$3,\"příjmení a jméno\",$A130))","v":-1},{"$f":"IF(ISERR(GETPIVOTDATA(\"Součet z PZB\",Knt!$A$3,\"příjmení a jméno\",$A130)),0,GETPIVOTDATA(\"Součet z PZB\",Knt!$A$3,\"příjmení a jméno\",$A130))","v":0.5}]
[{"$f":"IF(Knt!A130=\" \",0,Knt!A130)","v":"Stohlová Karolína"},{"$f":"IF(ISERR(GETPIVOTDATA(\"Bodů\",Knt!$A$3,\"příjmení a jméno\",$A131)),-1,GETPIVOTDATA(\"Bodů\",Knt!$A$3,\"příjmení a jméno\",$A131))","v":4},{"$f":"IF(ISERR(GETPIVOTDATA(\"Součet z RZB\",Knt!$A$3,\"příjmení a jméno\",$A131)),0,GETPIVOTDATA(\"Součet z RZB\",Knt!$A$3,\"příjmení a jméno\",$A131))","v":-1},{"$f":"IF(ISERR(GETPIVOTDATA(\"Součet z PZB\",Knt!$A$3,\"příjmení a jméno\",$A131)),0,GETPIVOTDATA(\"Součet z PZB\",Knt!$A$3,\"příjmení a jméno\",$A131))","v":0.5}]
[{"$f":"IF(Knt!A124=\" \",0,Knt!A124)","v":"Kopcová Eliška"},{"$f":"IF(ISERR(GETPIVOTDATA(\"Bodů\",Knt!$A$3,\"příjmení a jméno\",$A132)),-1,GETPIVOTDATA(\"Bodů\",Knt!$A$3,\"příjmení a jméno\",$A132))","v":4},{"$f":"IF(ISERR(GETPIVOTDATA(\"Součet z RZB\",Knt!$A$3,\"příjmení a jméno\",$A132)),0,GETPIVOTDATA(\"Součet z RZB\",Knt!$A$3,\"příjmení a jméno\",$A132))","v":-1},{"$f":"IF(ISERR(GETPIVOTDATA(\"Součet z PZB\",Knt!$A$3,\"příjmení a jméno\",$A132)),0,GETPIVOTDATA(\"Součet z PZB\",Knt!$A$3,\"příjmení a jméno\",$A132))","v":0.5}]
[{"$f":"IF(Knt!A124=\" \",0,Knt!A124)","v":"Kopcová Eliška"},{"$f":"IF(ISERR(GETPIVOTDATA(\"Bodů\",Knt!$A$3,\"příjmení a jméno\",$A133)),-1,GETPIVOTDATA(\"Bodů\",Knt!$A$3,\"příjmení a jméno\",$A133))","v":4},{"$f":"IF(ISERR(GETPIVOTDATA(\"Součet z RZB\",Knt!$A$3,\"příjmení a jméno\",$A133)),0,GETPIVOTDATA(\"Součet z RZB\",Knt!$A$3,\"příjmení a jméno\",$A133))","v":-1},{"$f":"IF(ISERR(GETPIVOTDATA(\"Součet z PZB\",Knt!$A$3,\"příjmení a jméno\",$A133)),0,GETPIVOTDATA(\"Součet z PZB\",Knt!$A$3,\"příjmení a jméno\",$A133))","v":0.5}]
[{"$f":"IF(Knt!A127=\" \",0,Knt!A127)","v":"Grygárek Jan"},{"$f":"IF(ISERR(GETPIVOTDATA(\"Bodů\",Knt!$A$3,\"příjmení a jméno\",$A134)),-1,GETPIVOTDATA(\"Bodů\",Knt!$A$3,\"příjmení a jméno\",$A134))","v":4},{"$f":"IF(ISERR(GETPIVOTDATA(\"Součet z RZB\",Knt!$A$3,\"příjmení a jméno\",$A134)),0,GETPIVOTDATA(\"Součet z RZB\",Knt!$A$3,\"příjmení a jméno\",$A134))","v":-1},{"$f":"IF(ISERR(GETPIVOTDATA(\"Součet z PZB\",Knt!$A$3,\"příjmení a jméno\",$A134)),0,GETPIVOTDATA(\"Součet z PZB\",Knt!$A$3,\"příjmení a jméno\",$A134))","v":0.5}]
[{"$f":"IF(Knt!A136=\" \",0,Knt!A136)","v":"Kubik Lukáš"},{"$f":"IF(ISERR(GETPIVOTDATA(\"Bodů\",Knt!$A$3,\"příjmení a jméno\",$A135)),-1,GETPIVOTDATA(\"Bodů\",Knt!$A$3,\"příjmení a jméno\",$A135))","v":4},{"$f":"IF(ISERR(GETPIVOTDATA(\"Součet z RZB\",Knt!$A$3,\"příjmení a jméno\",$A135)),0,GETPIVOTDATA(\"Součet z RZB\",Knt!$A$3,\"příjmení a jméno\",$A135))","v":-1},{"$f":"IF(ISERR(GETPIVOTDATA(\"Součet z PZB\",Knt!$A$3,\"příjmení a jméno\",$A135)),0,GETPIVOTDATA(\"Součet z PZB\",Knt!$A$3,\"příjmení a jméno\",$A135))","v":0.5}]
[{"$f":"IF(Knt!A122=\" \",0,Knt!A122)","v":"Staněk Patrik"},{"$f":"IF(ISERR(GETPIVOTDATA(\"Bodů\",Knt!$A$3,\"příjmení a jméno\",$A136)),-1,GETPIVOTDATA(\"Bodů\",Knt!$A$3,\"příjmení a jméno\",$A136))","v":4},{"$f":"IF(ISERR(GETPIVOTDATA(\"Součet z RZB\",Knt!$A$3,\"příjmení a jméno\",$A136)),0,GETPIVOTDATA(\"Součet z RZB\",Knt!$A$3,\"příjmení a jméno\",$A136))","v":-1},{"$f":"IF(ISERR(GETPIVOTDATA(\"Součet z PZB\",Knt!$A$3,\"příjmení a jméno\",$A136)),0,GETPIVOTDATA(\"Součet z PZB\",Knt!$A$3,\"příjmení a jméno\",$A136))","v":0.5}]
[{"$f":"IF(Knt!A128=\" \",0,Knt!A128)","v":"Kališík Jakub"},{"$f":"IF(ISERR(GETPIVOTDATA(\"Bodů\",Knt!$A$3,\"příjmení a jméno\",$A137)),-1,GETPIVOTDATA(\"Bodů\",Knt!$A$3,\"příjmení a jméno\",$A137))","v":4},{"$f":"IF(ISERR(GETPIVOTDATA(\"Součet z RZB\",Knt!$A$3,\"příjmení a jméno\",$A137)),0,GETPIVOTDATA(\"Součet z RZB\",Knt!$A$3,\"příjmení a jméno\",$A137))","v":-1},{"$f":"IF(ISERR(GETPIVOTDATA(\"Součet z PZB\",Knt!$A$3,\"příjmení a jméno\",$A137)),0,GETPIVOTDATA(\"Součet z PZB\",Knt!$A$3,\"příjmení a jméno\",$A137))","v":0.5}]
[{"$f":"IF(Knt!A138=\" \",0,Knt!A138)","v":"Caletka Michal"},{"$f":"IF(ISERR(GETPIVOTDATA(\"Bodů\",Knt!$A$3,\"příjmení a jméno\",$A138)),-1,GETPIVOTDATA(\"Bodů\",Knt!$A$3,\"příjmení a jméno\",$A138))","v":4},{"$f":"IF(ISERR(GETPIVOTDATA(\"Součet z RZB\",Knt!$A$3,\"příjmení a jméno\",$A138)),0,GETPIVOTDATA(\"Součet z RZB\",Knt!$A$3,\"příjmení a jméno\",$A138))","v":-5},{"$f":"IF(ISERR(GETPIVOTDATA(\"Součet z PZB\",Knt!$A$3,\"příjmení a jméno\",$A138)),0,GETPIVOTDATA(\"Součet z PZB\",Knt!$A$3,\"příjmení a jméno\",$A138))","v":0.16666666666666666}]
[{"$f":"IF(Knt!A133=\" \",0,Knt!A133)","v":"Kreutz Martin"},{"$f":"IF(ISERR(GETPIVOTDATA(\"Bodů\",Knt!$A$3,\"příjmení a jméno\",$A139)),-1,GETPIVOTDATA(\"Bodů\",Knt!$A$3,\"příjmení a jméno\",$A139))","v":4},{"$f":"IF(ISERR(GETPIVOTDATA(\"Součet z RZB\",Knt!$A$3,\"příjmení a jméno\",$A139)),0,GETPIVOTDATA(\"Součet z RZB\",Knt!$A$3,\"příjmení a jméno\",$A139))","v":-7},{"$f":"IF(ISERR(GETPIVOTDATA(\"Součet z PZB\",Knt!$A$3,\"příjmení a jméno\",$A139)),0,GETPIVOTDATA(\"Součet z PZB\",Knt!$A$3,\"příjmení a jméno\",$A139))","v":0}]
[{"$f":"IF(Knt!A139=\" \",0,Knt!A139)","v":"Dastych Filip"},{"$f":"IF(ISERR(GETPIVOTDATA(\"Bodů\",Knt!$A$3,\"příjmení a jméno\",$A140)),-1,GETPIVOTDATA(\"Bodů\",Knt!$A$3,\"příjmení a jméno\",$A140))","v":4},{"$f":"IF(ISERR(GETPIVOTDATA(\"Součet z RZB\",Knt!$A$3,\"příjmení a jméno\",$A140)),0,GETPIVOTDATA(\"Součet z RZB\",Knt!$A$3,\"příjmení a jméno\",$A140))","v":-7},{"$f":"IF(ISERR(GETPIVOTDATA(\"Součet z PZB\",Knt!$A$3,\"příjmení a jméno\",$A140)),0,GETPIVOTDATA(\"Součet z PZB\",Knt!$A$3,\"příjmení a jméno\",$A140))","v":0}]
[{"$f":"IF(Knt!A150=\" \",0,Knt!A150)","v":"Kubala Martin"},{"$f":"IF(ISERR(GETPIVOTDATA(\"Bodů\",Knt!$A$3,\"příjmení a jméno\",$A141)),-1,GETPIVOTDATA(\"Bodů\",Knt!$A$3,\"příjmení a jméno\",$A141))","v":3},{"$f":"IF(ISERR(GETPIVOTDATA(\"Součet z RZB\",Knt!$A$3,\"příjmení a jméno\",$A141)),0,GETPIVOTDATA(\"Součet z RZB\",Knt!$A$3,\"příjmení a jméno\",$A141))","v":-1},{"$f":"IF(ISERR(GETPIVOTDATA(\"Součet z PZB\",Knt!$A$3,\"příjmení a jméno\",$A141)),0,GETPIVOTDATA(\"Součet z PZB\",Knt!$A$3,\"příjmení a jméno\",$A141))","v":0.5}]
[{"$f":"IF(Knt!A144=\" \",0,Knt!A144)","v":"Adamčíková Nela"},{"$f":"IF(ISERR(GETPIVOTDATA(\"Bodů\",Knt!$A$3,\"příjmení a jméno\",$A142)),-1,GETPIVOTDATA(\"Bodů\",Knt!$A$3,\"příjmení a jméno\",$A142))","v":3},{"$f":"IF(ISERR(GETPIVOTDATA(\"Součet z RZB\",Knt!$A$3,\"příjmení a jméno\",$A142)),0,GETPIVOTDATA(\"Součet z RZB\",Knt!$A$3,\"příjmení a jméno\",$A142))","v":-2},{"$f":"IF(ISERR(GETPIVOTDATA(\"Součet z PZB\",Knt!$A$3,\"příjmení a jméno\",$A142)),0,GETPIVOTDATA(\"Součet z PZB\",Knt!$A$3,\"příjmení a jméno\",$A142))","v":0.33333333333333331}]
[{"$f":"IF(Knt!A149=\" \",0,Knt!A149)","v":"Korytář Adam"},{"$f":"IF(ISERR(GETPIVOTDATA(\"Bodů\",Knt!$A$3,\"příjmení a jméno\",$A143)),-1,GETPIVOTDATA(\"Bodů\",Knt!$A$3,\"příjmení a jméno\",$A143))","v":3},{"$f":"IF(ISERR(GETPIVOTDATA(\"Součet z RZB\",Knt!$A$3,\"příjmení a jméno\",$A143)),0,GETPIVOTDATA(\"Součet z RZB\",Knt!$A$3,\"příjmení a jméno\",$A143))","v":-2},{"$f":"IF(ISERR(GETPIVOTDATA(\"Součet z PZB\",Knt!$A$3,\"příjmení a jméno\",$A143)),0,GETPIVOTDATA(\"Součet z PZB\",Knt!$A$3,\"příjmení a jméno\",$A143))","v":0.33333333333333331}]
[{"$f":"IF(Knt!A146=\" \",0,Knt!A146)","v":"Slováková Tereza"},{"$f":"IF(ISERR(GETPIVOTDATA(\"Bodů\",Knt!$A$3,\"příjmení a jméno\",$A144)),-1,GETPIVOTDATA(\"Bodů\",Knt!$A$3,\"příjmení a jméno\",$A144))","v":3},{"$f":"IF(ISERR(GETPIVOTDATA(\"Součet z RZB\",Knt!$A$3,\"příjmení a jméno\",$A144)),0,GETPIVOTDATA(\"Součet z RZB\",Knt!$A$3,\"příjmení a jméno\",$A144))","v":-2},{"$f":"IF(ISERR(GETPIVOTDATA(\"Součet z PZB\",Knt!$A$3,\"příjmení a jméno\",$A144)),0,GETPIVOTDATA(\"Součet z PZB\",Knt!$A$3,\"příjmení a jméno\",$A144))","v":0.33333333333333331}]
[{"$f":"IF(Knt!A147=\" \",0,Knt!A147)","v":"Peter Matyáš"},{"$f":"IF(ISERR(GETPIVOTDATA(\"Bodů\",Knt!$A$3,\"příjmení a jméno\",$A145)),-1,GETPIVOTDATA(\"Bodů\",Knt!$A$3,\"příjmení a jméno\",$A145))","v":3},{"$f":"IF(ISERR(GETPIVOTDATA(\"Součet z RZB\",Knt!$A$3,\"příjmení a jméno\",$A145)),0,GETPIVOTDATA(\"Součet z RZB\",Knt!$A$3,\"příjmení a jméno\",$A145))","v":-2},{"$f":"IF(ISERR(GETPIVOTDATA(\"Součet z PZB\",Knt!$A$3,\"příjmení a jméno\",$A145)),0,GETPIVOTDATA(\"Součet z PZB\",Knt!$A$3,\"příjmení a jméno\",$A145))","v":0.33333333333333331}]
[{"$f":"IF(Knt!A143=\" \",0,Knt!A143)","v":"Krische Simon"},{"$f":"IF(ISERR(GETPIVOTDATA(\"Bodů\",Knt!$A$3,\"příjmení a jméno\",$A146)),-1,GETPIVOTDATA(\"Bodů\",Knt!$A$3,\"příjmení a jméno\",$A146))","v":3},{"$f":"IF(ISERR(GETPIVOTDATA(\"Součet z RZB\",Knt!$A$3,\"příjmení a jméno\",$A146)),0,GETPIVOTDATA(\"Součet z RZB\",Knt!$A$3,\"příjmení a jméno\",$A146))","v":-2},{"$f":"IF(ISERR(GETPIVOTDATA(\"Součet z PZB\",Knt!$A$3,\"příjmení a jméno\",$A146)),0,GETPIVOTDATA(\"Součet z PZB\",Knt!$A$3,\"příjmení a jméno\",$A146))","v":0.33333333333333331}]
[{"$f":"IF(Knt!A142=\" \",0,Knt!A142)","v":"Pröschl Jakub"},{"$f":"IF(ISERR(GETPIVOTDATA(\"Bodů\",Knt!$A$3,\"příjmení a jméno\",$A147)),-1,GETPIVOTDATA(\"Bodů\",Knt!$A$3,\"příjmení a jméno\",$A147))","v":3},{"$f":"IF(ISERR(GETPIVOTDATA(\"Součet z RZB\",Knt!$A$3,\"příjmení a jméno\",$A147)),0,GETPIVOTDATA(\"Součet z RZB\",Knt!$A$3,\"příjmení a jméno\",$A147))","v":-2},{"$f":"IF(ISERR(GETPIVOTDATA(\"Součet z PZB\",Knt!$A$3,\"příjmení a jméno\",$A147)),0,GETPIVOTDATA(\"Součet z PZB\",Knt!$A$3,\"příjmení a jméno\",$A147))","v":0.33333333333333331}]
[{"$f":"IF(Knt!A145=\" \",0,Knt!A145)","v":"Smyček Martin"},{"$f":"IF(ISERR(GETPIVOTDATA(\"Bodů\",Knt!$A$3,\"příjmení a jméno\",$A148)),-1,GETPIVOTDATA(\"Bodů\",Knt!$A$3,\"příjmení a jméno\",$A148))","v":3},{"$f":"IF(ISERR(GETPIVOTDATA(\"Součet z RZB\",Knt!$A$3,\"příjmení a jméno\",$A148)),0,GETPIVOTDATA(\"Součet z RZB\",Knt!$A$3,\"příjmení a jméno\",$A148))","v":-2},{"$f":"IF(ISERR(GETPIVOTDATA(\"Součet z PZB\",Knt!$A$3,\"příjmení a jméno\",$A148)),0,GETPIVOTDATA(\"Součet z PZB\",Knt!$A$3,\"příjmení a jméno\",$A148))","v":0}]
[{"$f":"IF(Knt!A148=\" \",0,Knt!A148)","v":"Gilová Eliška"},{"$f":"IF(ISERR(GETPIVOTDATA(\"Bodů\",Knt!$A$3,\"příjmení a jméno\",$A149)),-1,GETPIVOTDATA(\"Bodů\",Knt!$A$3,\"příjmení a jméno\",$A149))","v":3},{"$f":"IF(ISERR(GETPIVOTDATA(\"Součet z RZB\",Knt!$A$3,\"příjmení a jméno\",$A149)),0,GETPIVOTDATA(\"Součet z RZB\",Knt!$A$3,\"příjmení a jméno\",$A149))","v":-7},{"$f":"IF(ISERR(GETPIVOTDATA(\"Součet z PZB\",Knt!$A$3,\"příjmení a jméno\",$A149)),0,GETPIVOTDATA(\"Součet z PZB\",Knt!$A$3,\"příjmení a jméno\",$A149))","v":0}]
[{"$f":"IF(Knt!A151=\" \",0,Knt!A151)","v":"Neshoda Vojtěch"},{"$f":"IF(ISERR(GETPIVOTDATA(\"Bodů\",Knt!$A$3,\"příjmení a jméno\",$A150)),-1,GETPIVOTDATA(\"Bodů\",Knt!$A$3,\"příjmení a jméno\",$A150))","v":2},{"$f":"IF(ISERR(GETPIVOTDATA(\"Součet z RZB\",Knt!$A$3,\"příjmení a jméno\",$A150)),0,GETPIVOTDATA(\"Součet z RZB\",Knt!$A$3,\"příjmení a jméno\",$A150))","v":0},{"$f":"IF(ISERR(GETPIVOTDATA(\"Součet z PZB\",Knt!$A$3,\"příjmení a jméno\",$A150)),0,GETPIVOTDATA(\"Součet z PZB\",Knt!$A$3,\"příjmení a jméno\",$A150))","v":0}]
[{"$f":"IF(Knt!A156=\" \",0,Knt!A156)","v":"Pithrman Daniel"},{"$f":"IF(ISERR(GETPIVOTDATA(\"Bodů\",Knt!$A$3,\"příjmení a jméno\",$A151)),-1,GETPIVOTDATA(\"Bodů\",Knt!$A$3,\"příjmení a jméno\",$A151))","v":2},{"$f":"IF(ISERR(GETPIVOTDATA(\"Součet z RZB\",Knt!$A$3,\"příjmení a jméno\",$A151)),0,GETPIVOTDATA(\"Součet z RZB\",Knt!$A$3,\"příjmení a jméno\",$A151))","v":-2},{"$f":"IF(ISERR(GETPIVOTDATA(\"Součet z PZB\",Knt!$A$3,\"příjmení a jméno\",$A151)),0,GETPIVOTDATA(\"Součet z PZB\",Knt!$A$3,\"příjmení a jméno\",$A151))","v":0}]
[{"$f":"IF(Knt!A155=\" \",0,Knt!A155)","v":"Roztomilý Ondřej"},{"$f":"IF(ISERR(GETPIVOTDATA(\"Bodů\",Knt!$A$3,\"příjmení a jméno\",$A152)),-1,GETPIVOTDATA(\"Bodů\",Knt!$A$3,\"příjmení a jméno\",$A152))","v":2},{"$f":"IF(ISERR(GETPIVOTDATA(\"Součet z RZB\",Knt!$A$3,\"příjmení a jméno\",$A152)),0,GETPIVOTDATA(\"Součet z RZB\",Knt!$A$3,\"příjmení a jméno\",$A152))","v":-2},{"$f":"IF(ISERR(GETPIVOTDATA(\"Součet z PZB\",Knt!$A$3,\"příjmení a jméno\",$A152)),0,GETPIVOTDATA(\"Součet z PZB\",Knt!$A$3,\"příjmení a jméno\",$A152))","v":0}]
[{"$f":"IF(Knt!A152=\" \",0,Knt!A152)","v":"Horuta Matyáš"},{"$f":"IF(ISERR(GETPIVOTDATA(\"Bodů\",Knt!$A$3,\"příjmení a jméno\",$A153)),-1,GETPIVOTDATA(\"Bodů\",Knt!$A$3,\"příjmení a jméno\",$A153))","v":2},{"$f":"IF(ISERR(GETPIVOTDATA(\"Součet z RZB\",Knt!$A$3,\"příjmení a jméno\",$A153)),0,GETPIVOTDATA(\"Součet z RZB\",Knt!$A$3,\"příjmení a jméno\",$A153))","v":-2},{"$f":"IF(ISERR(GETPIVOTDATA(\"Součet z PZB\",Knt!$A$3,\"příjmení a jméno\",$A153)),0,GETPIVOTDATA(\"Součet z PZB\",Knt!$A$3,\"příjmení a jméno\",$A153))","v":0}]
[{"$f":"IF(Knt!A153=\" \",0,Knt!A153)","v":"Bukovská Barbora"},{"$f":"IF(ISERR(GETPIVOTDATA(\"Bodů\",Knt!$A$3,\"příjmení a jméno\",$A154)),-1,GETPIVOTDATA(\"Bodů\",Knt!$A$3,\"příjmení a jméno\",$A154))","v":2},{"$f":"IF(ISERR(GETPIVOTDATA(\"Součet z RZB\",Knt!$A$3,\"příjmení a jméno\",$A154)),0,GETPIVOTDATA(\"Součet z RZB\",Knt!$A$3,\"příjmení a jméno\",$A154))","v":-2},{"$f":"IF(ISERR(GETPIVOTDATA(\"Součet z PZB\",Knt!$A$3,\"příjmení a jméno\",$A154)),0,GETPIVOTDATA(\"Součet z PZB\",Knt!$A$3,\"příjmení a jméno\",$A154))","v":0}]
[{"$f":"IF(Knt!A154=\" \",0,Knt!A154)","v":"Dvořák Josef"},{"$f":"IF(ISERR(GETPIVOTDATA(\"Bodů\",Knt!$A$3,\"příjmení a jméno\",$A155)),-1,GETPIVOTDATA(\"Bodů\",Knt!$A$3,\"příjmení a jméno\",$A155))","v":2},{"$f":"IF(ISERR(GETPIVOTDATA(\"Součet z RZB\",Knt!$A$3,\"příjmení a jméno\",$A155)),0,GETPIVOTDATA(\"Součet z RZB\",Knt!$A$3,\"příjmení a jméno\",$A155))","v":-3},{"$f":"IF(ISERR(GETPIVOTDATA(\"Součet z PZB\",Knt!$A$3,\"příjmení a jméno\",$A155)),0,GETPIVOTDATA(\"Součet z PZB\",Knt!$A$3,\"příjmení a jméno\",$A155))","v":0}]
[{"$f":"IF(Knt!A168=\" \",0,Knt!A168)","v":"Vavreczka Michal"},{"$f":"IF(ISERR(GETPIVOTDATA(\"Bodů\",Knt!$A$3,\"příjmení a jméno\",$A156)),-1,GETPIVOTDATA(\"Bodů\",Knt!$A$3,\"příjmení a jméno\",$A156))","v":1},{"$f":"IF(ISERR(GETPIVOTDATA(\"Součet z RZB\",Knt!$A$3,\"příjmení a jméno\",$A156)),0,GETPIVOTDATA(\"Součet z RZB\",Knt!$A$3,\"příjmení a jméno\",$A156))","v":0},{"$f":"IF(ISERR(GETPIVOTDATA(\"Součet z PZB\",Knt!$A$3,\"příjmení a jméno\",$A156)),0,GETPIVOTDATA(\"Součet z PZB\",Knt!$A$3,\"příjmení a jméno\",$A156))","v":0}]
[{"$f":"IF(Knt!A169=\" \",0,Knt!A169)","v":"Urban Filip"},{"$f":"IF(ISERR(GETPIVOTDATA(\"Bodů\",Knt!$A$3,\"příjmení a jméno\",$A157)),-1,GETPIVOTDATA(\"Bodů\",Knt!$A$3,\"příjmení a jméno\",$A157))","v":1},{"$f":"IF(ISERR(GETPIVOTDATA(\"Součet z RZB\",Knt!$A$3,\"příjmení a jméno\",$A157)),0,GETPIVOTDATA(\"Součet z RZB\",Knt!$A$3,\"příjmení a jméno\",$A157))","v":0},{"$f":"IF(ISERR(GETPIVOTDATA(\"Součet z PZB\",Knt!$A$3,\"příjmení a jméno\",$A157)),0,GETPIVOTDATA(\"Součet z PZB\",Knt!$A$3,\"příjmení a jméno\",$A157))","v":0}]
[{"$f":"IF(Knt!A160=\" \",0,Knt!A160)","v":"Adamus Jiří"},{"$f":"IF(ISERR(GETPIVOTDATA(\"Bodů\",Knt!$A$3,\"příjmení a jméno\",$A158)),-1,GETPIVOTDATA(\"Bodů\",Knt!$A$3,\"příjmení a jméno\",$A158))","v":1},{"$f":"IF(ISERR(GETPIVOTDATA(\"Součet z RZB\",Knt!$A$3,\"příjmení a jméno\",$A158)),0,GETPIVOTDATA(\"Součet z RZB\",Knt!$A$3,\"příjmení a jméno\",$A158))","v":0},{"$f":"IF(ISERR(GETPIVOTDATA(\"Součet z PZB\",Knt!$A$3,\"příjmení a jméno\",$A158)),0,GETPIVOTDATA(\"Součet z PZB\",Knt!$A$3,\"příjmení a jméno\",$A158))","v":0}]
[{"$f":"IF(Knt!A166=\" \",0,Knt!A166)","v":"Kreutz David"},{"$f":"IF(ISERR(GETPIVOTDATA(\"Bodů\",Knt!$A$3,\"příjmení a jméno\",$A159)),-1,GETPIVOTDATA(\"Bodů\",Knt!$A$3,\"příjmení a jméno\",$A159))","v":1},{"$f":"IF(ISERR(GETPIVOTDATA(\"Součet z RZB\",Knt!$A$3,\"příjmení a jméno\",$A159)),0,GETPIVOTDATA(\"Součet z RZB\",Knt!$A$3,\"příjmení a jméno\",$A159))","v":0},{"$f":"IF(ISERR(GETPIVOTDATA(\"Součet z PZB\",Knt!$A$3,\"příjmení a jméno\",$A159)),0,GETPIVOTDATA(\"Součet z PZB\",Knt!$A$3,\"příjmení a jméno\",$A159))","v":0}]
[{"$f":"IF(Knt!A172=\" \",0,Knt!A172)","v":"Korytář Dan"},{"$f":"IF(ISERR(GETPIVOTDATA(\"Bodů\",Knt!$A$3,\"příjmení a jméno\",$A160)),-1,GETPIVOTDATA(\"Bodů\",Knt!$A$3,\"příjmení a jméno\",$A160))","v":1},{"$f":"IF(ISERR(GETPIVOTDATA(\"Součet z RZB\",Knt!$A$3,\"příjmení a jméno\",$A160)),0,GETPIVOTDATA(\"Součet z RZB\",Knt!$A$3,\"příjmení a jméno\",$A160))","v":-3},{"$f":"IF(ISERR(GETPIVOTDATA(\"Součet z PZB\",Knt!$A$3,\"příjmení a jméno\",$A160)),0,GETPIVOTDATA(\"Součet z PZB\",Knt!$A$3,\"příjmení a jméno\",$A160))","v":0}]
[{"$f":"IF(Knt!A157=\" \",0,Knt!A157)","v":"Vlach Antonín"},{"$f":"IF(ISERR(GETPIVOTDATA(\"Bodů\",Knt!$A$3,\"příjmení a jméno\",$A161)),-1,GETPIVOTDATA(\"Bodů\",Knt!$A$3,\"příjmení a jméno\",$A161))","v":1},{"$f":"IF(ISERR(GETPIVOTDATA(\"Součet z RZB\",Knt!$A$3,\"příjmení a jméno\",$A161)),0,GETPIVOTDATA(\"Součet z RZB\",Knt!$A$3,\"příjmení a jméno\",$A161))","v":-3},{"$f":"IF(ISERR(GETPIVOTDATA(\"Součet z PZB\",Knt!$A$3,\"příjmení a jméno\",$A161)),0,GETPIVOTDATA(\"Součet z PZB\",Knt!$A$3,\"příjmení a jméno\",$A161))","v":0}]
[{"$f":"IF(Knt!A163=\" \",0,Knt!A163)","v":"Bukovský Ondřej"},{"$f":"IF(ISERR(GETPIVOTDATA(\"Bodů\",Knt!$A$3,\"příjmení a jméno\",$A162)),-1,GETPIVOTDATA(\"Bodů\",Knt!$A$3,\"příjmení a jméno\",$A162))","v":1},{"$f":"IF(ISERR(GETPIVOTDATA(\"Součet z RZB\",Knt!$A$3,\"příjmení a jméno\",$A162)),0,GETPIVOTDATA(\"Součet z RZB\",Knt!$A$3,\"příjmení a jméno\",$A162))","v":-3},{"$f":"IF(ISERR(GETPIVOTDATA(\"Součet z PZB\",Knt!$A$3,\"příjmení a jméno\",$A162)),0,GETPIVOTDATA(\"Součet z PZB\",Knt!$A$3,\"příjmení a jméno\",$A162))","v":0}]
[{"$f":"IF(Knt!A164=\" \",0,Knt!A164)","v":"Wojtas Ines"},{"$f":"IF(ISERR(GETPIVOTDATA(\"Bodů\",Knt!$A$3,\"příjmení a jméno\",$A163)),-1,GETPIVOTDATA(\"Bodů\",Knt!$A$3,\"příjmení a jméno\",$A163))","v":1},{"$f":"IF(ISERR(GETPIVOTDATA(\"Součet z RZB\",Knt!$A$3,\"příjmení a jméno\",$A163)),0,GETPIVOTDATA(\"Součet z RZB\",Knt!$A$3,\"příjmení a jméno\",$A163))","v":-3},{"$f":"IF(ISERR(GETPIVOTDATA(\"Součet z PZB\",Knt!$A$3,\"příjmení a jméno\",$A163)),0,GETPIVOTDATA(\"Součet z PZB\",Knt!$A$3,\"příjmení a jméno\",$A163))","v":0}]
[{"$f":"IF(Knt!A162=\" \",0,Knt!A162)","v":"Šindel Jakub"},{"$f":"IF(ISERR(GETPIVOTDATA(\"Bodů\",Knt!$A$3,\"příjmení a jméno\",$A164)),-1,GETPIVOTDATA(\"Bodů\",Knt!$A$3,\"příjmení a jméno\",$A164))","v":1},{"$f":"IF(ISERR(GETPIVOTDATA(\"Součet z RZB\",Knt!$A$3,\"příjmení a jméno\",$A164)),0,GETPIVOTDATA(\"Součet z RZB\",Knt!$A$3,\"příjmení a jméno\",$A164))","v":-3},{"$f":"IF(ISERR(GETPIVOTDATA(\"Součet z PZB\",Knt!$A$3,\"příjmení a jméno\",$A164)),0,GETPIVOTDATA(\"Součet z PZB\",Knt!$A$3,\"příjmení a jméno\",$A164))","v":0}]
[{"$f":"IF(Knt!A161=\" \",0,Knt!A161)","v":"Widziolek Richard"},{"$f":"IF(ISERR(GETPIVOTDATA(\"Bodů\",Knt!$A$3,\"příjmení a jméno\",$A165)),-1,GETPIVOTDATA(\"Bodů\",Knt!$A$3,\"příjmení a jméno\",$A165))","v":1},{"$f":"IF(ISERR(GETPIVOTDATA(\"Součet z RZB\",Knt!$A$3,\"příjmení a jméno\",$A165)),0,GETPIVOTDATA(\"Součet z RZB\",Knt!$A$3,\"příjmení a jméno\",$A165))","v":-3},{"$f":"IF(ISERR(GETPIVOTDATA(\"Součet z PZB\",Knt!$A$3,\"příjmení a jméno\",$A165)),0,GETPIVOTDATA(\"Součet z PZB\",Knt!$A$3,\"příjmení a jméno\",$A165))","v":0}]
[{"$f":"IF(Knt!A170=\" \",0,Knt!A170)","v":"Slovák Jiří"},{"$f":"IF(ISERR(GETPIVOTDATA(\"Bodů\",Knt!$A$3,\"příjmení a jméno\",$A166)),-1,GETPIVOTDATA(\"Bodů\",Knt!$A$3,\"příjmení a jméno\",$A166))","v":1},{"$f":"IF(ISERR(GETPIVOTDATA(\"Součet z RZB\",Knt!$A$3,\"příjmení a jméno\",$A166)),0,GETPIVOTDATA(\"Součet z RZB\",Knt!$A$3,\"příjmení a jméno\",$A166))","v":-3},{"$f":"IF(ISERR(GETPIVOTDATA(\"Součet z PZB\",Knt!$A$3,\"příjmení a jméno\",$A166)),0,GETPIVOTDATA(\"Součet z PZB\",Knt!$A$3,\"příjmení a jméno\",$A166))","v":0}]
[{"$f":"IF(Knt!A174=\" \",0,Knt!A174)","v":"Satora David"},{"$f":"IF(ISERR(GETPIVOTDATA(\"Bodů\",Knt!$A$3,\"příjmení a jméno\",$A167)),-1,GETPIVOTDATA(\"Bodů\",Knt!$A$3,\"příjmení a jméno\",$A167))","v":1},{"$f":"IF(ISERR(GETPIVOTDATA(\"Součet z RZB\",Knt!$A$3,\"příjmení a jméno\",$A167)),0,GETPIVOTDATA(\"Součet z RZB\",Knt!$A$3,\"příjmení a jméno\",$A167))","v":-3},{"$f":"IF(ISERR(GETPIVOTDATA(\"Součet z PZB\",Knt!$A$3,\"příjmení a jméno\",$A167)),0,GETPIVOTDATA(\"Součet z PZB\",Knt!$A$3,\"příjmení a jméno\",$A167))","v":0}]
[{"$f":"IF(Knt!A171=\" \",0,Knt!A171)","v":"Figar Jan"},{"$f":"IF(ISERR(GETPIVOTDATA(\"Bodů\",Knt!$A$3,\"příjmení a jméno\",$A168)),-1,GETPIVOTDATA(\"Bodů\",Knt!$A$3,\"příjmení a jméno\",$A168))","v":1},{"$f":"IF(ISERR(GETPIVOTDATA(\"Součet z RZB\",Knt!$A$3,\"příjmení a jméno\",$A168)),0,GETPIVOTDATA(\"Součet z RZB\",Knt!$A$3,\"příjmení a jméno\",$A168))","v":-3},{"$f":"IF(ISERR(GETPIVOTDATA(\"Součet z PZB\",Knt!$A$3,\"příjmení a jméno\",$A168)),0,GETPIVOTDATA(\"Součet z PZB\",Knt!$A$3,\"příjmení a jméno\",$A168))","v":0}]
[{"$f":"IF(Knt!A167=\" \",0,Knt!A167)","v":"Skořupa Matěj"},{"$f":"IF(ISERR(GETPIVOTDATA(\"Bodů\",Knt!$A$3,\"příjmení a jméno\",$A169)),-1,GETPIVOTDATA(\"Bodů\",Knt!$A$3,\"příjmení a jméno\",$A169))","v":1},{"$f":"IF(ISERR(GETPIVOTDATA(\"Součet z RZB\",Knt!$A$3,\"příjmení a jméno\",$A169)),0,GETPIVOTDATA(\"Součet z RZB\",Knt!$A$3,\"příjmení a jméno\",$A169))","v":-4},{"$f":"IF(ISERR(GETPIVOTDATA(\"Součet z PZB\",Knt!$A$3,\"příjmení a jméno\",$A169)),0,GETPIVOTDATA(\"Součet z PZB\",Knt!$A$3,\"příjmení a jméno\",$A169))","v":0}]
[{"$f":"IF(Knt!A173=\" \",0,Knt!A173)","v":"Vlček Petr"},{"$f":"IF(ISERR(GETPIVOTDATA(\"Bodů\",Knt!$A$3,\"příjmení a jméno\",$A170)),-1,GETPIVOTDATA(\"Bodů\",Knt!$A$3,\"příjmení a jméno\",$A170))","v":1},{"$f":"IF(ISERR(GETPIVOTDATA(\"Součet z RZB\",Knt!$A$3,\"příjmení a jméno\",$A170)),0,GETPIVOTDATA(\"Součet z RZB\",Knt!$A$3,\"příjmení a jméno\",$A170))","v":-4},{"$f":"IF(ISERR(GETPIVOTDATA(\"Součet z PZB\",Knt!$A$3,\"příjmení a jméno\",$A170)),0,GETPIVOTDATA(\"Součet z PZB\",Knt!$A$3,\"příjmení a jméno\",$A170))","v":0}]
[{"$f":"IF(Knt!A158=\" \",0,Knt!A158)","v":"Benáčková Denisa"},{"$f":"IF(ISERR(GETPIVOTDATA(\"Bodů\",Knt!$A$3,\"příjmení a jméno\",$A171)),-1,GETPIVOTDATA(\"Bodů\",Knt!$A$3,\"příjmení a jméno\",$A171))","v":1},{"$f":"IF(ISERR(GETPIVOTDATA(\"Součet z RZB\",Knt!$A$3,\"příjmení a jméno\",$A171)),0,GETPIVOTDATA(\"Součet z RZB\",Knt!$A$3,\"příjmení a jméno\",$A171))","v":-4},{"$f":"IF(ISERR(GETPIVOTDATA(\"Součet z PZB\",Knt!$A$3,\"příjmení a jméno\",$A171)),0,GETPIVOTDATA(\"Součet z PZB\",Knt!$A$3,\"příjmení a jméno\",$A171))","v":0}]
[{"$f":"IF(Knt!A176=\" \",0,Knt!A176)","v":"Koch Martin"},{"$f":"IF(ISERR(GETPIVOTDATA(\"Bodů\",Knt!$A$3,\"příjmení a jméno\",$A172)),-1,GETPIVOTDATA(\"Bodů\",Knt!$A$3,\"příjmení a jméno\",$A172))","v":1},{"$f":"IF(ISERR(GETPIVOTDATA(\"Součet z RZB\",Knt!$A$3,\"příjmení a jméno\",$A172)),0,GETPIVOTDATA(\"Součet z RZB\",Knt!$A$3,\"příjmení a jméno\",$A172))","v":-4},{"$f":"IF(ISERR(GETPIVOTDATA(\"Součet z PZB\",Knt!$A$3,\"příjmení a jméno\",$A172)),0,GETPIVOTDATA(\"Součet z PZB\",Knt!$A$3,\"příjmení a jméno\",$A172))","v":0}]
[{"$f":"IF(Knt!A159=\" \",0,Knt!A159)","v":"Coccia Francesco"},{"$f":"IF(ISERR(GETPIVOTDATA(\"Bodů\",Knt!$A$3,\"příjmení a jméno\",$A173)),-1,GETPIVOTDATA(\"Bodů\",Knt!$A$3,\"příjmení a jméno\",$A173))","v":1},{"$f":"IF(ISERR(GETPIVOTDATA(\"Součet z RZB\",Knt!$A$3,\"příjmení a jméno\",$A173)),0,GETPIVOTDATA(\"Součet z RZB\",Knt!$A$3,\"příjmení a jméno\",$A173))","v":-4},{"$f":"IF(ISERR(GETPIVOTDATA(\"Součet z PZB\",Knt!$A$3,\"příjmení a jméno\",$A173)),0,GETPIVOTDATA(\"Součet z PZB\",Knt!$A$3,\"příjmení a jméno\",$A173))","v":0}]
[{"$f":"IF(Knt!A165=\" \",0,Knt!A165)","v":"Lasák Robert"},{"$f":"IF(ISERR(GETPIVOTDATA(\"Bodů\",Knt!$A$3,\"příjmení a jméno\",$A174)),-1,GETPIVOTDATA(\"Bodů\",Knt!$A$3,\"příjmení a jméno\",$A174))","v":1},{"$f":"IF(ISERR(GETPIVOTDATA(\"Součet z RZB\",Knt!$A$3,\"příjmení a jméno\",$A174)),0,GETPIVOTDATA(\"Součet z RZB\",Knt!$A$3,\"příjmení a jméno\",$A174))","v":-4},{"$f":"IF(ISERR(GETPIVOTDATA(\"Součet z PZB\",Knt!$A$3,\"příjmení a jméno\",$A174)),0,GETPIVOTDATA(\"Součet z PZB\",Knt!$A$3,\"příjmení a jméno\",$A174))","v":0}]
[{"$f":"IF(Knt!A175=\" \",0,Knt!A175)","v":"Pizzato Alessandro"},{"$f":"IF(ISERR(GETPIVOTDATA(\"Bodů\",Knt!$A$3,\"příjmení a jméno\",$A175)),-1,GETPIVOTDATA(\"Bodů\",Knt!$A$3,\"příjmení a jméno\",$A175))","v":1},{"$f":"IF(ISERR(GETPIVOTDATA(\"Součet z RZB\",Knt!$A$3,\"příjmení a jméno\",$A175)),0,GETPIVOTDATA(\"Součet z RZB\",Knt!$A$3,\"příjmení a jméno\",$A175))","v":-4},{"$f":"IF(ISERR(GETPIVOTDATA(\"Součet z PZB\",Knt!$A$3,\"příjmení a jméno\",$A175)),0,GETPIVOTDATA(\"Součet z PZB\",Knt!$A$3,\"příjmení a jméno\",$A175))","v":0}]
[{"$f":"IF(Knt!A178=\" \",0,Knt!A178)","v":"Zakaryan Erik"},{"$f":"IF(ISERR(GETPIVOTDATA(\"Bodů\",Knt!$A$3,\"příjmení a jméno\",$A176)),-1,GETPIVOTDATA(\"Bodů\",Knt!$A$3,\"příjmení a jméno\",$A176))","v":0},{"$f":"IF(ISERR(GETPIVOTDATA(\"Součet z RZB\",Knt!$A$3,\"příjmení a jméno\",$A176)),0,GETPIVOTDATA(\"Součet z RZB\",Knt!$A$3,\"příjmení a jméno\",$A176))","v":0},{"$f":"IF(ISERR(GETPIVOTDATA(\"Součet z PZB\",Knt!$A$3,\"příjmení a jméno\",$A176)),0,GETPIVOTDATA(\"Součet z PZB\",Knt!$A$3,\"příjmení a jméno\",$A176))","v":0}]
[{"$f":"IF(Knt!A177=\" \",0,Knt!A177)","v":0},{"$f":"IF(ISERR(GETPIVOTDATA(\"Bodů\",Knt!$A$3,\"příjmení a jméno\",$A177)),-1,GETPIVOTDATA(\"Bodů\",Knt!$A$3,\"příjmení a jméno\",$A177))","v":-1},{"$f":"IF(ISERR(GETPIVOTDATA(\"Součet z RZB\",Knt!$A$3,\"příjmení a jméno\",$A177)),0,GETPIVOTDATA(\"Součet z RZB\",Knt!$A$3,\"příjmení a jméno\",$A177))","v":0},{"$f":"IF(ISERR(GETPIVOTDATA(\"Součet z PZB\",Knt!$A$3,\"příjmení a jméno\",$A177)),0,GETPIVOTDATA(\"Součet z PZB\",Knt!$A$3,\"příjmení a jméno\",$A177))","v":0}]
[{"$f":"IF(Knt!A179=\" \",0,Knt!A179)","v":0},{"$f":"IF(ISERR(GETPIVOTDATA(\"Bodů\",Knt!$A$3,\"příjmení a jméno\",$A178)),-1,GETPIVOTDATA(\"Bodů\",Knt!$A$3,\"příjmení a jméno\",$A178))","v":-1},{"$f":"IF(ISERR(GETPIVOTDATA(\"Součet z RZB\",Knt!$A$3,\"příjmení a jméno\",$A178)),0,GETPIVOTDATA(\"Součet z RZB\",Knt!$A$3,\"příjmení a jméno\",$A178))","v":0},{"$f":"IF(ISERR(GETPIVOTDATA(\"Součet z PZB\",Knt!$A$3,\"příjmení a jméno\",$A178)),0,GETPIVOTDATA(\"Součet z PZB\",Knt!$A$3,\"příjmení a jméno\",$A178))","v":0}]
[{"$f":"IF(Knt!A180=\" \",0,Knt!A180)","v":0},{"$f":"IF(ISERR(GETPIVOTDATA(\"Bodů\",Knt!$A$3,\"příjmení a jméno\",$A179)),-1,GETPIVOTDATA(\"Bodů\",Knt!$A$3,\"příjmení a jméno\",$A179))","v":-1},{"$f":"IF(ISERR(GETPIVOTDATA(\"Součet z RZB\",Knt!$A$3,\"příjmení a jméno\",$A179)),0,GETPIVOTDATA(\"Součet z RZB\",Knt!$A$3,\"příjmení a jméno\",$A179))","v":0},{"$f":"IF(ISERR(GETPIVOTDATA(\"Součet z PZB\",Knt!$A$3,\"příjmení a jméno\",$A179)),0,GETPIVOTDATA(\"Součet z PZB\",Knt!$A$3,\"příjmení a jméno\",$A179))","v":0}]
[{"$f":"IF(Knt!A181=\" \",0,Knt!A181)","v":0},{"$f":"IF(ISERR(GETPIVOTDATA(\"Bodů\",Knt!$A$3,\"příjmení a jméno\",$A180)),-1,GETPIVOTDATA(\"Bodů\",Knt!$A$3,\"příjmení a jméno\",$A180))","v":-1},{"$f":"IF(ISERR(GETPIVOTDATA(\"Součet z RZB\",Knt!$A$3,\"příjmení a jméno\",$A180)),0,GETPIVOTDATA(\"Součet z RZB\",Knt!$A$3,\"příjmení a jméno\",$A180))","v":0},{"$f":"IF(ISERR(GETPIVOTDATA(\"Součet z PZB\",Knt!$A$3,\"příjmení a jméno\",$A180)),0,GETPIVOTDATA(\"Součet z PZB\",Knt!$A$3,\"příjmení a jméno\",$A180))","v":0}]
[{"$f":"IF(Knt!A182=\" \",0,Knt!A182)","v":0},{"$f":"IF(ISERR(GETPIVOTDATA(\"Bodů\",Knt!$A$3,\"příjmení a jméno\",$A181)),-1,GETPIVOTDATA(\"Bodů\",Knt!$A$3,\"příjmení a jméno\",$A181))","v":-1},{"$f":"IF(ISERR(GETPIVOTDATA(\"Součet z RZB\",Knt!$A$3,\"příjmení a jméno\",$A181)),0,GETPIVOTDATA(\"Součet z RZB\",Knt!$A$3,\"příjmení a jméno\",$A181))","v":0},{"$f":"IF(ISERR(GETPIVOTDATA(\"Součet z PZB\",Knt!$A$3,\"příjmení a jméno\",$A181)),0,GETPIVOTDATA(\"Součet z PZB\",Knt!$A$3,\"příjmení a jméno\",$A181))","v":0}]
[{"$f":"IF(Knt!A183=\" \",0,Knt!A183)","v":0},{"$f":"IF(ISERR(GETPIVOTDATA(\"Bodů\",Knt!$A$3,\"příjmení a jméno\",$A182)),-1,GETPIVOTDATA(\"Bodů\",Knt!$A$3,\"příjmení a jméno\",$A182))","v":-1},{"$f":"IF(ISERR(GETPIVOTDATA(\"Součet z RZB\",Knt!$A$3,\"příjmení a jméno\",$A182)),0,GETPIVOTDATA(\"Součet z RZB\",Knt!$A$3,\"příjmení a jméno\",$A182))","v":0},{"$f":"IF(ISERR(GETPIVOTDATA(\"Součet z PZB\",Knt!$A$3,\"příjmení a jméno\",$A182)),0,GETPIVOTDATA(\"Součet z PZB\",Knt!$A$3,\"příjmení a jméno\",$A182))","v":0}]
[{"$f":"IF(Knt!A184=\" \",0,Knt!A184)","v":0},{"$f":"IF(ISERR(GETPIVOTDATA(\"Bodů\",Knt!$A$3,\"příjmení a jméno\",$A183)),-1,GETPIVOTDATA(\"Bodů\",Knt!$A$3,\"příjmení a jméno\",$A183))","v":-1},{"$f":"IF(ISERR(GETPIVOTDATA(\"Součet z RZB\",Knt!$A$3,\"příjmení a jméno\",$A183)),0,GETPIVOTDATA(\"Součet z RZB\",Knt!$A$3,\"příjmení a jméno\",$A183))","v":0},{"$f":"IF(ISERR(GETPIVOTDATA(\"Součet z PZB\",Knt!$A$3,\"příjmení a jméno\",$A183)),0,GETPIVOTDATA(\"Součet z PZB\",Knt!$A$3,\"příjmení a jméno\",$A183))","v":0}]
[{"$f":"IF(Knt!A189=\" \",0,Knt!A189)","v":0},{"$f":"IF(ISERR(GETPIVOTDATA(\"Bodů\",Knt!$A$3,\"příjmení a jméno\",$A184)),-1,GETPIVOTDATA(\"Bodů\",Knt!$A$3,\"příjmení a jméno\",$A184))","v":-1},{"$f":"IF(ISERR(GETPIVOTDATA(\"Součet z RZB\",Knt!$A$3,\"příjmení a jméno\",$A184)),0,GETPIVOTDATA(\"Součet z RZB\",Knt!$A$3,\"příjmení a jméno\",$A184))","v":0},{"$f":"IF(ISERR(GETPIVOTDATA(\"Součet z PZB\",Knt!$A$3,\"příjmení a jméno\",$A184)),0,GETPIVOTDATA(\"Součet z PZB\",Knt!$A$3,\"příjmení a jméno\",$A184))","v":0}]
[{"$f":"IF(Knt!A190=\" \",0,Knt!A190)","v":0},{"$f":"IF(ISERR(GETPIVOTDATA(\"Bodů\",Knt!$A$3,\"příjmení a jméno\",$A185)),-1,GETPIVOTDATA(\"Bodů\",Knt!$A$3,\"příjmení a jméno\",$A185))","v":-1},{"$f":"IF(ISERR(GETPIVOTDATA(\"Součet z RZB\",Knt!$A$3,\"příjmení a jméno\",$A185)),0,GETPIVOTDATA(\"Součet z RZB\",Knt!$A$3,\"příjmení a jméno\",$A185))","v":0},{"$f":"IF(ISERR(GETPIVOTDATA(\"Součet z PZB\",Knt!$A$3,\"příjmení a jméno\",$A185)),0,GETPIVOTDATA(\"Součet z PZB\",Knt!$A$3,\"příjmení a jméno\",$A185))","v":0}]
[{"$f":"IF(Knt!A186=\" \",0,Knt!A186)","v":0},{"$f":"IF(ISERR(GETPIVOTDATA(\"Bodů\",Knt!$A$3,\"příjmení a jméno\",$A186)),-1,GETPIVOTDATA(\"Bodů\",Knt!$A$3,\"příjmení a jméno\",$A186))","v":-1},{"$f":"IF(ISERR(GETPIVOTDATA(\"Součet z RZB\",Knt!$A$3,\"příjmení a jméno\",$A186)),0,GETPIVOTDATA(\"Součet z RZB\",Knt!$A$3,\"příjmení a jméno\",$A186))","v":0},{"$f":"IF(ISERR(GETPIVOTDATA(\"Součet z PZB\",Knt!$A$3,\"příjmení a jméno\",$A186)),0,GETPIVOTDATA(\"Součet z PZB\",Knt!$A$3,\"příjmení a jméno\",$A186))","v":0}]
[{"$f":"IF(Knt!A187=\" \",0,Knt!A187)","v":0},{"$f":"IF(ISERR(GETPIVOTDATA(\"Bodů\",Knt!$A$3,\"příjmení a jméno\",$A187)),-1,GETPIVOTDATA(\"Bodů\",Knt!$A$3,\"příjmení a jméno\",$A187))","v":-1},{"$f":"IF(ISERR(GETPIVOTDATA(\"Součet z RZB\",Knt!$A$3,\"příjmení a jméno\",$A187)),0,GETPIVOTDATA(\"Součet z RZB\",Knt!$A$3,\"příjmení a jméno\",$A187))","v":0},{"$f":"IF(ISERR(GETPIVOTDATA(\"Součet z PZB\",Knt!$A$3,\"příjmení a jméno\",$A187)),0,GETPIVOTDATA(\"Součet z PZB\",Knt!$A$3,\"příjmení a jméno\",$A187))","v":0}]
[{"$f":"IF(Knt!A188=\" \",0,Knt!A188)","v":0},{"$f":"IF(ISERR(GETPIVOTDATA(\"Bodů\",Knt!$A$3,\"příjmení a jméno\",$A188)),-1,GETPIVOTDATA(\"Bodů\",Knt!$A$3,\"příjmení a jméno\",$A188))","v":-1},{"$f":"IF(ISERR(GETPIVOTDATA(\"Součet z RZB\",Knt!$A$3,\"příjmení a jméno\",$A188)),0,GETPIVOTDATA(\"Součet z RZB\",Knt!$A$3,\"příjmení a jméno\",$A188))","v":0},{"$f":"IF(ISERR(GETPIVOTDATA(\"Součet z PZB\",Knt!$A$3,\"příjmení a jméno\",$A188)),0,GETPIVOTDATA(\"Součet z PZB\",Knt!$A$3,\"příjmení a jméno\",$A188))","v":0}]
[{"$f":"IF(Knt!A192=\" \",0,Knt!A192)","v":0},{"$f":"IF(ISERR(GETPIVOTDATA(\"Bodů\",Knt!$A$3,\"příjmení a jméno\",$A189)),-1,GETPIVOTDATA(\"Bodů\",Knt!$A$3,\"příjmení a jméno\",$A189))","v":-1},{"$f":"IF(ISERR(GETPIVOTDATA(\"Součet z RZB\",Knt!$A$3,\"příjmení a jméno\",$A189)),0,GETPIVOTDATA(\"Součet z RZB\",Knt!$A$3,\"příjmení a jméno\",$A189))","v":0},{"$f":"IF(ISERR(GETPIVOTDATA(\"Součet z PZB\",Knt!$A$3,\"příjmení a jméno\",$A189)),0,GETPIVOTDATA(\"Součet z PZB\",Knt!$A$3,\"příjmení a jméno\",$A189))","v":0}]
[{"$f":"IF(Knt!A196=\" \",0,Knt!A196)","v":0},{"$f":"IF(ISERR(GETPIVOTDATA(\"Bodů\",Knt!$A$3,\"příjmení a jméno\",$A190)),-1,GETPIVOTDATA(\"Bodů\",Knt!$A$3,\"příjmení a jméno\",$A190))","v":-1},{"$f":"IF(ISERR(GETPIVOTDATA(\"Součet z RZB\",Knt!$A$3,\"příjmení a jméno\",$A190)),0,GETPIVOTDATA(\"Součet z RZB\",Knt!$A$3,\"příjmení a jméno\",$A190))","v":0},{"$f":"IF(ISERR(GETPIVOTDATA(\"Součet z PZB\",Knt!$A$3,\"příjmení a jméno\",$A190)),0,GETPIVOTDATA(\"Součet z PZB\",Knt!$A$3,\"příjmení a jméno\",$A190))","v":0}]
[{"$f":"IF(Knt!A197=\" \",0,Knt!A197)","v":0},{"$f":"IF(ISERR(GETPIVOTDATA(\"Bodů\",Knt!$A$3,\"příjmení a jméno\",$A191)),-1,GETPIVOTDATA(\"Bodů\",Knt!$A$3,\"příjmení a jméno\",$A191))","v":-1},{"$f":"IF(ISERR(GETPIVOTDATA(\"Součet z RZB\",Knt!$A$3,\"příjmení a jméno\",$A191)),0,GETPIVOTDATA(\"Součet z RZB\",Knt!$A$3,\"příjmení a jméno\",$A191))","v":0},{"$f":"IF(ISERR(GETPIVOTDATA(\"Součet z PZB\",Knt!$A$3,\"příjmení a jméno\",$A191)),0,GETPIVOTDATA(\"Součet z PZB\",Knt!$A$3,\"příjmení a jméno\",$A191))","v":0}]
[{"$f":"IF(Knt!A200=\" \",0,Knt!A200)","v":0},{"$f":"IF(ISERR(GETPIVOTDATA(\"Bodů\",Knt!$A$3,\"příjmení a jméno\",$A192)),-1,GETPIVOTDATA(\"Bodů\",Knt!$A$3,\"příjmení a jméno\",$A192))","v":-1},{"$f":"IF(ISERR(GETPIVOTDATA(\"Součet z RZB\",Knt!$A$3,\"příjmení a jméno\",$A192)),0,GETPIVOTDATA(\"Součet z RZB\",Knt!$A$3,\"příjmení a jméno\",$A192))","v":0},{"$f":"IF(ISERR(GETPIVOTDATA(\"Součet z PZB\",Knt!$A$3,\"příjmení a jméno\",$A192)),0,GETPIVOTDATA(\"Součet z PZB\",Knt!$A$3,\"příjmení a jméno\",$A192))","v":0}]
[{"$f":"IF(Knt!A202=\" \",0,Knt!A202)","v":0},{"$f":"IF(ISERR(GETPIVOTDATA(\"Bodů\",Knt!$A$3,\"příjmení a jméno\",$A193)),-1,GETPIVOTDATA(\"Bodů\",Knt!$A$3,\"příjmení a jméno\",$A193))","v":-1},{"$f":"IF(ISERR(GETPIVOTDATA(\"Součet z RZB\",Knt!$A$3,\"příjmení a jméno\",$A193)),0,GETPIVOTDATA(\"Součet z RZB\",Knt!$A$3,\"příjmení a jméno\",$A193))","v":0},{"$f":"IF(ISERR(GETPIVOTDATA(\"Součet z PZB\",Knt!$A$3,\"příjmení a jméno\",$A193)),0,GETPIVOTDATA(\"Součet z PZB\",Knt!$A$3,\"příjmení a jméno\",$A193))","v":0}]
[{"$f":"IF(Knt!A185=\" \",0,Knt!A185)","v":0},{"$f":"IF(ISERR(GETPIVOTDATA(\"Bodů\",Knt!$A$3,\"příjmení a jméno\",$A194)),-1,GETPIVOTDATA(\"Bodů\",Knt!$A$3,\"příjmení a jméno\",$A194))","v":-1},{"$f":"IF(ISERR(GETPIVOTDATA(\"Součet z RZB\",Knt!$A$3,\"příjmení a jméno\",$A194)),0,GETPIVOTDATA(\"Součet z RZB\",Knt!$A$3,\"příjmení a jméno\",$A194))","v":0},{"$f":"IF(ISERR(GETPIVOTDATA(\"Součet z PZB\",Knt!$A$3,\"příjmení a jméno\",$A194)),0,GETPIVOTDATA(\"Součet z PZB\",Knt!$A$3,\"příjmení a jméno\",$A194))","v":0}]
[{"$f":"IF(Knt!A194=\" \",0,Knt!A194)","v":0},{"$f":"IF(ISERR(GETPIVOTDATA(\"Bodů\",Knt!$A$3,\"příjmení a jméno\",$A195)),-1,GETPIVOTDATA(\"Bodů\",Knt!$A$3,\"příjmení a jméno\",$A195))","v":-1},{"$f":"IF(ISERR(GETPIVOTDATA(\"Součet z RZB\",Knt!$A$3,\"příjmení a jméno\",$A195)),0,GETPIVOTDATA(\"Součet z RZB\",Knt!$A$3,\"příjmení a jméno\",$A195))","v":0},{"$f":"IF(ISERR(GETPIVOTDATA(\"Součet z PZB\",Knt!$A$3,\"příjmení a jméno\",$A195)),0,GETPIVOTDATA(\"Součet z PZB\",Knt!$A$3,\"příjmení a jméno\",$A195))","v":0}]
[{"$f":"IF(Knt!A198=\" \",0,Knt!A198)","v":0},{"$f":"IF(ISERR(GETPIVOTDATA(\"Bodů\",Knt!$A$3,\"příjmení a jméno\",$A196)),-1,GETPIVOTDATA(\"Bodů\",Knt!$A$3,\"příjmení a jméno\",$A196))","v":-1},{"$f":"IF(ISERR(GETPIVOTDATA(\"Součet z RZB\",Knt!$A$3,\"příjmení a jméno\",$A196)),0,GETPIVOTDATA(\"Součet z RZB\",Knt!$A$3,\"příjmení a jméno\",$A196))","v":0},{"$f":"IF(ISERR(GETPIVOTDATA(\"Součet z PZB\",Knt!$A$3,\"příjmení a jméno\",$A196)),0,GETPIVOTDATA(\"Součet z PZB\",Knt!$A$3,\"příjmení a jméno\",$A196))","v":0}]
[{"$f":"IF(Knt!A191=\" \",0,Knt!A191)","v":0},{"$f":"IF(ISERR(GETPIVOTDATA(\"Bodů\",Knt!$A$3,\"příjmení a jméno\",$A197)),-1,GETPIVOTDATA(\"Bodů\",Knt!$A$3,\"příjmení a jméno\",$A197))","v":-1},{"$f":"IF(ISERR(GETPIVOTDATA(\"Součet z RZB\",Knt!$A$3,\"příjmení a jméno\",$A197)),0,GETPIVOTDATA(\"Součet z RZB\",Knt!$A$3,\"příjmení a jméno\",$A197))","v":0},{"$f":"IF(ISERR(GETPIVOTDATA(\"Součet z PZB\",Knt!$A$3,\"příjmení a jméno\",$A197)),0,GETPIVOTDATA(\"Součet z PZB\",Knt!$A$3,\"příjmení a jméno\",$A197))","v":0}]
[{"$f":"IF(Knt!A199=\" \",0,Knt!A199)","v":0},{"$f":"IF(ISERR(GETPIVOTDATA(\"Bodů\",Knt!$A$3,\"příjmení a jméno\",$A198)),-1,GETPIVOTDATA(\"Bodů\",Knt!$A$3,\"příjmení a jméno\",$A198))","v":-1},{"$f":"IF(ISERR(GETPIVOTDATA(\"Součet z RZB\",Knt!$A$3,\"příjmení a jméno\",$A198)),0,GETPIVOTDATA(\"Součet z RZB\",Knt!$A$3,\"příjmení a jméno\",$A198))","v":0},{"$f":"IF(ISERR(GETPIVOTDATA(\"Součet z PZB\",Knt!$A$3,\"příjmení a jméno\",$A198)),0,GETPIVOTDATA(\"Součet z PZB\",Knt!$A$3,\"příjmení a jméno\",$A198))","v":0}]
[{"$f":"IF(Knt!A193=\" \",0,Knt!A193)","v":0},{"$f":"IF(ISERR(GETPIVOTDATA(\"Bodů\",Knt!$A$3,\"příjmení a jméno\",$A199)),-1,GETPIVOTDATA(\"Bodů\",Knt!$A$3,\"příjmení a jméno\",$A199))","v":-1},{"$f":"IF(ISERR(GETPIVOTDATA(\"Součet z RZB\",Knt!$A$3,\"příjmení a jméno\",$A199)),0,GETPIVOTDATA(\"Součet z RZB\",Knt!$A$3,\"příjmení a jméno\",$A199))","v":0},{"$f":"IF(ISERR(GETPIVOTDATA(\"Součet z PZB\",Knt!$A$3,\"příjmení a jméno\",$A199)),0,GETPIVOTDATA(\"Součet z PZB\",Knt!$A$3,\"příjmení a jméno\",$A199))","v":0}]
[{"$f":"IF(Knt!A195=\" \",0,Knt!A195)","v":0},{"$f":"IF(ISERR(GETPIVOTDATA(\"Bodů\",Knt!$A$3,\"příjmení a jméno\",$A200)),-1,GETPIVOTDATA(\"Bodů\",Knt!$A$3,\"příjmení a jméno\",$A200))","v":-1},{"$f":"IF(ISERR(GETPIVOTDATA(\"Součet z RZB\",Knt!$A$3,\"příjmení a jméno\",$A200)),0,GETPIVOTDATA(\"Součet z RZB\",Knt!$A$3,\"příjmení a jméno\",$A200))","v":0},{"$f":"IF(ISERR(GETPIVOTDATA(\"Součet z PZB\",Knt!$A$3,\"příjmení a jméno\",$A200)),0,GETPIVOTDATA(\"Součet z PZB\",Knt!$A$3,\"příjmení a jméno\",$A200))","v":0}]
[{"$f":"IF(Knt!A201=\" \",0,Knt!A201)","v":0},{"$f":"IF(ISERR(GETPIVOTDATA(\"Bodů\",Knt!$A$3,\"příjmení a jméno\",$A201)),-1,GETPIVOTDATA(\"Bodů\",Knt!$A$3,\"příjmení a jméno\",$A201))","v":-1},{"$f":"IF(ISERR(GETPIVOTDATA(\"Součet z RZB\",Knt!$A$3,\"příjmení a jméno\",$A201)),0,GETPIVOTDATA(\"Součet z RZB\",Knt!$A$3,\"příjmení a jméno\",$A201))","v":0},{"$f":"IF(ISERR(GETPIVOTDATA(\"Součet z PZB\",Knt!$A$3,\"příjmení a jméno\",$A201)),0,GETPIVOTDATA(\"Součet z PZB\",Knt!$A$3,\"příjmení a jméno\",$A201))","v":0}]

{"sheet":"Žebříček","index":4,"n_rows":42,"n_cols":10,"rows_kept":42,"cut":false,"hidden":false,"merged":[[0,0,0,7]]}
[{"$f":"\"Pořadí závodníků turnajů přípravek \"&YEAR(Výsledky!A2)","v":"Pořadí závodníků turnajů přípravek 2017"}]
["poř.","Příjmení a jméno","poř.","Příjmení a jméno","poř.","Příjmení a jméno","poř.","Příjmení a jméno","poř.","Příjmení a jméno"]
[1,{"$f":"IF('Seřazení Knt'!A2=0,\"\",'Seřazení Knt'!A2)","v":"Nuhlíček Jakub"},{"$f":"IF(D3=\"\",\"\",IF(AND('Seřazení Knt'!B41='Seřazení Knt'!B42,'Seřazení Knt'!C41='Seřazení Knt'!C42,'Seřazení Knt'!D41='Seřazení Knt'!D42),Žebříček!A42,Žebříček!A42+1))","v":38},{"$f":"IF('Seřazení Knt'!A42=0,\"\",'Seřazení Knt'!A42)","v":"Sikora Tomáš"},{"$f":"IF(F3=\"\",\"\",IF(AND('Seřazení Knt'!B81='Seřazení Knt'!B82,'Seřazení Knt'!C81='Seřazení Knt'!C82,'Seřazení Knt'!D81='Seřazení Knt'!D82),Žebříček!C42,Žebříček!C42+1))","v":63},{"$f":"IF('Seřazení Knt'!A82=0,\"\",'Seřazení Knt'!A82)","v":"Grauer Lukáš"},{"$f":"IF(H3=\"\",\"\",IF(AND('Seřazení Knt'!B121='Seřazení Knt'!B122,'Seřazení Knt'!C121='Seřazení Knt'!C122,'Seřazení Knt'!D121='Seřazení Knt'!D122),Žebříček!E42,Žebříček!E42+1))","v":79},{"$f":"IF('Seřazení Knt'!A122=0,\"\",'Seřazení Knt'!A122)","v":"Nytra Sebastián"},{"$f":"IF(J3=\"\",\"\",IF(AND('Seřazení Knt'!B161='Seřazení Knt'!B162,'Seřazení Knt'!C161='Seřazení Knt'!C162,'Seřazení Knt'!D161='Seřazení Knt'!D162),Žebříček!G42,Žebříček!G42+1))","v":90},{"$f":"IF('Seřazení Knt'!A162=0,\"\",'Seřazení Knt'!A162)","v":"Bukovský Ondřej"}]
[{"$f":"IF(B4=\"\",\"\",IF(AND('Seřazení Knt'!B2='Seřazení Knt'!B3,'Seřazení Knt'!C2='Seřazení Knt'!C3,'Seřazení Knt'!D2='Seřazení Knt'!D3),Žebříček!A3,Žebříček!A3+1))","v":2},{"$f":"IF('Seřazení Knt'!A3=0,\"\",'Seřazení Knt'!A3)","v":"Mařec Tomáš"},{"$f":"IF(D4=\"\",\"\",IF(AND('Seřazení Knt'!B42='Seřazení Knt'!B43,'Seřazení Knt'!C42='Seřazení Knt'!C43,'Seřazení Knt'!D42='Seřazení Knt'!D43),Žebříček!C3,Žebříček!C3+1))","v":38},{"$f":"IF('Seřazení Knt'!A43=0,\"\",'Seřazení Knt'!A43)","v":"Ciora  Jakub"},{"$f":"IF(F4=\"\",\"\",IF(AND('Seřazení Knt'!B82='Seřazení Knt'!B83,'Seřazení Knt'!C82='Seřazení Knt'!C83,'Seřazení Knt'!D82='Seřazení Knt'!D83),Žebříček!E3,Žebříček!E3+1))","v":64},{"$f":"IF('Seřazení Knt'!A83=0,\"\",'Seřazení Knt'!A83)","v":"Buček Dan"},{"$f":"IF(H4=\"\",\"\",IF(AND('Seřazení Knt'!B122='Seřazení Knt'!B123,'Seřazení Knt'!C122='Seřazení Knt'!C123,'Seřazení Knt'!D122='Seřazení Knt'!D123),Žebříček!G3,Žebříček!G3+1))","v":79},{"$f":"IF('Seřazení Knt'!A123=0,\"\",'Seřazení Knt'!A123)","v":"Kret Matyáš"},{"$f":"IF(J4=\"\",\"\",IF(AND('Seřazení Knt'!B162='Seřazení Knt'!B163,'Seřazení Knt'!C162='Seřazení Knt'!C163,'Seřazení Knt'!D162='Seřazení Knt'!D163),Žebříček!I3,Žebříček!I3+1))","v":90},{"$f":"IF('Seřazení Knt'!A163=0,\"\",'Seřazení Knt'!A163)","v":"Wojtas Ines"}]
[{"$f":"IF(B5=\"\",\"\",IF(AND('Seřazení Knt'!B3='Seřazení Knt'!B4,'Seřazení Knt'!C3='Seřazení Knt'!C4,'Seřazení Knt'!D3='Seřazení Knt'!D4),Žebříček!A4,Žebříček!A4+1))","v":3},{"$f":"IF('Seřazení Knt'!A4=0,\"\",'Seřazení Knt'!A4)","v":"Nuhlíček Michal"},{"$f":"IF(D5=\"\",\"\",IF(AND('Seřazení Knt'!B43='Seřazení Knt'!B44,'Seřazení Knt'!C43='Seřazení Knt'!C44,'Seřazení Knt'!D43='Seřazení Knt'!D44),Žebříček!C4,Žebříček!C4+1))","v":39},{"$f":"IF('Seřazení Knt'!A44=0,\"\",'Seřazení Knt'!A44)","v":"Lošáková Lucie"},{"$f":"IF(F5=\"\",\"\",IF(AND('Seřazení Knt'!B83='Seřazení Knt'!B84,'Seřazení Knt'!C83='Seřazení Knt'!C84,'Seřazení Knt'!D83='Seřazení Knt'!D84),Žebříček!E4,Žebříček!E4+1))","v":65},{"$f":"IF('Seřazení Knt'!A84=0,\"\",'Seřazení Knt'!A84)","v":"Titze Jakub"},{"$f":"IF(H5=\"\",\"\",IF(AND('Seřazení Knt'!B123='Seřazení Knt'!B124,'Seřazení Knt'!C123='Seřazení Knt'!C124,'Seřazení Knt'!D123='Seřazení Knt'!D124),Žebříček!G4,Žebříček!G4+1))","v":79},{"$f":"IF('Seřazení Knt'!A124=0,\"\",'Seřazení Knt'!A124)","v":"Kališik Jakub"},{"$f":"IF(J5=\"\",\"\",IF(AND('Seřazení Knt'!B163='Seřazení Knt'!B164,'Seřazení Knt'!C163='Seřazení Knt'!C164,'Seřazení Knt'!D163='Seřazení Knt'!D164),Žebříček!I4,Žebříček!I4+1))","v":90},{"$f":"IF('Seřazení Knt'!A164=0,\"\",'Seřazení Knt'!A164)","v":"Šindel Jakub"}]
[{"$f":"IF(B6=\"\",\"\",IF(AND('Seřazení Knt'!B4='Seřazení Knt'!B5,'Seřazení Knt'!C4='Seřazení Knt'!C5,'Seřazení Knt'!D4='Seřazení Knt'!D5),Žebříček!A5,Žebříček!A5+1))","v":4},{"$f":"IF('Seřazení Knt'!A5=0,\"\",'Seřazení Knt'!A5)","v":"Ryška Filip"},{"$f":"IF(D6=\"\",\"\",IF(AND('Seřazení Knt'!B44='Seřazení Knt'!B45,'Seřazení Knt'!C44='Seřazení Knt'!C45,'Seřazení Knt'!D44='Seřazení Knt'!D45),Žebříček!C5,Žebříček!C5+1))","v":40},{"$f":"IF('Seřazení Knt'!A45=0,\"\",'Seřazení Knt'!A45)","v":"Krčmář Michal"},{"$f":"IF(F6=\"\",\"\",IF(AND('Seřazení Knt'!B84='Seřazení Knt'!B85,'Seřazení Knt'!C84='Seřazení Knt'!C85,'Seřazení Knt'!D84='Seřazení Knt'!D85),Žebříček!E5,Žebříček!E5+1))","v":66},{"$f":"IF('Seřazení Knt'!A85=0,\"\",'Seřazení Knt'!A85)","v":"Přikryl Tomáš"},{"$f":"IF(H6=\"\",\"\",IF(AND('Seřazení Knt'!B124='Seřazení Knt'!B125,'Seřazení Knt'!C124='Seřazení Knt'!C125,'Seřazení Knt'!D124='Seřazení Knt'!D125),Žebříček!G5,Žebříček!G5+1))","v":79},{"$f":"IF('Seřazení Knt'!A125=0,\"\",'Seřazení Knt'!A125)","v":"Slowik Nikolas"},{"$f":"IF(J6=\"\",\"\",IF(AND('Seřazení Knt'!B164='Seřazení Knt'!B165,'Seřazení Knt'!C164='Seřazení Knt'!C165,'Seřazení Knt'!D164='Seřazení Knt'!D165),Žebříček!I5,Žebříček!I5+1))","v":90},{"$f":"IF('Seřazení Knt'!A165=0,\"\",'Seřazení Knt'!A165)","v":"Widziolek Richard"}]
[{"$f":"IF(B7=\"\",\"\",IF(AND('Seřazení Knt'!B5='Seřazení Knt'!B6,'Seřazení Knt'!C5='Seřazení Knt'!C6,'Seřazení Knt'!D5='Seřazení Knt'!D6),Žebříček!A6,Žebříček!A6+1))","v":5},{"$f":"IF('Seřazení Knt'!A6=0,\"\",'Seřazení Knt'!A6)","v":"Kuluris Manolis"},{"$f":"IF(D7=\"\",\"\",IF(AND('Seřazení Knt'!B45='Seřazení Knt'!B46,'Seřazení Knt'!C45='Seřazení Knt'!C46,'Seřazení Knt'!D45='Seřazení Knt'!D46),Žebříček!C6,Žebříček!C6+1))","v":41},{"$f":"IF('Seřazení Knt'!A46=0,\"\",'Seřazení Knt'!A46)","v":"Grauerová Kateřina"},{"$f":"IF(F7=\"\",\"\",IF(AND('Seřazení Knt'!B85='Seřazení Knt'!B86,'Seřazení Knt'!C85='Seřazení Knt'!C86,'Seřazení Knt'!D85='Seřazení Knt'!D86),Žebříček!E6,Žebříček!E6+1))","v":66},{"$f":"IF('Seřazení Knt'!A86=0,\"\",'Seřazení Knt'!A86)","v":"Nghiemová Natálie"},{"$f":"IF(H7=\"\",\"\",IF(AND('Seřazení Knt'!B125='Seřazení Knt'!B126,'Seřazení Knt'!C125='Seřazení Knt'!C126,'Seřazení Knt'!D125='Seřazení Knt'!D126),Žebříček!G6,Žebříček!G6+1))","v":79},{"$f":"IF('Seřazení Knt'!A126=0,\"\",'Seřazení Knt'!A126)","v":"Foldýnová Sabina"},{"$f":"IF(J7=\"\",\"\",IF(AND('Seřazení Knt'!B165='Seřazení Knt'!B166,'Seřazení Knt'!C165='Seřazení Knt'!C166,'Seřazení Knt'!D165='Seřazení Knt'!D166),Žebříček!I6,Žebříček!I6+1))","v":90},{"$f":"IF('Seřazení Knt'!A166=0,\"\",'Seřazení Knt'!A166)","v":"Slovák Jiří"}]
[{"$f":"IF(B8=\"\",\"\",IF(AND('Seřazení Knt'!B6='Seřazení Knt'!B7,'Seřazení Knt'!C6='Seřazení Knt'!C7,'Seřazení Knt'!D6='Seřazení Knt'!D7),Žebříček!A7,Žebříček!A7+1))","v":6},{"$f":"IF('Seřazení Knt'!A7=0,\"\",'Seřazení Knt'!A7)","v":"Malinovský Jiří"},{"$f":"IF(D8=\"\",\"\",IF(AND('Seřazení Knt'!B46='Seřazení Knt'!B47,'Seřazení Knt'!C46='Seřazení Knt'!C47,'Seřazení Knt'!D46='Seřazení Knt'!D47),Žebříček!C7,Žebříček!C7+1))","v":42},{"$f":"IF('Seřazení Knt'!A47=0,\"\",'Seřazení Knt'!A47)","v":"Graňák Dominik"},{"$f":"IF(F8=\"\",\"\",IF(AND('Seřazení Knt'!B86='Seřazení Knt'!B87,'Seřazení Knt'!C86='Seřazení Knt'!C87,'Seřazení Knt'!D86='Seřazení Knt'!D87),Žebříček!E7,Žebříček!E7+1))","v":66},{"$f":"IF('Seřazení Knt'!A87=0,\"\",'Seřazení Knt'!A87)","v":"Valentík Lukáš"},{"$f":"IF(H8=\"\",\"\",IF(AND('Seřazení Knt'!B126='Seřazení Knt'!B127,'Seřazení Knt'!C126='Seřazení Knt'!C127,'Seřazení Knt'!D126='Seřazení Knt'!D127),Žebříček!G7,Žebříček!G7+1))","v":79},{"$f":"IF('Seřazení Knt'!A127=0,\"\",'Seřazení Knt'!A127)","v":"Zelinger Karel"},{"$f":"IF(J8=\"\",\"\",IF(AND('Seřazení Knt'!B166='Seřazení Knt'!B167,'Seřazení Knt'!C166='Seřazení Knt'!C167,'Seřazení Knt'!D166='Seřazení Knt'!D167),Žebříček!I7,Žebříček!I7+1))","v":90},{"$f":"IF('Seřazení Knt'!A167=0,\"\",'Seřazení Knt'!A167)","v":"Satora David"}]
[{"$f":"IF(B9=\"\",\"\",IF(AND('Seřazení Knt'!B7='Seřazení Knt'!B8,'Seřazení Knt'!C7='Seřazení Knt'!C8,'Seřazení Knt'!D7='Seřazení Knt'!D8),Žebříček!A8,Žebříček!A8+1))","v":7},{"$f":"IF('Seřazení Knt'!A8=0,\"\",'Seřazení Knt'!A8)","v":"Brož Ondřej"},{"$f":"IF(D9=\"\",\"\",IF(AND('Seřazení Knt'!B47='Seřazení Knt'!B48,'Seřazení Knt'!C47='Seřazení Knt'!C48,'Seřazení Knt'!D47='Seřazení Knt'!D48),Žebříček!C8,Žebříček!C8+1))","v":42},{"$f":"IF('Seřazení Knt'!A48=0,\"\",'Seřazení Knt'!A48)","v":"Tichý Ondřej"},{"$f":"IF(F9=\"\",\"\",IF(AND('Seřazení Knt'!B87='Seřazení Knt'!B88,'Seřazení Knt'!C87='Seřazení Knt'!C88,'Seřazení Knt'!D87='Seřazení Knt'!D88),Žebříček!E8,Žebříček!E8+1))","v":67},{"$f":"IF('Seřazení Knt'!A88=0,\"\",'Seřazení Knt'!A88)","v":"Pazdoň Matyáš"},{"$f":"IF(H9=\"\",\"\",IF(AND('Seřazení Knt'!B127='Seřazení Knt'!B128,'Seřazení Knt'!C127='Seřazení Knt'!C128,'Seřazení Knt'!D127='Seřazení Knt'!D128),Žebříček!G8,Žebříček!G8+1))","v":79},{"$f":"IF('Seřazení Knt'!A128=0,\"\",'Seřazení Knt'!A128)","v":"Šotola Kryštof"},{"$f":"IF(J9=\"\",\"\",IF(AND('Seřazení Knt'!B167='Seřazení Knt'!B168,'Seřazení Knt'!C167='Seřazení Knt'!C168,'Seřazení Knt'!D167='Seřazení Knt'!D168),Žebříček!I8,Žebříček!I8+1))","v":90},{"$f":"IF('Seřazení Knt'!A168=0,\"\",'Seřazení Knt'!A168)","v":"Figar Jan"}]
[{"$f":"IF(B10=\"\",\"\",IF(AND('Seřazení Knt'!B8='Seřazení Knt'!B9,'Seřazení Knt'!C8='Seřazení Knt'!C9,'Seřazení Knt'!D8='Seřazení Knt'!D9),Žebříček!A9,Žebříček!A9+1))","v":8},{"$f":"IF('Seřazení Knt'!A9=0,\"\",'Seřazení Knt'!A9)","v":"Stark Vojtěch"},{"$f":"IF(D10=\"\",\"\",IF(AND('Seřazení Knt'!B48='Seřazení Knt'!B49,'Seřazení Knt'!C48='Seřazení Knt'!C49,'Seřazení Knt'!D48='Seřazení Knt'!D49),Žebříček!C9,Žebříček!C9+1))","v":42},{"$f":"IF('Seřazení Knt'!A49=0,\"\",'Seřazení Knt'!A49)","v":"Blaho Dominik"},{"$f":"IF(F10=\"\",\"\",IF(AND('Seřazení Knt'!B88='Seřazení Knt'!B89,'Seřazení Knt'!C88='Seřazení Knt'!C89,'Seřazení Knt'!D88='Seřazení Knt'!D89),Žebříček!E9,Žebříček!E9+1))","v":68},{"$f":"IF('Seřazení Knt'!A89=0,\"\",'Seřazení Knt'!A89)","v":"Jahodová Petra"},{"$f":"IF(H10=\"\",\"\",IF(AND('Seřazení Knt'!B128='Seřazení Knt'!B129,'Seřazení Knt'!C128='Seřazení Knt'!C129,'Seřazení Knt'!D128='Seřazení Knt'!D129),Žebříček!G9,Žebříček!G9+1))","v":79},{"$f":"IF('Seřazení Knt'!A129=0,\"\",'Seřazení Knt'!A129)","v":"Šotola Kryštof"},{"$f":"IF(J10=\"\",\"\",IF(AND('Seřazení Knt'!B168='Seřazení Knt'!B169,'Seřazení Knt'!C168='Seřazení Knt'!C169,'Seřazení Knt'!D168='Seřazení Knt'!D169),Žebříček!I9,Žebříček!I9+1))","v":91},{"$f":"IF('Seřazení Knt'!A169=0,\"\",'Seřazení Knt'!A169)","v":"Skořupa Matěj"}]
[{"$f":"IF(B11=\"\",\"\",IF(AND('Seřazení Knt'!B9='Seřazení Knt'!B10,'Seřazení Knt'!C9='Seřazení Knt'!C10,'Seřazení Knt'!D9='Seřazení Knt'!D10),Žebříček!A10,Žebříček!A10+1))","v":9},{"$f":"IF('Seřazení Knt'!A10=0,\"\",'Seřazení Knt'!A10)","v":"Havelka Štěpán"},{"$f":"IF(D11=\"\",\"\",IF(AND('Seřazení Knt'!B49='Seřazení Knt'!B50,'Seřazení Knt'!C49='Seřazení Knt'!C50,'Seřazení Knt'!D49='Seřazení Knt'!D50),Žebříček!C10,Žebříček!C10+1))","v":43},{"$f":"IF('Seřazení Knt'!A50=0,\"\",'Seřazení Knt'!A50)","v":"Románek Jakub"},{"$f":"IF(F11=\"\",\"\",IF(AND('Seřazení Knt'!B89='Seřazení Knt'!B90,'Seřazení Knt'!C89='Seřazení Knt'!C90,'Seřazení Knt'!D89='Seřazení Knt'!D90),Žebříček!E10,Žebříček!E10+1))","v":69},{"$f":"IF('Seřazení Knt'!A90=0,\"\",'Seřazení Knt'!A90)","v":"Břežný Filip"},{"$f":"IF(H11=\"\",\"\",IF(AND('Seřazení Knt'!B129='Seřazení Knt'!B130,'Seřazení Knt'!C129='Seřazení Knt'!C130,'Seřazení Knt'!D129='Seřazení Knt'!D130),Žebříček!G10,Žebříček!G10+1))","v":79},{"$f":"IF('Seřazení Knt'!A130=0,\"\",'Seřazení Knt'!A130)","v":"Bukovjanová Charlotte"},{"$f":"IF(J11=\"\",\"\",IF(AND('Seřazení Knt'!B169='Seřazení Knt'!B170,'Seřazení Knt'!C169='Seřazení Knt'!C170,'Seřazení Knt'!D169='Seřazení Knt'!D170),Žebříček!I10,Žebříček!I10+1))","v":91},{"$f":"IF('Seřazení Knt'!A170=0,\"\",'Seřazení Knt'!A170)","v":"Vlček Petr"}]
[{"$f":"IF(B12=\"\",\"\",IF(AND('Seřazení Knt'!B10='Seřazení Knt'!B11,'Seřazení Knt'!C10='Seřazení Knt'!C11,'Seřazení Knt'!D10='Seřazení Knt'!D11),Žebříček!A11,Žebříček!A11+1))","v":10},{"$f":"IF('Seřazení Knt'!A11=0,\"\",'Seřazení Knt'!A11)","v":"Lysický Sebastián"},{"$f":"IF(D12=\"\",\"\",IF(AND('Seřazení Knt'!B50='Seřazení Knt'!B51,'Seřazení Knt'!C50='Seřazení Knt'!C51,'Seřazení Knt'!D50='Seřazení Knt'!D51),Žebříček!C11,Žebříček!C11+1))","v":44},{"$f":"IF('Seřazení Knt'!A51=0,\"\",'Seřazení Knt'!A51)","v":"Blahová Alexandra"},{"$f":"IF(F12=\"\",\"\",IF(AND('Seřazení Knt'!B90='Seřazení Knt'!B91,'Seřazení Knt'!C90='Seřazení Knt'!C91,'Seřazení Knt'!D90='Seřazení Knt'!D91),Žebříček!E11,Žebříček!E11+1))","v":70},{"$f":"IF('Seřazení Knt'!A91=0,\"\",'Seřazení Knt'!A91)","v":"Rechtík Metoděj"},{"$f":"IF(H12=\"\",\"\",IF(AND('Seřazení Knt'!B130='Seřazení Knt'!B131,'Seřazení Knt'!C130='Seřazení Knt'!C131,'Seřazení Knt'!D130='Seřazení Knt'!D131),Žebříček!G11,Žebříček!G11+1))","v":79},{"$f":"IF('Seřazení Knt'!A131=0,\"\",'Seřazení Knt'!A131)","v":"Stohlová Karolína"},{"$f":"IF(J12=\"\",\"\",IF(AND('Seřazení Knt'!B170='Seřazení Knt'!B171,'Seřazení Knt'!C170='Seřazení Knt'!C171,'Seřazení Knt'!D170='Seřazení Knt'!D171),Žebříček!I11,Žebříček!I11+1))","v":91},{"$f":"IF('Seřazení Knt'!A171=0,\"\",'Seřazení Knt'!A171)","v":"Benáčková Denisa"}]
[{"$f":"IF(B13=\"\",\"\",IF(AND('Seřazení Knt'!B11='Seřazení Knt'!B12,'Seřazení Knt'!C11='Seřazení Knt'!C12,'Seřazení Knt'!D11='Seřazení Knt'!D12),Žebříček!A12,Žebříček!A12+1))","v":11},{"$f":"IF('Seřazení Knt'!A12=0,\"\",'Seřazení Knt'!A12)","v":"Kulhánek Adam"},{"$f":"IF(D13=\"\",\"\",IF(AND('Seřazení Knt'!B51='Seřazení Knt'!B52,'Seřazení Knt'!C51='Seřazení Knt'!C52,'Seřazení Knt'!D51='Seřazení Knt'!D52),Žebříček!C12,Žebříček!C12+1))","v":45},{"$f":"IF('Seřazení Knt'!A52=0,\"\",'Seřazení Knt'!A52)","v":"Starý Patrik"},{"$f":"IF(F13=\"\",\"\",IF(AND('Seřazení Knt'!B91='Seřazení Knt'!B92,'Seřazení Knt'!C91='Seřazení Knt'!C92,'Seřazení Knt'!D91='Seřazení Knt'!D92),Žebříček!E12,Žebříček!E12+1))","v":70},{"$f":"IF('Seřazení Knt'!A92=0,\"\",'Seřazení Knt'!A92)","v":"Sýkora Tomáš"},{"$f":"IF(H13=\"\",\"\",IF(AND('Seřazení Knt'!B131='Seřazení Knt'!B132,'Seřazení Knt'!C131='Seřazení Knt'!C132,'Seřazení Knt'!D131='Seřazení Knt'!D132),Žebříček!G12,Žebříček!G12+1))","v":79},{"$f":"IF('Seřazení Knt'!A132=0,\"\",'Seřazení Knt'!A132)","v":"Kopcová Eliška"},{"$f":"IF(J13=\"\",\"\",IF(AND('Seřazení Knt'!B171='Seřazení Knt'!B172,'Seřazení Knt'!C171='Seřazení Knt'!C172,'Seřazení Knt'!D171='Seřazení Knt'!D172),Žebříček!I12,Žebříček!I12+1))","v":91},{"$f":"IF('Seřazení Knt'!A172=0,\"\",'Seřazení Knt'!A172)","v":"Koch Martin"}]
[{"$f":"IF(B14=\"\",\"\",IF(AND('Seřazení Knt'!B12='Seřazení Knt'!B13,'Seřazení Knt'!C12='Seřazení Knt'!C13,'Seřazení Knt'!D12='Seřazení Knt'!D13),Žebříček!A13,Žebříček!A13+1))","v":12},{"$f":"IF('Seřazení Knt'!A13=0,\"\",'Seřazení Knt'!A13)","v":"Fojtík Jiří Václav"},{"$f":"IF(D14=\"\",\"\",IF(AND('Seřazení Knt'!B52='Seřazení Knt'!B53,'Seřazení Knt'!C52='Seřazení Knt'!C53,'Seřazení Knt'!D52='Seřazení Knt'!D53),Žebříček!C13,Žebříček!C13+1))","v":46},{"$f":"IF('Seřazení Knt'!A53=0,\"\",'Seřazení Knt'!A53)","v":"Maršálek Harry"},{"$f":"IF(F14=\"\",\"\",IF(AND('Seřazení Knt'!B92='Seřazení Knt'!B93,'Seřazení Knt'!C92='Seřazení Knt'!C93,'Seřazení Knt'!D92='Seřazení Knt'!D93),Žebříček!E13,Žebříček!E13+1))","v":70},{"$f":"IF('Seřazení Knt'!A93=0,\"\",'Seřazení Knt'!A93)","v":"Bodurová Kateřina"},{"$f":"IF(H14=\"\",\"\",IF(AND('Seřazení Knt'!B132='Seřazení Knt'!B133,'Seřazení Knt'!C132='Seřazení Knt'!C133,'Seřazení Knt'!D132='Seřazení Knt'!D133),Žebříček!G13,Žebříček!G13+1))","v":79},{"$f":"IF('Seřazení Knt'!A133=0,\"\",'Seřazení Knt'!A133)","v":"Kopcová Eliška"},{"$f":"IF(J14=\"\",\"\",IF(AND('Seřazení Knt'!B172='Seřazení Knt'!B173,'Seřazení Knt'!C172='Seřazení Knt'!C173,'Seřazení Knt'!D172='Seřazení Knt'!D173),Žebříček!I13,Žebříček!I13+1))","v":91},{"$f":"IF('Seřazení Knt'!A173=0,\"\",'Seřazení Knt'!A173)","v":"Coccia Francesco"}]
[{"$f":"IF(B15=\"\",\"\",IF(AND('Seřazení Knt'!B13='Seřazení Knt'!B14,'Seřazení Knt'!C13='Seřazení Knt'!C14,'Seřazení Knt'!D13='Seřazení Knt'!D14),Žebříček!A14,Žebříček!A14+1))","v":13},{"$f":"IF('Seřazení Knt'!A14=0,\"\",'Seřazení Knt'!A14)","v":"Zwilling Šimon"},{"$f":"IF(D15=\"\",\"\",IF(AND('Seřazení Knt'!B53='Seřazení Knt'!B54,'Seřazení Knt'!C53='Seřazení Knt'!C54,'Seřazení Knt'!D53='Seřazení Knt'!D54),Žebříček!C14,Žebříček!C14+1))","v":47},{"$f":"IF('Seřazení Knt'!A54=0,\"\",'Seřazení Knt'!A54)","v":"Suchan Jan"},{"$f":"IF(F15=\"\",\"\",IF(AND('Seřazení Knt'!B93='Seřazení Knt'!B94,'Seřazení Knt'!C93='Seřazení Knt'!C94,'Seřazení Knt'!D93='Seřazení Knt'!D94),Žebříček!E14,Žebříček!E14+1))","v":70},{"$f":"IF('Seřazení Knt'!A94=0,\"\",'Seřazení Knt'!A94)","v":"Dragon Dominik"},{"$f":"IF(H15=\"\",\"\",IF(AND('Seřazení Knt'!B133='Seřazení Knt'!B134,'Seřazení Knt'!C133='Seřazení Knt'!C134,'Seřazení Knt'!D133='Seřazení Knt'!D134),Žebříček!G14,Žebříček!G14+1))","v":79},{"$f":"IF('Seřazení Knt'!A134=0,\"\",'Seřazení Knt'!A134)","v":"Grygárek Jan"},{"$f":"IF(J15=\"\",\"\",IF(AND('Seřazení Knt'!B173='Seřazení Knt'!B174,'Seřazení Knt'!C173='Seřazení Knt'!C174,'Seřazení Knt'!D173='Seřazení Knt'!D174),Žebříček!I14,Žebříček!I14+1))","v":91},{"$f":"IF('Seřazení Knt'!A174=0,\"\",'Seřazení Knt'!A174)","v":"Lasák Robert"}]
[{"$f":"IF(B16=\"\",\"\",IF(AND('Seřazení Knt'!B14='Seřazení Knt'!B15,'Seřazení Knt'!C14='Seřazení Knt'!C15,'Seřazení Knt'!D14='Seřazení Knt'!D15),Žebříček!A15,Žebříček!A15+1))","v":14},{"$f":"IF('Seřazení Knt'!A15=0,\"\",'Seřazení Knt'!A15)","v":"Ciora Jakub"},{"$f":"IF(D16=\"\",\"\",IF(AND('Seřazení Knt'!B54='Seřazení Knt'!B55,'Seřazení Knt'!C54='Seřazení Knt'!C55,'Seřazení Knt'!D54='Seřazení Knt'!D55),Žebříček!C15,Žebříček!C15+1))","v":47},{"$f":"IF('Seřazení Knt'!A55=0,\"\",'Seřazení Knt'!A55)","v":"Vrbas Alexandr"},{"$f":"IF(F16=\"\",\"\",IF(AND('Seřazení Knt'!B94='Seřazení Knt'!B95,'Seřazení Knt'!C94='Seřazení Knt'!C95,'Seřazení Knt'!D94='Seřazení Knt'!D95),Žebříček!E15,Žebříček!E15+1))","v":70},{"$f":"IF('Seřazení Knt'!A95=0,\"\",'Seřazení Knt'!A95)","v":"Havelka Josef "},{"$f":"IF(H16=\"\",\"\",IF(AND('Seřazení Knt'!B134='Seřazení Knt'!B135,'Seřazení Knt'!C134='Seřazení Knt'!C135,'Seřazení Knt'!D134='Seřazení Knt'!D135),Žebříček!G15,Žebříček!G15+1))","v":79},{"$f":"IF('Seřazení Knt'!A135=0,\"\",'Seřazení Knt'!A135)","v":"Kubik Lukáš"},{"$f":"IF(J16=\"\",\"\",IF(AND('Seřazení Knt'!B174='Seřazení Knt'!B175,'Seřazení Knt'!C174='Seřazení Knt'!C175,'Seřazení Knt'!D174='Seřazení Knt'!D175),Žebříček!I15,Žebříček!I15+1))","v":91},{"$f":"IF('Seřazení Knt'!A175=0,\"\",'Seřazení Knt'!A175)","v":"Pizzato Alessandro"}]
[{"$f":"IF(B17=\"\",\"\",IF(AND('Seřazení Knt'!B15='Seřazení Knt'!B16,'Seřazení Knt'!C15='Seřazení Knt'!C16,'Seřazení Knt'!D15='Seřazení Knt'!D16),Žebříček!A16,Žebříček!A16+1))","v":15},{"$f":"IF('Seřazení Knt'!A16=0,\"\",'Seřazení Knt'!A16)","v":"Vlk František"},{"$f":"IF(D17=\"\",\"\",IF(AND('Seřazení Knt'!B55='Seřazení Knt'!B56,'Seřazení Knt'!C55='Seřazení Knt'!C56,'Seřazení Knt'!D55='Seřazení Knt'!D56),Žebříček!C16,Žebříček!C16+1))","v":47},{"$f":"IF('Seřazení Knt'!A56=0,\"\",'Seřazení Knt'!A56)","v":"Horák Richard"},{"$f":"IF(F17=\"\",\"\",IF(AND('Seřazení Knt'!B95='Seřazení Knt'!B96,'Seřazení Knt'!C95='Seřazení Knt'!C96,'Seřazení Knt'!D95='Seřazení Knt'!D96),Žebříček!E16,Žebříček!E16+1))","v":70},{"$f":"IF('Seřazení Knt'!A96=0,\"\",'Seřazení Knt'!A96)","v":"Schotli Josef "},{"$f":"IF(H17=\"\",\"\",IF(AND('Seřazení Knt'!B135='Seřazení Knt'!B136,'Seřazení Knt'!C135='Seřazení Knt'!C136,'Seřazení Knt'!D135='Seřazení Knt'!D136),Žebříček!G16,Žebříček!G16+1))","v":79},{"$f":"IF('Seřazení Knt'!A136=0,\"\",'Seřazení Knt'!A136)","v":"Staněk Patrik"},{"$f":"IF(J17=\"\",\"\",IF(AND('Seřazení Knt'!B175='Seřazení Knt'!B176,'Seřazení Knt'!C175='Seřazení Knt'!C176,'Seřazení Knt'!D175='Seřazení Knt'!D176),Žebříček!I16,Žebříček!I16+1))","v":92},{"$f":"IF('Seřazení Knt'!A176=0,\"\",'Seřazení Knt'!A176)","v":"Zakaryan Erik"}]
[{"$f":"IF(B18=\"\",\"\",IF(AND('Seřazení Knt'!B16='Seřazení Knt'!B17,'Seřazení Knt'!C16='Seřazení Knt'!C17,'Seřazení Knt'!D16='Seřazení Knt'!D17),Žebříček!A17,Žebříček!A17+1))","v":16},{"$f":"IF('Seřazení Knt'!A17=0,\"\",'Seřazení Knt'!A17)","v":"Nováček Nikolas"},{"$f":"IF(D18=\"\",\"\",IF(AND('Seřazení Knt'!B56='Seřazení Knt'!B57,'Seřazení Knt'!C56='Seřazení Knt'!C57,'Seřazení Knt'!D56='Seřazení Knt'!D57),Žebříček!C17,Žebříček!C17+1))","v":48},{"$f":"IF('Seřazení Knt'!A57=0,\"\",'Seřazení Knt'!A57)","v":"Závodný Matyáš"},{"$f":"IF(F18=\"\",\"\",IF(AND('Seřazení Knt'!B96='Seřazení Knt'!B97,'Seřazení Knt'!C96='Seřazení Knt'!C97,'Seřazení Knt'!D96='Seřazení Knt'!D97),Žebříček!E17,Žebříček!E17+1))","v":70},{"$f":"IF('Seřazení Knt'!A97=0,\"\",'Seřazení Knt'!A97)","v":"Šumský Mirolav"},{"$f":"IF(H18=\"\",\"\",IF(AND('Seřazení Knt'!B136='Seřazení Knt'!B137,'Seřazení Knt'!C136='Seřazení Knt'!C137,'Seřazení Knt'!D136='Seřazení Knt'!D137),Žebříček!G17,Žebříček!G17+1))","v":79},{"$f":"IF('Seřazení Knt'!A137=0,\"\",'Seřazení Knt'!A137)","v":"Kališík Jakub"},{"$f":"IF(J18=\"\",\"\",IF(AND('Seřazení Knt'!B176='Seřazení Knt'!B177,'Seřazení Knt'!C176='Seřazení Knt'!C177,'Seřazení Knt'!D176='Seřazení Knt'!D177),Žebříček!I17,Žebříček!I17+1))","v":""},{"$f":"IF('Seřazení Knt'!A177=0,\"\",'Seřazení Knt'!A177)","v":""}]
[{"$f":"IF(B19=\"\",\"\",IF(AND('Seřazení Knt'!B17='Seřazení Knt'!B18,'Seřazení Knt'!C17='Seřazení Knt'!C18,'Seřazení Knt'!D17='Seřazení Knt'!D18),Žebříček!A18,Žebříček!A18+1))","v":17},{"$f":"IF('Seřazení Knt'!A18=0,\"\",'Seřazení Knt'!A18)","v":"Šimkovič Ondřej"},{"$f":"IF(D19=\"\",\"\",IF(AND('Seřazení Knt'!B57='Seřazení Knt'!B58,'Seřazení Knt'!C57='Seřazení Knt'!C58,'Seřazení Knt'!D57='Seřazení Knt'!D58),Žebříček!C18,Žebříček!C18+1))","v":49},{"$f":"IF('Seřazení Knt'!A58=0,\"\",'Seřazení Knt'!A58)","v":"Přichystal Leon"},{"$f":"IF(F19=\"\",\"\",IF(AND('Seřazení Knt'!B97='Seřazení Knt'!B98,'Seřazení Knt'!C97='Seřazení Knt'!C98,'Seřazení Knt'!D97='Seřazení Knt'!D98),Žebříček!E18,Žebříček!E18+1))","v":70},{"$f":"IF('Seřazení Knt'!A98=0,\"\",'Seřazení Knt'!A98)","v":"Skalková Elen"},{"$f":"IF(H19=\"\",\"\",IF(AND('Seřazení Knt'!B137='Seřazení Knt'!B138,'Seřazení Knt'!C137='Seřazení Knt'!C138,'Seřazení Knt'!D137='Seřazení Knt'!D138),Žebříček!G18,Žebříček!G18+1))","v":80},{"$f":"IF('Seřazení Knt'!A138=0,\"\",'Seřazení Knt'!A138)","v":"Caletka Michal"},{"$f":"IF(J19=\"\",\"\",IF(AND('Seřazení Knt'!B177='Seřazení Knt'!B178,'Seřazení Knt'!C177='Seřazení Knt'!C178,'Seřazení Knt'!D177='Seřazení Knt'!D178),Žebříček!I18,Žebříček!I18+1))","v":""},{"$f":"IF('Seřazení Knt'!A178=0,\"\",'Seřazení Knt'!A178)","v":""}]
[{"$f":"IF(B20=\"\",\"\",IF(AND('Seřazení Knt'!B18='Seřazení Knt'!B19,'Seřazení Knt'!C18='Seřazení Knt'!C19,'Seřazení Knt'!D18='Seřazení Knt'!D19),Žebříček!A19,Žebříček!A19+1))","v":18},{"$f":"IF('Seřazení Knt'!A19=0,\"\",'Seřazení Knt'!A19)","v":"Čech Jiří"},{"$f":"IF(D20=\"\",\"\",IF(AND('Seřazení Knt'!B58='Seřazení Knt'!B59,'Seřazení Knt'!C58='Seřazení Knt'!C59,'Seřazení Knt'!D58='Seřazení Knt'!D59),Žebříček!C19,Žebříček!C19+1))","v":50},{"$f":"IF('Seřazení Knt'!A59=0,\"\",'Seřazení Knt'!A59)","v":"Grobelný Vít"},{"$f":"IF(F20=\"\",\"\",IF(AND('Seřazení Knt'!B98='Seřazení Knt'!B99,'Seřazení Knt'!C98='Seřazení Knt'!C99,'Seřazení Knt'!D98='Seřazení Knt'!D99),Žebříček!E19,Žebříček!E19+1))","v":70},{"$f":"IF('Seřazení Knt'!A99=0,\"\",'Seřazení Knt'!A99)","v":"Kristen Nikolas"},{"$f":"IF(H20=\"\",\"\",IF(AND('Seřazení Knt'!B138='Seřazení Knt'!B139,'Seřazení Knt'!C138='Seřazení Knt'!C139,'Seřazení Knt'!D138='Seřazení Knt'!D139),Žebříček!G19,Žebříček!G19+1))","v":81},{"$f":"IF('Seřazení Knt'!A139=0,\"\",'Seřazení Knt'!A139)","v":"Kreutz Martin"},{"$f":"IF(J20=\"\",\"\",IF(AND('Seřazení Knt'!B178='Seřazení Knt'!B179,'Seřazení Knt'!C178='Seřazení Knt'!C179,'Seřazení Knt'!D178='Seřazení Knt'!D179),Žebříček!I19,Žebříček!I19+1))","v":""},{"$f":"IF('Seřazení Knt'!A179=0,\"\",'Seřazení Knt'!A179)","v":""}]
[{"$f":"IF(B21=\"\",\"\",IF(AND('Seřazení Knt'!B19='Seřazení Knt'!B20,'Seřazení Knt'!C19='Seřazení Knt'!C20,'Seřazení Knt'!D19='Seřazení Knt'!D20),Žebříček!A20,Žebříček!A20+1))","v":19},{"$f":"IF('Seřazení Knt'!A20=0,\"\",'Seřazení Knt'!A20)","v":"To Vojtěch"},{"$f":"IF(D21=\"\",\"\",IF(AND('Seřazení Knt'!B59='Seřazení Knt'!B60,'Seřazení Knt'!C59='Seřazení Knt'!C60,'Seřazení Knt'!D59='Seřazení Knt'!D60),Žebříček!C20,Žebříček!C20+1))","v":50},{"$f":"IF('Seřazení Knt'!A60=0,\"\",'Seřazení Knt'!A60)","v":"Caletka Petr"},{"$f":"IF(F21=\"\",\"\",IF(AND('Seřazení Knt'!B99='Seřazení Knt'!B100,'Seřazení Knt'!C99='Seřazení Knt'!C100,'Seřazení Knt'!D99='Seřazení Knt'!D100),Žebříček!E20,Žebříček!E20+1))","v":70},{"$f":"IF('Seřazení Knt'!A100=0,\"\",'Seřazení Knt'!A100)","v":"Macháček Tomáš"},{"$f":"IF(H21=\"\",\"\",IF(AND('Seřazení Knt'!B139='Seřazení Knt'!B140,'Seřazení Knt'!C139='Seřazení Knt'!C140,'Seřazení Knt'!D139='Seřazení Knt'!D140),Žebříček!G20,Žebříček!G20+1))","v":81},{"$f":"IF('Seřazení Knt'!A140=0,\"\",'Seřazení Knt'!A140)","v":"Dastych Filip"},{"$f":"IF(J21=\"\",\"\",IF(AND('Seřazení Knt'!B179='Seřazení Knt'!B180,'Seřazení Knt'!C179='Seřazení Knt'!C180,'Seřazení Knt'!D179='Seřazení Knt'!D180),Žebříček!I20,Žebříček!I20+1))","v":""},{"$f":"IF('Seřazení Knt'!A180=0,\"\",'Seřazení Knt'!A180)","v":""}]
[{"$f":"IF(B22=\"\",\"\",IF(AND('Seřazení Knt'!B20='Seřazení Knt'!B21,'Seřazení Knt'!C20='Seřazení Knt'!C21,'Seřazení Knt'!D20='Seřazení Knt'!D21),Žebříček!A21,Žebříček!A21+1))","v":20},{"$f":"IF('Seřazení Knt'!A21=0,\"\",'Seřazení Knt'!A21)","v":"Martinásek Šimon"},{"$f":"IF(D22=\"\",\"\",IF(AND('Seřazení Knt'!B60='Seřazení Knt'!B61,'Seřazení Knt'!C60='Seřazení Knt'!C61,'Seřazení Knt'!D60='Seřazení Knt'!D61),Žebříček!C21,Žebříček!C21+1))","v":51},{"$f":"IF('Seřazení Knt'!A61=0,\"\",'Seřazení Knt'!A61)","v":"Franek Daniel"},{"$f":"IF(F22=\"\",\"\",IF(AND('Seřazení Knt'!B100='Seřazení Knt'!B101,'Seřazení Knt'!C100='Seřazení Knt'!C101,'Seřazení Knt'!D100='Seřazení Knt'!D101),Žebříček!E21,Žebříček!E21+1))","v":71},{"$f":"IF('Seřazení Knt'!A101=0,\"\",'Seřazení Knt'!A101)","v":"Dvořáčková Apolena"},{"$f":"IF(H22=\"\",\"\",IF(AND('Seřazení Knt'!B140='Seřazení Knt'!B141,'Seřazení Knt'!C140='Seřazení Knt'!C141,'Seřazení Knt'!D140='Seřazení Knt'!D141),Žebříček!G21,Žebříček!G21+1))","v":82},{"$f":"IF('Seřazení Knt'!A141=0,\"\",'Seřazení Knt'!A141)","v":"Kubala Martin"},{"$f":"IF(J22=\"\",\"\",IF(AND('Seřazení Knt'!B180='Seřazení Knt'!B181,'Seřazení Knt'!C180='Seřazení Knt'!C181,'Seřazení Knt'!D180='Seřazení Knt'!D181),Žebříček!I21,Žebříček!I21+1))","v":""},{"$f":"IF('Seřazení Knt'!A181=0,\"\",'Seřazení Knt'!A181)","v":""}]
[{"$f":"IF(B23=\"\",\"\",IF(AND('Seřazení Knt'!B21='Seřazení Knt'!B22,'Seřazení Knt'!C21='Seřazení Knt'!C22,'Seřazení Knt'!D21='Seřazení Knt'!D22),Žebříček!A22,Žebříček!A22+1))","v":21},{"$f":"IF('Seřazení Knt'!A22=0,\"\",'Seřazení Knt'!A22)","v":"Vjaclovský David"},{"$f":"IF(D23=\"\",\"\",IF(AND('Seřazení Knt'!B61='Seřazení Knt'!B62,'Seřazení Knt'!C61='Seřazení Knt'!C62,'Seřazení Knt'!D61='Seřazení Knt'!D62),Žebříček!C22,Žebříček!C22+1))","v":51},{"$f":"IF('Seřazení Knt'!A62=0,\"\",'Seřazení Knt'!A62)","v":"Stojčev Matyáš"},{"$f":"IF(F23=\"\",\"\",IF(AND('Seřazení Knt'!B101='Seřazení Knt'!B102,'Seřazení Knt'!C101='Seřazení Knt'!C102,'Seřazení Knt'!D101='Seřazení Knt'!D102),Žebříček!E22,Žebříček!E22+1))","v":72},{"$f":"IF('Seřazení Knt'!A102=0,\"\",'Seřazení Knt'!A102)","v":"Boček Petr"},{"$f":"IF(H23=\"\",\"\",IF(AND('Seřazení Knt'!B141='Seřazení Knt'!B142,'Seřazení Knt'!C141='Seřazení Knt'!C142,'Seřazení Knt'!D141='Seřazení Knt'!D142),Žebříček!G22,Žebříček!G22+1))","v":83},{"$f":"IF('Seřazení Knt'!A142=0,\"\",'Seřazení Knt'!A142)","v":"Adamčíková Nela"},{"$f":"IF(J23=\"\",\"\",IF(AND('Seřazení Knt'!B181='Seřazení Knt'!B182,'Seřazení Knt'!C181='Seřazení Knt'!C182,'Seřazení Knt'!D181='Seřazení Knt'!D182),Žebříček!I22,Žebříček!I22+1))","v":""},{"$f":"IF('Seřazení Knt'!A182=0,\"\",'Seřazení Knt'!A182)","v":""}]
[{"$f":"IF(B24=\"\",\"\",IF(AND('Seřazení Knt'!B22='Seřazení Knt'!B23,'Seřazení Knt'!C22='Seřazení Knt'!C23,'Seřazení Knt'!D22='Seřazení Knt'!D23),Žebříček!A23,Žebříček!A23+1))","v":21},{"$f":"IF('Seřazení Knt'!A23=0,\"\",'Seřazení Knt'!A23)","v":"Káňová Barbora"},{"$f":"IF(D24=\"\",\"\",IF(AND('Seřazení Knt'!B62='Seřazení Knt'!B63,'Seřazení Knt'!C62='Seřazení Knt'!C63,'Seřazení Knt'!D62='Seřazení Knt'!D63),Žebříček!C23,Žebříček!C23+1))","v":52},{"$f":"IF('Seřazení Knt'!A63=0,\"\",'Seřazení Knt'!A63)","v":"Grobelný Václav"},{"$f":"IF(F24=\"\",\"\",IF(AND('Seřazení Knt'!B102='Seřazení Knt'!B103,'Seřazení Knt'!C102='Seřazení Knt'!C103,'Seřazení Knt'!D102='Seřazení Knt'!D103),Žebříček!E23,Žebříček!E23+1))","v":73},{"$f":"IF('Seřazení Knt'!A103=0,\"\",'Seřazení Knt'!A103)","v":"Pittrman Daniel"},{"$f":"IF(H24=\"\",\"\",IF(AND('Seřazení Knt'!B142='Seřazení Knt'!B143,'Seřazení Knt'!C142='Seřazení Knt'!C143,'Seřazení Knt'!D142='Seřazení Knt'!D143),Žebříček!G23,Žebříček!G23+1))","v":83},{"$f":"IF('Seřazení Knt'!A143=0,\"\",'Seřazení Knt'!A143)","v":"Korytář Adam"},{"$f":"IF(J24=\"\",\"\",IF(AND('Seřazení Knt'!B182='Seřazení Knt'!B183,'Seřazení Knt'!C182='Seřazení Knt'!C183,'Seřazení Knt'!D182='Seřazení Knt'!D183),Žebříček!I23,Žebříček!I23+1))","v":""},{"$f":"IF('Seřazení Knt'!A183=0,\"\",'Seřazení Knt'!A183)","v":""}]
[{"$f":"IF(B25=\"\",\"\",IF(AND('Seřazení Knt'!B23='Seřazení Knt'!B24,'Seřazení Knt'!C23='Seřazení Knt'!C24,'Seřazení Knt'!D23='Seřazení Knt'!D24),Žebříček!A24,Žebříček!A24+1))","v":22},{"$f":"IF('Seřazení Knt'!A24=0,\"\",'Seřazení Knt'!A24)","v":"Valentík Tomáš"},{"$f":"IF(D25=\"\",\"\",IF(AND('Seřazení Knt'!B63='Seřazení Knt'!B64,'Seřazení Knt'!C63='Seřazení Knt'!C64,'Seřazení Knt'!D63='Seřazení Knt'!D64),Žebříček!C24,Žebříček!C24+1))","v":53},{"$f":"IF('Seřazení Knt'!A64=0,\"\",'Seřazení Knt'!A64)","v":"Kožušník Václav"},{"$f":"IF(F25=\"\",\"\",IF(AND('Seřazení Knt'!B103='Seřazení Knt'!B104,'Seřazení Knt'!C103='Seřazení Knt'!C104,'Seřazení Knt'!D103='Seřazení Knt'!D104),Žebříček!E24,Žebříček!E24+1))","v":73},{"$f":"IF('Seřazení Knt'!A104=0,\"\",'Seřazení Knt'!A104)","v":"Pitrman Daniel"},{"$f":"IF(H25=\"\",\"\",IF(AND('Seřazení Knt'!B143='Seřazení Knt'!B144,'Seřazení Knt'!C143='Seřazení Knt'!C144,'Seřazení Knt'!D143='Seřazení Knt'!D144),Žebříček!G24,Žebříček!G24+1))","v":83},{"$f":"IF('Seřazení Knt'!A144=0,\"\",'Seřazení Knt'!A144)","v":"Slováková Tereza"},{"$f":"IF(J25=\"\",\"\",IF(AND('Seřazení Knt'!B183='Seřazení Knt'!B184,'Seřazení Knt'!C183='Seřazení Knt'!C184,'Seřazení Knt'!D183='Seřazení Knt'!D184),Žebříček!I24,Žebříček!I24+1))","v":""},{"$f":"IF('Seřazení Knt'!A184=0,\"\",'Seřazení Knt'!A184)","v":""}]
[{"$f":"IF(B26=\"\",\"\",IF(AND('Seřazení Knt'!B24='Seřazení Knt'!B25,'Seřazení Knt'!C24='Seřazení Knt'!C25,'Seřazení Knt'!D24='Seřazení Knt'!D25),Žebříček!A25,Žebříček!A25+1))","v":23},{"$f":"IF('Seřazení Knt'!A25=0,\"\",'Seřazení Knt'!A25)","v":"Vrbas Alexander"},{"$f":"IF(D26=\"\",\"\",IF(AND('Seřazení Knt'!B64='Seřazení Knt'!B65,'Seřazení Knt'!C64='Seřazení Knt'!C65,'Seřazení Knt'!D64='Seřazení Knt'!D65),Žebříček!C25,Žebříček!C25+1))","v":54},{"$f":"IF('Seřazení Knt'!A65=0,\"\",'Seřazení Knt'!A65)","v":"Stebnická Lucie"},{"$f":"IF(F26=\"\",\"\",IF(AND('Seřazení Knt'!B104='Seřazení Knt'!B105,'Seřazení Knt'!C104='Seřazení Knt'!C105,'Seřazení Knt'!D104='Seřazení Knt'!D105),Žebříček!E25,Žebříček!E25+1))","v":73},{"$f":"IF('Seřazení Knt'!A105=0,\"\",'Seřazení Knt'!A105)","v":"Fojtík Jiří"},{"$f":"IF(H26=\"\",\"\",IF(AND('Seřazení Knt'!B144='Seřazení Knt'!B145,'Seřazení Knt'!C144='Seřazení Knt'!C145,'Seřazení Knt'!D144='Seřazení Knt'!D145),Žebříček!G25,Žebříček!G25+1))","v":83},{"$f":"IF('Seřazení Knt'!A145=0,\"\",'Seřazení Knt'!A145)","v":"Peter Matyáš"},{"$f":"IF(J26=\"\",\"\",IF(AND('Seřazení Knt'!B184='Seřazení Knt'!B185,'Seřazení Knt'!C184='Seřazení Knt'!C185,'Seřazení Knt'!D184='Seřazení Knt'!D185),Žebříček!I25,Žebříček!I25+1))","v":""},{"$f":"IF('Seřazení Knt'!A185=0,\"\",'Seřazení Knt'!A185)","v":""}]
[{"$f":"IF(B27=\"\",\"\",IF(AND('Seřazení Knt'!B25='Seřazení Knt'!B26,'Seřazení Knt'!C25='Seřazení Knt'!C26,'Seřazení Knt'!D25='Seřazení Knt'!D26),Žebříček!A26,Žebříček!A26+1))","v":24},{"$f":"IF('Seřazení Knt'!A26=0,\"\",'Seřazení Knt'!A26)","v":"Poštulka Petr"},{"$f":"IF(D27=\"\",\"\",IF(AND('Seřazení Knt'!B65='Seřazení Knt'!B66,'Seřazení Knt'!C65='Seřazení Knt'!C66,'Seřazení Knt'!D65='Seřazení Knt'!D66),Žebříček!C26,Žebříček!C26+1))","v":55},{"$f":"IF('Seřazení Knt'!A66=0,\"\",'Seřazení Knt'!A66)","v":"Klimek Ondřej"},{"$f":"IF(F27=\"\",\"\",IF(AND('Seřazení Knt'!B105='Seřazení Knt'!B106,'Seřazení Knt'!C105='Seřazení Knt'!C106,'Seřazení Knt'!D105='Seřazení Knt'!D106),Žebříček!E26,Žebříček!E26+1))","v":73},{"$f":"IF('Seřazení Knt'!A106=0,\"\",'Seřazení Knt'!A106)","v":"Kanclíř Šimon"},{"$f":"IF(H27=\"\",\"\",IF(AND('Seřazení Knt'!B145='Seřazení Knt'!B146,'Seřazení Knt'!C145='Seřazení Knt'!C146,'Seřazení Knt'!D145='Seřazení Knt'!D146),Žebříček!G26,Žebříček!G26+1))","v":83},{"$f":"IF('Seřazení Knt'!A146=0,\"\",'Seřazení Knt'!A146)","v":"Krische Simon"},{"$f":"IF(J27=\"\",\"\",IF(AND('Seřazení Knt'!B185='Seřazení Knt'!B186,'Seřazení Knt'!C185='Seřazení Knt'!C186,'Seřazení Knt'!D185='Seřazení Knt'!D186),Žebříček!I26,Žebříček!I26+1))","v":""},{"$f":"IF('Seřazení Knt'!A186=0,\"\",'Seřazení Knt'!A186)","v":""}]
[{"$f":"IF(B28=\"\",\"\",IF(AND('Seřazení Knt'!B26='Seřazení Knt'!B27,'Seřazení Knt'!C26='Seřazení Knt'!C27,'Seřazení Knt'!D26='Seřazení Knt'!D27),Žebříček!A27,Žebříček!A27+1))","v":25},{"$f":"IF('Seřazení Knt'!A27=0,\"\",'Seřazení Knt'!A27)","v":"Šumský Miroslav"},{"$f":"IF(D28=\"\",\"\",IF(AND('Seřazení Knt'!B66='Seřazení Knt'!B67,'Seřazení Knt'!C66='Seřazení Knt'!C67,'Seřazení Knt'!D66='Seřazení Knt'!D67),Žebříček!C27,Žebříček!C27+1))","v":55},{"$f":"IF('Seřazení Knt'!A67=0,\"\",'Seřazení Knt'!A67)","v":"Štverka Matyáš"},{"$f":"IF(F28=\"\",\"\",IF(AND('Seřazení Knt'!B106='Seřazení Knt'!B107,'Seřazení Knt'!C106='Seřazení Knt'!C107,'Seřazení Knt'!D106='Seřazení Knt'!D107),Žebříček!E27,Žebříček!E27+1))","v":74},{"$f":"IF('Seřazení Knt'!A107=0,\"\",'Seřazení Knt'!A107)","v":"Salamonová Karolína"},{"$f":"IF(H28=\"\",\"\",IF(AND('Seřazení Knt'!B146='Seřazení Knt'!B147,'Seřazení Knt'!C146='Seřazení Knt'!C147,'Seřazení Knt'!D146='Seřazení Knt'!D147),Žebříček!G27,Žebříček!G27+1))","v":83},{"$f":"IF('Seřazení Knt'!A147=0,\"\",'Seřazení Knt'!A147)","v":"Pröschl Jakub"},{"$f":"IF(J28=\"\",\"\",IF(AND('Seřazení Knt'!B186='Seřazení Knt'!B187,'Seřazení Knt'!C186='Seřazení Knt'!C187,'Seřazení Knt'!D186='Seřazení Knt'!D187),Žebříček!I27,Žebříček!I27+1))","v":""},{"$f":"IF('Seřazení Knt'!A187=0,\"\",'Seřazení Knt'!A187)","v":""}]
[{"$f":"IF(B29=\"\",\"\",IF(AND('Seřazení Knt'!B27='Seřazení Knt'!B28,'Seřazení Knt'!C27='Seřazení Knt'!C28,'Seřazení Knt'!D27='Seřazení Knt'!D28),Žebříček!A28,Žebříček!A28+1))","v":26},{"$f":"IF('Seřazení Knt'!A28=0,\"\",'Seřazení Knt'!A28)","v":"Morcinek Lukáš"},{"$f":"IF(D29=\"\",\"\",IF(AND('Seřazení Knt'!B67='Seřazení Knt'!B68,'Seřazení Knt'!C67='Seřazení Knt'!C68,'Seřazení Knt'!D67='Seřazení Knt'!D68),Žebříček!C28,Žebříček!C28+1))","v":55},{"$f":"IF('Seřazení Knt'!A68=0,\"\",'Seřazení Knt'!A68)","v":"Kotouček Marek"},{"$f":"IF(F29=\"\",\"\",IF(AND('Seřazení Knt'!B107='Seřazení Knt'!B108,'Seřazení Knt'!C107='Seřazení Knt'!C108,'Seřazení Knt'!D107='Seřazení Knt'!D108),Žebříček!E28,Žebříček!E28+1))","v":74},{"$f":"IF('Seřazení Knt'!A108=0,\"\",'Seřazení Knt'!A108)","v":"Mazura Vladislav"},{"$f":"IF(H29=\"\",\"\",IF(AND('Seřazení Knt'!B147='Seřazení Knt'!B148,'Seřazení Knt'!C147='Seřazení Knt'!C148,'Seřazení Knt'!D147='Seřazení Knt'!D148),Žebříček!G28,Žebříček!G28+1))","v":84},{"$f":"IF('Seřazení Knt'!A148=0,\"\",'Seřazení Knt'!A148)","v":"Smyček Martin"},{"$f":"IF(J29=\"\",\"\",IF(AND('Seřazení Knt'!B187='Seřazení Knt'!B188,'Seřazení Knt'!C187='Seřazení Knt'!C188,'Seřazení Knt'!D187='Seřazení Knt'!D188),Žebříček!I28,Žebříček!I28+1))","v":""},{"$f":"IF('Seřazení Knt'!A188=0,\"\",'Seřazení Knt'!A188)","v":""}]
[{"$f":"IF(B30=\"\",\"\",IF(AND('Seřazení Knt'!B28='Seřazení Knt'!B29,'Seřazení Knt'!C28='Seřazení Knt'!C29,'Seřazení Knt'!D28='Seřazení Knt'!D29),Žebříček!A29,Žebříček!A29+1))","v":27},{"$f":"IF('Seřazení Knt'!A29=0,\"\",'Seřazení Knt'!A29)","v":"Lukas Daniel"},{"$f":"IF(D30=\"\",\"\",IF(AND('Seřazení Knt'!B68='Seřazení Knt'!B69,'Seřazení Knt'!C68='Seřazení Knt'!C69,'Seřazení Knt'!D68='Seřazení Knt'!D69),Žebříček!C29,Žebříček!C29+1))","v":56},{"$f":"IF('Seřazení Knt'!A69=0,\"\",'Seřazení Knt'!A69)","v":"Beutel David"},{"$f":"IF(F30=\"\",\"\",IF(AND('Seřazení Knt'!B108='Seřazení Knt'!B109,'Seřazení Knt'!C108='Seřazení Knt'!C109,'Seřazení Knt'!D108='Seřazení Knt'!D109),Žebříček!E29,Žebříček!E29+1))","v":74},{"$f":"IF('Seřazení Knt'!A109=0,\"\",'Seřazení Knt'!A109)","v":"Tomica Daniel"},{"$f":"IF(H30=\"\",\"\",IF(AND('Seřazení Knt'!B148='Seřazení Knt'!B149,'Seřazení Knt'!C148='Seřazení Knt'!C149,'Seřazení Knt'!D148='Seřazení Knt'!D149),Žebříček!G29,Žebříček!G29+1))","v":85},{"$f":"IF('Seřazení Knt'!A149=0,\"\",'Seřazení Knt'!A149)","v":"Gilová Eliška"},{"$f":"IF(J30=\"\",\"\",IF(AND('Seřazení Knt'!B188='Seřazení Knt'!B189,'Seřazení Knt'!C188='Seřazení Knt'!C189,'Seřazení Knt'!D188='Seřazení Knt'!D189),Žebříček!I29,Žebříček!I29+1))","v":""},{"$f":"IF('Seřazení Knt'!A189=0,\"\",'Seřazení Knt'!A189)","v":""}]
[{"$f":"IF(B31=\"\",\"\",IF(AND('Seřazení Knt'!B29='Seřazení Knt'!B30,'Seřazení Knt'!C29='Seřazení Knt'!C30,'Seřazení Knt'!D29='Seřazení Knt'!D30),Žebříček!A30,Žebříček!A30+1))","v":28},{"$f":"IF('Seřazení Knt'!A30=0,\"\",'Seřazení Knt'!A30)","v":"Kapias Oliver"},{"$f":"IF(D31=\"\",\"\",IF(AND('Seřazení Knt'!B69='Seřazení Knt'!B70,'Seřazení Knt'!C69='Seřazení Knt'!C70,'Seřazení Knt'!D69='Seřazení Knt'!D70),Žebříček!C30,Žebříček!C30+1))","v":56},{"$f":"IF('Seřazení Knt'!A70=0,\"\",'Seřazení Knt'!A70)","v":"Skácel Antonín"},{"$f":"IF(F31=\"\",\"\",IF(AND('Seřazení Knt'!B109='Seřazení Knt'!B110,'Seřazení Knt'!C109='Seřazení Knt'!C110,'Seřazení Knt'!D109='Seřazení Knt'!D110),Žebříček!E30,Žebříček!E30+1))","v":74},{"$f":"IF('Seřazení Knt'!A110=0,\"\",'Seřazení Knt'!A110)","v":"Juřica Radek"},{"$f":"IF(H31=\"\",\"\",IF(AND('Seřazení Knt'!B149='Seřazení Knt'!B150,'Seřazení Knt'!C149='Seřazení Knt'!C150,'Seřazení Knt'!D149='Seřazení Knt'!D150),Žebříček!G30,Žebříček!G30+1))","v":86},{"$f":"IF('Seřazení Knt'!A150=0,\"\",'Seřazení Knt'!A150)","v":"Neshoda Vojtěch"},{"$f":"IF(J31=\"\",\"\",IF(AND('Seřazení Knt'!B189='Seřazení Knt'!B190,'Seřazení Knt'!C189='Seřazení Knt'!C190,'Seřazení Knt'!D189='Seřazení Knt'!D190),Žebříček!I30,Žebříček!I30+1))","v":""},{"$f":"IF('Seřazení Knt'!A190=0,\"\",'Seřazení Knt'!A190)","v":""}]
[{"$f":"IF(B32=\"\",\"\",IF(AND('Seřazení Knt'!B30='Seřazení Knt'!B31,'Seřazení Knt'!C30='Seřazení Knt'!C31,'Seřazení Knt'!D30='Seřazení Knt'!D31),Žebříček!A31,Žebříček!A31+1))","v":29},{"$f":"IF('Seřazení Knt'!A31=0,\"\",'Seřazení Knt'!A31)","v":"Krčmář Matěj"},{"$f":"IF(D32=\"\",\"\",IF(AND('Seřazení Knt'!B70='Seřazení Knt'!B71,'Seřazení Knt'!C70='Seřazení Knt'!C71,'Seřazení Knt'!D70='Seřazení Knt'!D71),Žebříček!C31,Žebříček!C31+1))","v":56},{"$f":"IF('Seřazení Knt'!A71=0,\"\",'Seřazení Knt'!A71)","v":"Krische Fabien"},{"$f":"IF(F32=\"\",\"\",IF(AND('Seřazení Knt'!B110='Seřazení Knt'!B111,'Seřazení Knt'!C110='Seřazení Knt'!C111,'Seřazení Knt'!D110='Seřazení Knt'!D111),Žebříček!E31,Žebříček!E31+1))","v":74},{"$f":"IF('Seřazení Knt'!A111=0,\"\",'Seřazení Knt'!A111)","v":"Bechný Adam"},{"$f":"IF(H32=\"\",\"\",IF(AND('Seřazení Knt'!B150='Seřazení Knt'!B151,'Seřazení Knt'!C150='Seřazení Knt'!C151,'Seřazení Knt'!D150='Seřazení Knt'!D151),Žebříček!G31,Žebříček!G31+1))","v":87},{"$f":"IF('Seřazení Knt'!A151=0,\"\",'Seřazení Knt'!A151)","v":"Pithrman Daniel"},{"$f":"IF(J32=\"\",\"\",IF(AND('Seřazení Knt'!B190='Seřazení Knt'!B191,'Seřazení Knt'!C190='Seřazení Knt'!C191,'Seřazení Knt'!D190='Seřazení Knt'!D191),Žebříček!I31,Žebříček!I31+1))","v":""},{"$f":"IF('Seřazení Knt'!A191=0,\"\",'Seřazení Knt'!A191)","v":""}]
[{"$f":"IF(B33=\"\",\"\",IF(AND('Seřazení Knt'!B31='Seřazení Knt'!B32,'Seřazení Knt'!C31='Seřazení Knt'!C32,'Seřazení Knt'!D31='Seřazení Knt'!D32),Žebříček!A32,Žebříček!A32+1))","v":30},{"$f":"IF('Seřazení Knt'!A32=0,\"\",'Seřazení Knt'!A32)","v":"Šelong Tadeáš"},{"$f":"IF(D33=\"\",\"\",IF(AND('Seřazení Knt'!B71='Seřazení Knt'!B72,'Seřazení Knt'!C71='Seřazení Knt'!C72,'Seřazení Knt'!D71='Seřazení Knt'!D72),Žebříček!C32,Žebříček!C32+1))","v":56},{"$f":"IF('Seřazení Knt'!A72=0,\"\",'Seřazení Knt'!A72)","v":"Vojkovský Dalibor"},{"$f":"IF(F33=\"\",\"\",IF(AND('Seřazení Knt'!B111='Seřazení Knt'!B112,'Seřazení Knt'!C111='Seřazení Knt'!C112,'Seřazení Knt'!D111='Seřazení Knt'!D112),Žebříček!E32,Žebříček!E32+1))","v":74},{"$f":"IF('Seřazení Knt'!A112=0,\"\",'Seřazení Knt'!A112)","v":"Kobiernicki Marek"},{"$f":"IF(H33=\"\",\"\",IF(AND('Seřazení Knt'!B151='Seřazení Knt'!B152,'Seřazení Knt'!C151='Seřazení Knt'!C152,'Seřazení Knt'!D151='Seřazení Knt'!D152),Žebříček!G32,Žebříček!G32+1))","v":87},{"$f":"IF('Seřazení Knt'!A152=0,\"\",'Seřazení Knt'!A152)","v":"Roztomilý Ondřej"},{"$f":"IF(J33=\"\",\"\",IF(AND('Seřazení Knt'!B191='Seřazení Knt'!B192,'Seřazení Knt'!C191='Seřazení Knt'!C192,'Seřazení Knt'!D191='Seřazení Knt'!D192),Žebříček!I32,Žebříček!I32+1))","v":""},{"$f":"IF('Seřazení Knt'!A192=0,\"\",'Seřazení Knt'!A192)","v":""}]
[{"$f":"IF(B34=\"\",\"\",IF(AND('Seřazení Knt'!B32='Seřazení Knt'!B33,'Seřazení Knt'!C32='Seřazení Knt'!C33,'Seřazení Knt'!D32='Seřazení Knt'!D33),Žebříček!A33,Žebříček!A33+1))","v":31},{"$f":"IF('Seřazení Knt'!A33=0,\"\",'Seřazení Knt'!A33)","v":"Hladík Václav"},{"$f":"IF(D34=\"\",\"\",IF(AND('Seřazení Knt'!B72='Seřazení Knt'!B73,'Seřazení Knt'!C72='Seřazení Knt'!C73,'Seřazení Knt'!D72='Seřazení Knt'!D73),Žebříček!C33,Žebříček!C33+1))","v":56},{"$f":"IF('Seřazení Knt'!A73=0,\"\",'Seřazení Knt'!A73)","v":"Kolář Václav"},{"$f":"IF(F34=\"\",\"\",IF(AND('Seřazení Knt'!B112='Seřazení Knt'!B113,'Seřazení Knt'!C112='Seřazení Knt'!C113,'Seřazení Knt'!D112='Seřazení Knt'!D113),Žebříček!E33,Žebříček!E33+1))","v":74},{"$f":"IF('Seřazení Knt'!A113=0,\"\",'Seřazení Knt'!A113)","v":"Michálek Jakub"},{"$f":"IF(H34=\"\",\"\",IF(AND('Seřazení Knt'!B152='Seřazení Knt'!B153,'Seřazení Knt'!C152='Seřazení Knt'!C153,'Seřazení Knt'!D152='Seřazení Knt'!D153),Žebříček!G33,Žebříček!G33+1))","v":87},{"$f":"IF('Seřazení Knt'!A153=0,\"\",'Seřazení Knt'!A153)","v":"Horuta Matyáš"},{"$f":"IF(J34=\"\",\"\",IF(AND('Seřazení Knt'!B192='Seřazení Knt'!B193,'Seřazení Knt'!C192='Seřazení Knt'!C193,'Seřazení Knt'!D192='Seřazení Knt'!D193),Žebříček!I33,Žebříček!I33+1))","v":""},{"$f":"IF('Seřazení Knt'!A193=0,\"\",'Seřazení Knt'!A193)","v":""}]
[{"$f":"IF(B35=\"\",\"\",IF(AND('Seřazení Knt'!B33='Seřazení Knt'!B34,'Seřazení Knt'!C33='Seřazení Knt'!C34,'Seřazení Knt'!D33='Seřazení Knt'!D34),Žebříček!A34,Žebříček!A34+1))","v":31},{"$f":"IF('Seřazení Knt'!A34=0,\"\",'Seřazení Knt'!A34)","v":"Přidal Ladislav"},{"$f":"IF(D35=\"\",\"\",IF(AND('Seřazení Knt'!B73='Seřazení Knt'!B74,'Seřazení Knt'!C73='Seřazení Knt'!C74,'Seřazení Knt'!D73='Seřazení Knt'!D74),Žebříček!C34,Žebříček!C34+1))","v":56},{"$f":"IF('Seřazení Knt'!A74=0,\"\",'Seřazení Knt'!A74)","v":"King Samuel"},{"$f":"IF(F35=\"\",\"\",IF(AND('Seřazení Knt'!B113='Seřazení Knt'!B114,'Seřazení Knt'!C113='Seřazení Knt'!C114,'Seřazení Knt'!D113='Seřazení Knt'!D114),Žebříček!E34,Žebříček!E34+1))","v":75},{"$f":"IF('Seřazení Knt'!A114=0,\"\",'Seřazení Knt'!A114)","v":"Kusyn Oliver"},{"$f":"IF(H35=\"\",\"\",IF(AND('Seřazení Knt'!B153='Seřazení Knt'!B154,'Seřazení Knt'!C153='Seřazení Knt'!C154,'Seřazení Knt'!D153='Seřazení Knt'!D154),Žebříček!G34,Žebříček!G34+1))","v":87},{"$f":"IF('Seřazení Knt'!A154=0,\"\",'Seřazení Knt'!A154)","v":"Bukovská Barbora"},{"$f":"IF(J35=\"\",\"\",IF(AND('Seřazení Knt'!B193='Seřazení Knt'!B194,'Seřazení Knt'!C193='Seřazení Knt'!C194,'Seřazení Knt'!D193='Seřazení Knt'!D194),Žebříček!I34,Žebříček!I34+1))","v":""},{"$f":"IF('Seřazení Knt'!A194=0,\"\",'Seřazení Knt'!A194)","v":""}]
[{"$f":"IF(B36=\"\",\"\",IF(AND('Seřazení Knt'!B34='Seřazení Knt'!B35,'Seřazení Knt'!C34='Seřazení Knt'!C35,'Seřazení Knt'!D34='Seřazení Knt'!D35),Žebříček!A35,Žebříček!A35+1))","v":31},{"$f":"IF('Seřazení Knt'!A35=0,\"\",'Seřazení Knt'!A35)","v":"Boháč Adam"},{"$f":"IF(D36=\"\",\"\",IF(AND('Seřazení Knt'!B74='Seřazení Knt'!B75,'Seřazení Knt'!C74='Seřazení Knt'!C75,'Seřazení Knt'!D74='Seřazení Knt'!D75),Žebříček!C35,Žebříček!C35+1))","v":57},{"$f":"IF('Seřazení Knt'!A75=0,\"\",'Seřazení Knt'!A75)","v":"Blažek Daniel"},{"$f":"IF(F36=\"\",\"\",IF(AND('Seřazení Knt'!B114='Seřazení Knt'!B115,'Seřazení Knt'!C114='Seřazení Knt'!C115,'Seřazení Knt'!D114='Seřazení Knt'!D115),Žebříček!E35,Žebříček!E35+1))","v":76},{"$f":"IF('Seřazení Knt'!A115=0,\"\",'Seřazení Knt'!A115)","v":"Adamus Jan"},{"$f":"IF(H36=\"\",\"\",IF(AND('Seřazení Knt'!B154='Seřazení Knt'!B155,'Seřazení Knt'!C154='Seřazení Knt'!C155,'Seřazení Knt'!D154='Seřazení Knt'!D155),Žebříček!G35,Žebříček!G35+1))","v":88},{"$f":"IF('Seřazení Knt'!A155=0,\"\",'Seřazení Knt'!A155)","v":"Dvořák Josef"},{"$f":"IF(J36=\"\",\"\",IF(AND('Seřazení Knt'!B194='Seřazení Knt'!B195,'Seřazení Knt'!C194='Seřazení Knt'!C195,'Seřazení Knt'!D194='Seřazení Knt'!D195),Žebříček!I35,Žebříček!I35+1))","v":""},{"$f":"IF('Seřazení Knt'!A195=0,\"\",'Seřazení Knt'!A195)","v":""}]
[{"$f":"IF(B37=\"\",\"\",IF(AND('Seřazení Knt'!B35='Seřazení Knt'!B36,'Seřazení Knt'!C35='Seřazení Knt'!C36,'Seřazení Knt'!D35='Seřazení Knt'!D36),Žebříček!A36,Žebříček!A36+1))","v":32},{"$f":"IF('Seřazení Knt'!A36=0,\"\",'Seřazení Knt'!A36)","v":"Sládek Maxmilián"},{"$f":"IF(D37=\"\",\"\",IF(AND('Seřazení Knt'!B75='Seřazení Knt'!B76,'Seřazení Knt'!C75='Seřazení Knt'!C76,'Seřazení Knt'!D75='Seřazení Knt'!D76),Žebříček!C36,Žebříček!C36+1))","v":58},{"$f":"IF('Seřazení Knt'!A76=0,\"\",'Seřazení Knt'!A76)","v":"Murin Jan"},{"$f":"IF(F37=\"\",\"\",IF(AND('Seřazení Knt'!B115='Seřazení Knt'!B116,'Seřazení Knt'!C115='Seřazení Knt'!C116,'Seřazení Knt'!D115='Seřazení Knt'!D116),Žebříček!E36,Žebříček!E36+1))","v":77},{"$f":"IF('Seřazení Knt'!A116=0,\"\",'Seřazení Knt'!A116)","v":"Dokoupilová Anna"},{"$f":"IF(H37=\"\",\"\",IF(AND('Seřazení Knt'!B155='Seřazení Knt'!B156,'Seřazení Knt'!C155='Seřazení Knt'!C156,'Seřazení Knt'!D155='Seřazení Knt'!D156),Žebříček!G36,Žebříček!G36+1))","v":89},{"$f":"IF('Seřazení Knt'!A156=0,\"\",'Seřazení Knt'!A156)","v":"Vavreczka Michal"},{"$f":"IF(J37=\"\",\"\",IF(AND('Seřazení Knt'!B195='Seřazení Knt'!B196,'Seřazení Knt'!C195='Seřazení Knt'!C196,'Seřazení Knt'!D195='Seřazení Knt'!D196),Žebříček!I36,Žebříček!I36+1))","v":""},{"$f":"IF('Seřazení Knt'!A196=0,\"\",'Seřazení Knt'!A196)","v":""}]
[{"$f":"IF(B38=\"\",\"\",IF(AND('Seřazení Knt'!B36='Seřazení Knt'!B37,'Seřazení Knt'!C36='Seřazení Knt'!C37,'Seřazení Knt'!D36='Seřazení Knt'!D37),Žebříček!A37,Žebříček!A37+1))","v":33},{"$f":"IF('Seřazení Knt'!A37=0,\"\",'Seřazení Knt'!A37)","v":"Bartošic Sebastián"},{"$f":"IF(D38=\"\",\"\",IF(AND('Seřazení Knt'!B76='Seřazení Knt'!B77,'Seřazení Knt'!C76='Seřazení Knt'!C77,'Seřazení Knt'!D76='Seřazení Knt'!D77),Žebříček!C37,Žebříček!C37+1))","v":59},{"$f":"IF('Seřazení Knt'!A77=0,\"\",'Seřazení Knt'!A77)","v":"Polášek Vojtěch"},{"$f":"IF(F38=\"\",\"\",IF(AND('Seřazení Knt'!B116='Seřazení Knt'!B117,'Seřazení Knt'!C116='Seřazení Knt'!C117,'Seřazení Knt'!D116='Seřazení Knt'!D117),Žebříček!E37,Žebříček!E37+1))","v":77},{"$f":"IF('Seřazení Knt'!A117=0,\"\",'Seřazení Knt'!A117)","v":"Nováková Emma"},{"$f":"IF(H38=\"\",\"\",IF(AND('Seřazení Knt'!B156='Seřazení Knt'!B157,'Seřazení Knt'!C156='Seřazení Knt'!C157,'Seřazení Knt'!D156='Seřazení Knt'!D157),Žebříček!G37,Žebříček!G37+1))","v":89},{"$f":"IF('Seřazení Knt'!A157=0,\"\",'Seřazení Knt'!A157)","v":"Urban Filip"},{"$f":"IF(J38=\"\",\"\",IF(AND('Seřazení Knt'!B196='Seřazení Knt'!B197,'Seřazení Knt'!C196='Seřazení Knt'!C197,'Seřazení Knt'!D196='Seřazení Knt'!D197),Žebříček!I37,Žebříček!I37+1))","v":""},{"$f":"IF('Seřazení Knt'!A197=0,\"\",'Seřazení Knt'!A197)","v":""}]
[{"$f":"IF(B39=\"\",\"\",IF(AND('Seřazení Knt'!B37='Seřazení Knt'!B38,'Seřazení Knt'!C37='Seřazení Knt'!C38,'Seřazení Knt'!D37='Seřazení Knt'!D38),Žebříček!A38,Žebříček!A38+1))","v":34},{"$f":"IF('Seřazení Knt'!A38=0,\"\",'Seřazení Knt'!A38)","v":"Valošek Jakub"},{"$f":"IF(D39=\"\",\"\",IF(AND('Seřazení Knt'!B77='Seřazení Knt'!B78,'Seřazení Knt'!C77='Seřazení Knt'!C78,'Seřazení Knt'!D77='Seřazení Knt'!D78),Žebříček!C38,Žebříček!C38+1))","v":60},{"$f":"IF('Seřazení Knt'!A78=0,\"\",'Seřazení Knt'!A78)","v":"Hodák Daniel"},{"$f":"IF(F39=\"\",\"\",IF(AND('Seřazení Knt'!B117='Seřazení Knt'!B118,'Seřazení Knt'!C117='Seřazení Knt'!C118,'Seřazení Knt'!D117='Seřazení Knt'!D118),Žebříček!E38,Žebříček!E38+1))","v":78},{"$f":"IF('Seřazení Knt'!A118=0,\"\",'Seřazení Knt'!A118)","v":"Holek Filip"},{"$f":"IF(H39=\"\",\"\",IF(AND('Seřazení Knt'!B157='Seřazení Knt'!B158,'Seřazení Knt'!C157='Seřazení Knt'!C158,'Seřazení Knt'!D157='Seřazení Knt'!D158),Žebříček!G38,Žebříček!G38+1))","v":89},{"$f":"IF('Seřazení Knt'!A158=0,\"\",'Seřazení Knt'!A158)","v":"Adamus Jiří"},{"$f":"IF(J39=\"\",\"\",IF(AND('Seřazení Knt'!B197='Seřazení Knt'!B198,'Seřazení Knt'!C197='Seřazení Knt'!C198,'Seřazení Knt'!D197='Seřazení Knt'!D198),Žebříček!I38,Žebříček!I38+1))","v":""},{"$f":"IF('Seřazení Knt'!A198=0,\"\",'Seřazení Knt'!A198)","v":""}]
[{"$f":"IF(B40=\"\",\"\",IF(AND('Seřazení Knt'!B38='Seřazení Knt'!B39,'Seřazení Knt'!C38='Seřazení Knt'!C39,'Seřazení Knt'!D38='Seřazení Knt'!D39),Žebříček!A39,Žebříček!A39+1))","v":35},{"$f":"IF('Seřazení Knt'!A39=0,\"\",'Seřazení Knt'!A39)","v":"Lanča Eduard"},{"$f":"IF(D40=\"\",\"\",IF(AND('Seřazení Knt'!B78='Seřazení Knt'!B79,'Seřazení Knt'!C78='Seřazení Knt'!C79,'Seřazení Knt'!D78='Seřazení Knt'!D79),Žebříček!C39,Žebříček!C39+1))","v":61},{"$f":"IF('Seřazení Knt'!A79=0,\"\",'Seřazení Knt'!A79)","v":"Vavrla Alexandr"},{"$f":"IF(F40=\"\",\"\",IF(AND('Seřazení Knt'!B118='Seřazení Knt'!B119,'Seřazení Knt'!C118='Seřazení Knt'!C119,'Seřazení Knt'!D118='Seřazení Knt'!D119),Žebříček!E39,Žebříček!E39+1))","v":79},{"$f":"IF('Seřazení Knt'!A119=0,\"\",'Seřazení Knt'!A119)","v":"Mikenda Ondřej"},{"$f":"IF(H40=\"\",\"\",IF(AND('Seřazení Knt'!B158='Seřazení Knt'!B159,'Seřazení Knt'!C158='Seřazení Knt'!C159,'Seřazení Knt'!D158='Seřazení Knt'!D159),Žebříček!G39,Žebříček!G39+1))","v":89},{"$f":"IF('Seřazení Knt'!A159=0,\"\",'Seřazení Knt'!A159)","v":"Kreutz David"},{"$f":"IF(J40=\"\",\"\",IF(AND('Seřazení Knt'!B198='Seřazení Knt'!B199,'Seřazení Knt'!C198='Seřazení Knt'!C199,'Seřazení Knt'!D198='Seřazení Knt'!D199),Žebříček!I39,Žebříček!I39+1))","v":""},{"$f":"IF('Seřazení Knt'!A199=0,\"\",'Seřazení Knt'!A199)","v":""}]
[{"$f":"IF(B41=\"\",\"\",IF(AND('Seřazení Knt'!B39='Seřazení Knt'!B40,'Seřazení Knt'!C39='Seřazení Knt'!C40,'Seřazení Knt'!D39='Seřazení Knt'!D40),Žebříček!A40,Žebříček!A40+1))","v":36},{"$f":"IF('Seřazení Knt'!A40=0,\"\",'Seřazení Knt'!A40)","v":"Kubala Marek"},{"$f":"IF(D41=\"\",\"\",IF(AND('Seřazení Knt'!B79='Seřazení Knt'!B80,'Seřazení Knt'!C79='Seřazení Knt'!C80,'Seřazení Knt'!D79='Seřazení Knt'!D80),Žebříček!C40,Žebříček!C40+1))","v":61},{"$f":"IF('Seřazení Knt'!A80=0,\"\",'Seřazení Knt'!A80)","v":"Fuljer Patrik"},{"$f":"IF(F41=\"\",\"\",IF(AND('Seřazení Knt'!B119='Seřazení Knt'!B120,'Seřazení Knt'!C119='Seřazení Knt'!C120,'Seřazení Knt'!D119='Seřazení Knt'!D120),Žebříček!E40,Žebříček!E40+1))","v":79},{"$f":"IF('Seřazení Knt'!A120=0,\"\",'Seřazení Knt'!A120)","v":"Záruba Pavel"},{"$f":"IF(H41=\"\",\"\",IF(AND('Seřazení Knt'!B159='Seřazení Knt'!B160,'Seřazení Knt'!C159='Seřazení Knt'!C160,'Seřazení Knt'!D159='Seřazení Knt'!D160),Žebříček!G40,Žebříček!G40+1))","v":90},{"$f":"IF('Seřazení Knt'!A160=0,\"\",'Seřazení Knt'!A160)","v":"Korytář Dan"},{"$f":"IF(J41=\"\",\"\",IF(AND('Seřazení Knt'!B199='Seřazení Knt'!B200,'Seřazení Knt'!C199='Seřazení Knt'!C200,'Seřazení Knt'!D199='Seřazení Knt'!D200),Žebříček!I40,Žebříček!I40+1))","v":""},{"$f":"IF('Seřazení Knt'!A200=0,\"\",'Seřazení Knt'!A200)","v":""}]
[{"$f":"IF(B42=\"\",\"\",IF(AND('Seřazení Knt'!B40='Seřazení Knt'!B41,'Seřazení Knt'!C40='Seřazení Knt'!C41,'Seřazení Knt'!D40='Seřazení Knt'!D41),Žebříček!A41,Žebříček!A41+1))","v":37},{"$f":"IF('Seřazení Knt'!A41=0,\"\",'Seřazení Knt'!A41)","v":"Doubek Benjamin"},{"$f":"IF(D42=\"\",\"\",IF(AND('Seřazení Knt'!B80='Seřazení Knt'!B81,'Seřazení Knt'!C80='Seřazení Knt'!C81,'Seřazení Knt'!D80='Seřazení Knt'!D81),Žebříček!C41,Žebříček!C41+1))","v":62},{"$f":"IF('Seřazení Knt'!A81=0,\"\",'Seřazení Knt'!A81)","v":"Havelka Josef"},{"$f":"IF(F42=\"\",\"\",IF(AND('Seřazení Knt'!B120='Seřazení Knt'!B121,'Seřazení Knt'!C120='Seřazení Knt'!C121,'Seřazení Knt'!D120='Seřazení Knt'!D121),Žebříček!E41,Žebříček!E41+1))","v":79},{"$f":"IF('Seřazení Knt'!A121=0,\"\",'Seřazení Knt'!A121)","v":"Záruba Pavel"},{"$f":"IF(H42=\"\",\"\",IF(AND('Seřazení Knt'!B160='Seřazení Knt'!B161,'Seřazení Knt'!C160='Seřazení Knt'!C161,'Seřazení Knt'!D160='Seřazení Knt'!D161),Žebříček!G41,Žebříček!G41+1))","v":90},{"$f":"IF('Seřazení Knt'!A161=0,\"\",'Seřazení Knt'!A161)","v":"Vlach Antonín"},{"$f":"IF(J42=\"\",\"\",IF(AND('Seřazení Knt'!B200='Seřazení Knt'!B201,'Seřazení Knt'!C200='Seřazení Knt'!C201,'Seřazení Knt'!D200='Seřazení Knt'!D201),Žebříček!I41,Žebříček!I41+1))","v":""},{"$f":"IF('Seřazení Knt'!A201=0,\"\",'Seřazení Knt'!A201)","v":""}]